"SERVICE_CODE","ORGANISATION_UNIT","EXPENDITURE_CATEGORY","EXPENDITURE_DESCRIPTION","EXPENDITURE_CODE","NARRATIVE","DATE","TRANSATION_CODE","NET_AMOUNT","SUPPLIER_CODE","SUPPLIER_NAME","FROM_DATE","TO_DATE","FINANCIAL_PERIOD_YEAR"
"P&V","MYDDLETON HSE HERITAGE CENTRE","EMPLOYEES","APPOINTMENT EXPENSES","1301","P119513-SERVICE-CATERING (PERM) ADVERT COSTS",3/10/2022 00:00:00,"267464",448,"SA0133","SOWERBY ADVERTISING AND COMMUNICATIONS",26/9/2022 00:00:00,30/10/2022 00:00:00,"P07-2023"
"R&B","HUMAN RESOURCES","EMPLOYEES","TRAINING EXPENSES","1305","P119887-SERVICE-VY Employment Forum Seminar 19/09/2022",30/10/2022 00:00:00,"268308",260,"WE0361","WESTMINSTER EMPLOYMENT FORUM PROJECTS",26/9/2022 00:00:00,30/10/2022 00:00:00,"P07-2023"
"R&B","CORPORATE TRAINING","EMPLOYEES","TRAINING EXPENSES","1305","P119512-SERVICE-D Evans FAW Requal Training 6/7/Oct 22",5/10/2022 00:00:00,"267532",259,"BR0069","BRITISH RED CROSS",26/9/2022 00:00:00,30/10/2022 00:00:00,"P07-2023"
"R&B","CORPORATE TRAINING","EMPLOYEES","TRAINING EXPENSES","1305","P119509-SERVICE-EFAW G Flavien 07/10/2022",5/10/2022 00:00:00,"267533",189,"BR0069","BRITISH RED CROSS",26/9/2022 00:00:00,30/10/2022 00:00:00,"P07-2023"
,"LEE VALLEY MARINA STANSTEAD","EMPLOYEES","TRAINING EXPENSES","1305","P119651-SERVICE-NPORS mobile crane n101 - Training",19/10/2022 00:00:00,"267894",685,"SO0529","SORTED TRAINING",26/9/2022 00:00:00,30/10/2022 00:00:00,"P07-2023"
,"LEE VALLEY MARINA STANSTEAD","EMPLOYEES","TRAINING EXPENSES","1305","P119717-SERVICE-sorted training slinger signaller  21/10 x 3",30/10/2022 00:00:00,"268091",775,"SO0529","SORTED TRAINING",26/9/2022 00:00:00,30/10/2022 00:00:00,"P07-2023"
"P&V","SOUTH AREA RANGERS","EMPLOYEES","TRAINING EXPENSES","1305","P119546-SERVICE-Stem Injection Training",3/10/2022 00:00:00,"267303",1130,"SA0137","SAFFRON WALDEN AGRICULTURAL TRAINING GROUP",26/9/2022 00:00:00,30/10/2022 00:00:00,"P07-2023"
"P&V","POLICY & PERFORMANCE (L&E)","EMPLOYEES","TRAINING EXPENSES","1305","P119528-SERVICE-Excel Intermediate course 3/10/22",3/10/2022 00:00:00,"267474",140,"WW0210","WWP TRAINING LIMITED t/a KEY TRAINING",26/9/2022 00:00:00,30/10/2022 00:00:00,"P07-2023"
"R&B","CORPORATE TRAINING","EMPLOYEES","TRAINING PANEL","1306","P119877-SERVICE-L SOMERWILL TRAINING PANEL",30/10/2022 00:00:00,"268287",400,"UN0088","UNITED COLLEGES GROUP",26/9/2022 00:00:00,30/10/2022 00:00:00,"P07-2023"
"R&B","NON DISTRIBUTED COSTS","EMPLOYEES","SUPERANNUATION ADDED YEARS","1310","LONDON PENSIONS FUND AUTHORITY",4/10/2022 00:00:00,"267501",5156.23,"LO0031","LONDON PENSIONS FUND AUTHORITY",26/9/2022 00:00:00,30/10/2022 00:00:00,"P07-2023"
,"LEE VALLEY CAMPSITE","EMPLOYEES","CRB CHECKS","1330","DBS CHECK",10/10/2022 00:00:00,"267650",18,"DD0119","DUE DILIGENCE CHECKING LIMITED",26/9/2022 00:00:00,30/10/2022 00:00:00,"P07-2023"
"P&V","YOUTH AND SCHOOLS","EMPLOYEES","CRB CHECKS","1330","P119531-SERVICE-Barring disclosure Brian Claxton",3/10/2022 00:00:00,"266730",18,"DD0119","DUE DILIGENCE CHECKING LIMITED",26/9/2022 00:00:00,30/10/2022 00:00:00,"P07-2023"
,"VENUES MANAGEMENT","EMPLOYEES","CRB CHECKS","1330","DBS CHECK",10/10/2022 00:00:00,"267650",18,"DD0119","DUE DILIGENCE CHECKING LIMITED",26/9/2022 00:00:00,30/10/2022 00:00:00,"P07-2023"
,"VENUES MANAGEMENT","EMPLOYEES","CRB CHECKS","1330","DBSCHECK",10/10/2022 00:00:00,"267650",18,"DD0119","DUE DILIGENCE CHECKING LIMITED",26/9/2022 00:00:00,30/10/2022 00:00:00,"P07-2023"
"P&V","POLICY & PERFORMANCE (L&E)","EMPLOYEES","CRB CHECKS","1330","ADMIN FEE",10/10/2022 00:00:00,"267650",36,"DD0119","DUE DILIGENCE CHECKING LIMITED",26/9/2022 00:00:00,30/10/2022 00:00:00,"P07-2023"
"P&V","POLICY & PERFORMANCE (L&E)","EMPLOYEES","CRB CHECKS","1330","DBS CHECK",10/10/2022 00:00:00,"267650",56,"DD0119","DUE DILIGENCE CHECKING LIMITED",26/9/2022 00:00:00,30/10/2022 00:00:00,"P07-2023"
,"LV LEISURE CENTRE CAMPSITE","EMPLOYEES","CRB CHECKS","1330","DBS CHECK",10/10/2022 00:00:00,"267650",18,"DD0119","DUE DILIGENCE CHECKING LIMITED",26/9/2022 00:00:00,30/10/2022 00:00:00,"P07-2023"
,"LV LEISURE CENTRE CAMPSITE","EMPLOYEES","CRB CHECKS","1330","ADMIN FEE",10/10/2022 00:00:00,"267650",36,"DD0119","DUE DILIGENCE CHECKING LIMITED",26/9/2022 00:00:00,30/10/2022 00:00:00,"P07-2023"
"R&B","INFORMATION TECHNOLOGY","EMPLOYEES","DRIVING LICENCE CHECKS","1335","S CLARK  DRIVING LICENCE CHECK",10/10/2022 00:00:00,"267571",6.25,"FI0288","FIRST ADVANTAGE EUROPE LTD",26/9/2022 00:00:00,30/10/2022 00:00:00,"P07-2023"
"P&V","POLICY & PERFORMANCE (L&E)","EMPLOYEES","DRIVING LICENCE CHECKS","1335","P BLACKWELL  DRIVING LICENCE CHECK",10/10/2022 00:00:00,"267571",6.25,"FI0288","FIRST ADVANTAGE EUROPE LTD",26/9/2022 00:00:00,30/10/2022 00:00:00,"P07-2023"
"P&V","POLICY & PERFORMANCE (L&E)","EMPLOYEES","DRIVING LICENCE CHECKS","1335","L NORTH DRIVING LICENCE CHECK",10/10/2022 00:00:00,"267571",6.25,"FI0288","FIRST ADVANTAGE EUROPE LTD",26/9/2022 00:00:00,30/10/2022 00:00:00,"P07-2023"
"CEO","LVLC SERVICE CHARGE","PREMISES RELATED EXPENDITURE","SCHEDULED GROUND MAINTENANCE","2111","SEPTEMBER 2022",24/10/2022 00:00:00,"267514",108.26,"GL0214","GLENDALE GROUNDS MANAGEMENT LIMITED",26/9/2022 00:00:00,30/10/2022 00:00:00,"P07-2023"
"CEO","LVLC SERVICE CHARGE","PREMISES RELATED EXPENDITURE","SCHEDULED GROUND MAINTENANCE","2111","SEPTEMBER 2022",24/10/2022 00:00:00,"267514",2968.25,"GL0214","GLENDALE GROUNDS MANAGEMENT LIMITED",26/9/2022 00:00:00,30/10/2022 00:00:00,"P07-2023"
"CEO","LVLC SERVICE CHARGE","PREMISES RELATED EXPENDITURE","SCHEDULED GROUND MAINTENANCE","2111","JULY-SEPT 2022",24/10/2022 00:00:00,"267515",364.4,"GL0214","GLENDALE GROUNDS MANAGEMENT LIMITED",26/9/2022 00:00:00,30/10/2022 00:00:00,"P07-2023"
,"LEE VALLEY MARINA SPRINGFIELD","PREMISES RELATED EXPENDITURE","UNSCHEDULED GROUND MAINTENANCE","2112","P119282-SERVICE-To pollard willow tree with fungus",3/10/2022 00:00:00,"266919",350,"PA0222","PARKIN & PARKER TREE SPECIALISTS",26/9/2022 00:00:00,30/10/2022 00:00:00,"P07-2023"
,"LEE VALLEY MARINA SPRINGFIELD","PREMISES RELATED EXPENDITURE","UNSCHEDULED GROUND MAINTENANCE","2112","P119284-SERVICE-To pollard mature willow tree by fuell point",3/10/2022 00:00:00,"267304",795,"PA0222","PARKIN & PARKER TREE SPECIALISTS",26/9/2022 00:00:00,30/10/2022 00:00:00,"P07-2023"
,"LEE VALLEY MARINA SPRINGFIELD","PREMISES RELATED EXPENDITURE","UNSCHEDULED GROUND MAINTENANCE","2112","P119288-SERVICE-TO Lift and cut back trees and shrubs on",3/10/2022 00:00:00,"267305",850,"PA0222","PARKIN & PARKER TREE SPECIALISTS",26/9/2022 00:00:00,30/10/2022 00:00:00,"P07-2023"
,"LEE VALLEY MARINA SPRINGFIELD","PREMISES RELATED EXPENDITURE","UNSCHEDULED GROUND MAINTENANCE","2112","P119283-SERVICE-To pollard mature willow tree by bridge",3/10/2022 00:00:00,"267467",795,"PA0222","PARKIN & PARKER TREE SPECIALISTS",26/9/2022 00:00:00,30/10/2022 00:00:00,"P07-2023"
,"LEE VALLEY MARINA SPRINGFIELD","PREMISES RELATED EXPENDITURE","UNSCHEDULED GROUND MAINTENANCE","2112","P119286-SERVICE-To remove 2 willows split at base on the",5/10/2022 00:00:00,"267504",795,"PA0222","PARKIN & PARKER TREE SPECIALISTS",26/9/2022 00:00:00,30/10/2022 00:00:00,"P07-2023"
"P&V","MYDDELTON HOUSE","PREMISES RELATED EXPENDITURE","CONTRACT CLEANING","2120","P117626-SERVICE-Contract Cleaning",24/10/2022 00:00:00,"268071",2170.65,"BR0632","BRITANNIA SERVICES GROUP LTD",26/9/2022 00:00:00,30/10/2022 00:00:00,"P07-2023"
,"LEE VALLEY WATERWORKS CENTRE","PREMISES RELATED EXPENDITURE","CONTRACT CLEANING","2120","P118242-SERVICE-Cleaning WaterWorks Centre",26/10/2022 00:00:00,"268127",758.4,"BR0632","BRITANNIA SERVICES GROUP LTD",26/9/2022 00:00:00,30/10/2022 00:00:00,"P07-2023"
,"LEE VALLEY CAMPSITE","PREMISES RELATED EXPENDITURE","CONTRACT CLEANING","2120","P119599-SERVICE-Site cleaming SEPT 22",10/10/2022 00:00:00,"267546",2791,"LI0305","LIMPIAR CLEANING",26/9/2022 00:00:00,30/10/2022 00:00:00,"P07-2023"
,"LEE VALLEY CAMPSITE","PREMISES RELATED EXPENDITURE","CONTRACT CLEANING","2120","P119749-SERVICE-Monthly toilet clean oct-mar23",18/10/2022 00:00:00,"267780",88.25,"IN0012","INITIAL WASHROOM HYGIENE",26/9/2022 00:00:00,30/10/2022 00:00:00,"P07-2023"
,"LEE VALLEY CARAVAN PARK","PREMISES RELATED EXPENDITURE","CONTRACT CLEANING","2120","P119536-SERVICE-Monthly linen service",3/10/2022 00:00:00,"267466",764.96,"JO0168","JOHNSONS STALBRIDGE LINEN SERVICES",26/9/2022 00:00:00,30/10/2022 00:00:00,"P07-2023"
,"LEE VALLEY CARAVAN PARK","PREMISES RELATED EXPENDITURE","CONTRACT CLEANING","2120","P119588-SERVICE-SEPTEMBER - MONTHLY CLEANING",10/10/2022 00:00:00,"267544",3098.5,"LI0305","LIMPIAR CLEANING",26/9/2022 00:00:00,30/10/2022 00:00:00,"P07-2023"
,"LEE VALLEY CARAVAN PARK","PREMISES RELATED EXPENDITURE","CONTRACT CLEANING","2120","P119813-SERVICE-Initial - Washroom Services",26/10/2022 00:00:00,"267986",93.28,"IN0012","INITIAL WASHROOM HYGIENE",26/9/2022 00:00:00,30/10/2022 00:00:00,"P07-2023"
,"LEE VALLEY CARAVAN PARK","PREMISES RELATED EXPENDITURE","CONTRACT CLEANING","2120","P119867-SERVICE-Laundry Service",30/10/2022 00:00:00,"268232",573.68,"JO0168","JOHNSONS STALBRIDGE LINEN SERVICES",26/9/2022 00:00:00,30/10/2022 00:00:00,"P07-2023"
"P&V","MYDDLETON HSE HERITAGE CENTRE","PREMISES RELATED EXPENDITURE","CONTRACT CLEANING","2120","JAN /FEB/MAR 2020",30/10/2022 00:00:00,"268309",2217.78,"MI0024","MINSTER CLEANING SERVICES",26/9/2022 00:00:00,30/10/2022 00:00:00,"P07-2023"
"P&V","MYDDLETON HSE HERITAGE CENTRE","PREMISES RELATED EXPENDITURE","CONTRACT CLEANING","2120","JAN 2020 CR",30/10/2022 00:00:00,"268310",-48.74,"MI0024","MINSTER CLEANING SERVICES",26/9/2022 00:00:00,30/10/2022 00:00:00,"P07-2023"
"P&V","NORTH AREA RANGERS","PREMISES RELATED EXPENDITURE","CONTRACT CLEANING","2120","SEPTEMBER 2022",24/10/2022 00:00:00,"267514",395.98,"GL0214","GLENDALE GROUNDS MANAGEMENT LIMITED",26/9/2022 00:00:00,30/10/2022 00:00:00,"P07-2023"
"P&V","WILDLIFE DISCOVERY CENTRE","PREMISES RELATED EXPENDITURE","CONTRACT CLEANING","2120","P118094-SERVICE-Cleaning",3/10/2022 00:00:00,"267282",359.28,"BR0632","BRITANNIA SERVICES GROUP LTD",26/9/2022 00:00:00,30/10/2022 00:00:00,"P07-2023"
"P&V","WILDLIFE DISCOVERY CENTRE","PREMISES RELATED EXPENDITURE","CONTRACT CLEANING","2120","P118094-SERVICE-Cleaning",24/10/2022 00:00:00,"268070",359.28,"BR0632","BRITANNIA SERVICES GROUP LTD",26/9/2022 00:00:00,30/10/2022 00:00:00,"P07-2023"
"P&V","GUNPOWDER PARK","PREMISES RELATED EXPENDITURE","CONTRACT CLEANING","2120","SEPTEMBER 2022",24/10/2022 00:00:00,"267514",542.17,"GL0214","GLENDALE GROUNDS MANAGEMENT LIMITED",26/9/2022 00:00:00,30/10/2022 00:00:00,"P07-2023"
"P&V","RIVER LEE COUNTRY PARK","PREMISES RELATED EXPENDITURE","CONTRACT CLEANING","2120","SEPTEMBER 2022",24/10/2022 00:00:00,"267514",1084.35,"GL0214","GLENDALE GROUNDS MANAGEMENT LIMITED",26/9/2022 00:00:00,30/10/2022 00:00:00,"P07-2023"
,"LV LEISURE CENTRE CAMPSITE","PREMISES RELATED EXPENDITURE","CONTRACT CLEANING","2120","P119692-SERVICE-contract cleaning",18/10/2022 00:00:00,"267545",1925.5,"LI0305","LIMPIAR CLEANING",26/9/2022 00:00:00,30/10/2022 00:00:00,"P07-2023"
,"LV LEISURE CENTRE CAMPSITE","PREMISES RELATED EXPENDITURE","CONTRACT CLEANING","2120","P119698-SERVICE-Sanitary bin empty",18/10/2022 00:00:00,"267734",147.33,"PE0015","PHS GROUP PLC",26/9/2022 00:00:00,30/10/2022 00:00:00,"P07-2023"
"P&V","MYDDLETON HSE HERITAGE CENTRE","PREMISES RELATED EXPENDITURE","CLEANING CONTRACT","2121","P118226-SERVICE-Cleaning Bowles Tea Room (Visitor Centre)",24/10/2022 00:00:00,"268072",778.44,"BR0632","BRITANNIA SERVICES GROUP LTD",26/9/2022 00:00:00,30/10/2022 00:00:00,"P07-2023"
,"LEE VALLEY CAMPSITE","PREMISES RELATED EXPENDITURE","LINEN SERVICE","2122","P119577-SERVICE-Laundry 22/08/22 - 25/09/22",10/10/2022 00:00:00,"267465",419.56,"JO0168","JOHNSONS STALBRIDGE LINEN SERVICES",26/9/2022 00:00:00,30/10/2022 00:00:00,"P07-2023"
,"LEE VALLEY MARINA STANSTEAD","PREMISES RELATED EXPENDITURE","GM MAIN CONTRACT SCHEDULED","2141","SEPTEMBER 2022",24/10/2022 00:00:00,"267514",633.39,"GL0214","GLENDALE GROUNDS MANAGEMENT LIMITED",26/9/2022 00:00:00,30/10/2022 00:00:00,"P07-2023"
,"LEE VALLEY MARINA STANSTEAD","PREMISES RELATED EXPENDITURE","GM MAIN CONTRACT SCHEDULED","2141","JULY-SEPT 2022",24/10/2022 00:00:00,"267515",317.46,"GL0214","GLENDALE GROUNDS MANAGEMENT LIMITED",26/9/2022 00:00:00,30/10/2022 00:00:00,"P07-2023"
,"LEE VALLEY WATERWORKS CENTRE","PREMISES RELATED EXPENDITURE","GM MAIN CONTRACT SCHEDULED","2141","SEPTEMBER 2022",24/10/2022 00:00:00,"267514",260.88,"GL0214","GLENDALE GROUNDS MANAGEMENT LIMITED",26/9/2022 00:00:00,30/10/2022 00:00:00,"P07-2023"
,"LEE VALLEY WATERWORKS CENTRE","PREMISES RELATED EXPENDITURE","GM MAIN CONTRACT SCHEDULED","2141","SEPTEMBER 2022",24/10/2022 00:00:00,"267514",595.05,"GL0214","GLENDALE GROUNDS MANAGEMENT LIMITED",26/9/2022 00:00:00,30/10/2022 00:00:00,"P07-2023"
,"LEE VALLEY WATERWORKS CENTRE","PREMISES RELATED EXPENDITURE","GM MAIN CONTRACT SCHEDULED","2141","JULY-SEPT 2022",24/10/2022 00:00:00,"267515",420.87,"GL0214","GLENDALE GROUNDS MANAGEMENT LIMITED",26/9/2022 00:00:00,30/10/2022 00:00:00,"P07-2023"
,"LEE VALLEY FARM HAYES HILL","PREMISES RELATED EXPENDITURE","GM MAIN CONTRACT SCHEDULED","2141","SEPTEMBER 2022",24/10/2022 00:00:00,"267514",146.95,"GL0214","GLENDALE GROUNDS MANAGEMENT LIMITED",26/9/2022 00:00:00,30/10/2022 00:00:00,"P07-2023"
,"LEE VALLEY FARM HAYES HILL","PREMISES RELATED EXPENDITURE","GM MAIN CONTRACT SCHEDULED","2141","JULY-SEPT 2022",24/10/2022 00:00:00,"267515",105.63,"GL0214","GLENDALE GROUNDS MANAGEMENT LIMITED",26/9/2022 00:00:00,30/10/2022 00:00:00,"P07-2023"
"P&V","EAST INDIA DOCK AND BOW CREEK","PREMISES RELATED EXPENDITURE","GM MAIN CONTRACT SCHEDULED","2141","SEPTEMBER 2022",24/10/2022 00:00:00,"267514",931.76,"GL0214","GLENDALE GROUNDS MANAGEMENT LIMITED",26/9/2022 00:00:00,30/10/2022 00:00:00,"P07-2023"
"P&V","EAST INDIA DOCK AND BOW CREEK","PREMISES RELATED EXPENDITURE","GM MAIN CONTRACT SCHEDULED","2141","SEPTEMBER 2022",24/10/2022 00:00:00,"267514",834.36,"GL0214","GLENDALE GROUNDS MANAGEMENT LIMITED",26/9/2022 00:00:00,30/10/2022 00:00:00,"P07-2023"
"P&V","EAST INDIA DOCK AND BOW CREEK","PREMISES RELATED EXPENDITURE","GM MAIN CONTRACT SCHEDULED","2141","JULY-SEPT 2022",24/10/2022 00:00:00,"267515",883.9,"GL0214","GLENDALE GROUNDS MANAGEMENT LIMITED",26/9/2022 00:00:00,30/10/2022 00:00:00,"P07-2023"
"P&V","NORTH AREA RANGERS","PREMISES RELATED EXPENDITURE","GM MAIN CONTRACT SCHEDULED","2141","SEPTEMBER 2022",24/10/2022 00:00:00,"267514",5610.98,"GL0214","GLENDALE GROUNDS MANAGEMENT LIMITED",26/9/2022 00:00:00,30/10/2022 00:00:00,"P07-2023"
"P&V","NORTH AREA RANGERS","PREMISES RELATED EXPENDITURE","GM MAIN CONTRACT SCHEDULED","2141","JULY-SEPT 2022",24/10/2022 00:00:00,"267515",2009.56,"GL0214","GLENDALE GROUNDS MANAGEMENT LIMITED",26/9/2022 00:00:00,30/10/2022 00:00:00,"P07-2023"
"P&V","SOUTH AREA RANGERS","PREMISES RELATED EXPENDITURE","GM MAIN CONTRACT SCHEDULED","2141","SEPTEMBER 2022",24/10/2022 00:00:00,"267514",6408.88,"GL0214","GLENDALE GROUNDS MANAGEMENT LIMITED",26/9/2022 00:00:00,30/10/2022 00:00:00,"P07-2023"
"P&V","SOUTH AREA RANGERS","PREMISES RELATED EXPENDITURE","GM MAIN CONTRACT SCHEDULED","2141","SEPTEMBER 2022",24/10/2022 00:00:00,"267514",745.41,"GL0214","GLENDALE GROUNDS MANAGEMENT LIMITED",26/9/2022 00:00:00,30/10/2022 00:00:00,"P07-2023"
"P&V","SOUTH AREA RANGERS","PREMISES RELATED EXPENDITURE","GM MAIN CONTRACT SCHEDULED","2141","JULY-SEPT 2022",24/10/2022 00:00:00,"267515",3007.56,"GL0214","GLENDALE GROUNDS MANAGEMENT LIMITED",26/9/2022 00:00:00,30/10/2022 00:00:00,"P07-2023"
"P&V","ABBEY GARDENS","PREMISES RELATED EXPENDITURE","GM MAIN CONTRACT SCHEDULED","2141","SEPTEMBER 2022",24/10/2022 00:00:00,"267514",2842.32,"GL0214","GLENDALE GROUNDS MANAGEMENT LIMITED",26/9/2022 00:00:00,30/10/2022 00:00:00,"P07-2023"
"P&V","ABBEY GARDENS","PREMISES RELATED EXPENDITURE","GM MAIN CONTRACT SCHEDULED","2141","JULY-SEPT 2022",24/10/2022 00:00:00,"267515",686.48,"GL0214","GLENDALE GROUNDS MANAGEMENT LIMITED",26/9/2022 00:00:00,30/10/2022 00:00:00,"P07-2023"
"P&V","GUNPOWDER PARK","PREMISES RELATED EXPENDITURE","GM MAIN CONTRACT SCHEDULED","2141","SEPTEMBER 2022",24/10/2022 00:00:00,"267514",2798.45,"GL0214","GLENDALE GROUNDS MANAGEMENT LIMITED",26/9/2022 00:00:00,30/10/2022 00:00:00,"P07-2023"
"P&V","GUNPOWDER PARK","PREMISES RELATED EXPENDITURE","GM MAIN CONTRACT SCHEDULED","2141","JULY-SEPT 2022",24/10/2022 00:00:00,"267515",1370.44,"GL0214","GLENDALE GROUNDS MANAGEMENT LIMITED",26/9/2022 00:00:00,30/10/2022 00:00:00,"P07-2023"
"P&V","RIVER LEE COUNTRY PARK","PREMISES RELATED EXPENDITURE","GM MAIN CONTRACT SCHEDULED","2141","SEPTEMBER 2022",24/10/2022 00:00:00,"267514",16359.56,"GL0214","GLENDALE GROUNDS MANAGEMENT LIMITED",26/9/2022 00:00:00,30/10/2022 00:00:00,"P07-2023"
"P&V","RIVER LEE COUNTRY PARK","PREMISES RELATED EXPENDITURE","GM MAIN CONTRACT SCHEDULED","2141","SEPTEMBER 2022",24/10/2022 00:00:00,"267514",2608.92,"GL0214","GLENDALE GROUNDS MANAGEMENT LIMITED",26/9/2022 00:00:00,30/10/2022 00:00:00,"P07-2023"
"P&V","RIVER LEE COUNTRY PARK","PREMISES RELATED EXPENDITURE","GM MAIN CONTRACT SCHEDULED","2141","JULY-SEPT 2022",24/10/2022 00:00:00,"267515",9129.01,"GL0214","GLENDALE GROUNDS MANAGEMENT LIMITED",26/9/2022 00:00:00,30/10/2022 00:00:00,"P07-2023"
,"LEE VALLEY VELOPARK","PREMISES RELATED EXPENDITURE","GM MAIN CONTRACT SCHEDULED","2141","SEPTEMBER 2022",24/10/2022 00:00:00,"267514",7087.22,"GL0214","GLENDALE GROUNDS MANAGEMENT LIMITED",26/9/2022 00:00:00,30/10/2022 00:00:00,"P07-2023"
,"LEE VALLEY VELOPARK","PREMISES RELATED EXPENDITURE","GM MAIN CONTRACT SCHEDULED","2141","JULY-SEPT 2022",24/10/2022 00:00:00,"267515",540.91,"GL0214","GLENDALE GROUNDS MANAGEMENT LIMITED",26/9/2022 00:00:00,30/10/2022 00:00:00,"P07-2023"
,"LV HOCKEY AND TENNIS CENTRE","PREMISES RELATED EXPENDITURE","GM MAIN CONTRACT SCHEDULED","2141","SEPTEMBER 2022",24/10/2022 00:00:00,"267514",4358.07,"GL0214","GLENDALE GROUNDS MANAGEMENT LIMITED",26/9/2022 00:00:00,30/10/2022 00:00:00,"P07-2023"
,"LV HOCKEY AND TENNIS CENTRE","PREMISES RELATED EXPENDITURE","GM MAIN CONTRACT SCHEDULED","2141","JULY-SEPT 2022",24/10/2022 00:00:00,"267515",218.24,"GL0214","GLENDALE GROUNDS MANAGEMENT LIMITED",26/9/2022 00:00:00,30/10/2022 00:00:00,"P07-2023"
"P&V","THREE MILLS","PREMISES RELATED EXPENDITURE","GM MAIN CONTRACT SCHEDULED","2141","SEPTEMBER 2022",24/10/2022 00:00:00,"267514",1593.99,"GL0214","GLENDALE GROUNDS MANAGEMENT LIMITED",26/9/2022 00:00:00,30/10/2022 00:00:00,"P07-2023"
"P&V","THREE MILLS","PREMISES RELATED EXPENDITURE","GM MAIN CONTRACT SCHEDULED","2141","JULY-SEPT 2022",24/10/2022 00:00:00,"267515",583.96,"GL0214","GLENDALE GROUNDS MANAGEMENT LIMITED",26/9/2022 00:00:00,30/10/2022 00:00:00,"P07-2023"
,"LEE VALLEY RIDING CENTRE","PREMISES RELATED EXPENDITURE","GM MAIN CONTRACT SCHEDULED","2141","SEPTEMBER 2022",24/10/2022 00:00:00,"267514",486.91,"GL0214","GLENDALE GROUNDS MANAGEMENT LIMITED",26/9/2022 00:00:00,30/10/2022 00:00:00,"P07-2023"
,"LEE VALLEY RIDING CENTRE","PREMISES RELATED EXPENDITURE","GM MAIN CONTRACT SCHEDULED","2141","JULY-SEPT 2022",24/10/2022 00:00:00,"267515",193.36,"GL0214","GLENDALE GROUNDS MANAGEMENT LIMITED",26/9/2022 00:00:00,30/10/2022 00:00:00,"P07-2023"
,"LEE VALLEY ICE CENTRE","PREMISES RELATED EXPENDITURE","GM MAIN CONTRACT SCHEDULED","2141","SEPTEMBER 2022",24/10/2022 00:00:00,"267514",329.82,"GL0214","GLENDALE GROUNDS MANAGEMENT LIMITED",26/9/2022 00:00:00,30/10/2022 00:00:00,"P07-2023"
"P&V","FORMER LV LIDO SITE","PREMISES RELATED EXPENDITURE","GM MAIN CONTRACT SCHEDULED","2141","SEPTEMBER 2022",24/10/2022 00:00:00,"267514",1091.9,"GL0214","GLENDALE GROUNDS MANAGEMENT LIMITED",26/9/2022 00:00:00,30/10/2022 00:00:00,"P07-2023"
"P&V","FORMER LV LIDO SITE","PREMISES RELATED EXPENDITURE","GM MAIN CONTRACT SCHEDULED","2141","JULY-SEPT 2022",24/10/2022 00:00:00,"267515",402.89,"GL0214","GLENDALE GROUNDS MANAGEMENT LIMITED",26/9/2022 00:00:00,30/10/2022 00:00:00,"P07-2023"
,"LEE VALLEY ATHLETICS CENTRE","PREMISES RELATED EXPENDITURE","GM MAIN CONTRACT SCHEDULED","2141","SEPTEMBER 2022",24/10/2022 00:00:00,"267514",655.21,"GL0214","GLENDALE GROUNDS MANAGEMENT LIMITED",26/9/2022 00:00:00,30/10/2022 00:00:00,"P07-2023"
,"LEE VALLEY ATHLETICS CENTRE","PREMISES RELATED EXPENDITURE","GM MAIN CONTRACT SCHEDULED","2141","JULY-SEPT 2022",24/10/2022 00:00:00,"267515",420.47,"GL0214","GLENDALE GROUNDS MANAGEMENT LIMITED",26/9/2022 00:00:00,30/10/2022 00:00:00,"P07-2023"
,"LEE VALLEY WHITE WATER CENTRE","PREMISES RELATED EXPENDITURE","GM MAIN CONTRACT SCHEDULED","2141","SEPTEMBER 2022",24/10/2022 00:00:00,"267514",2602.94,"GL0214","GLENDALE GROUNDS MANAGEMENT LIMITED",26/9/2022 00:00:00,30/10/2022 00:00:00,"P07-2023"
,"LEE VALLEY WHITE WATER CENTRE","PREMISES RELATED EXPENDITURE","GM MAIN CONTRACT SCHEDULED","2141","JULY-SEPT 2022",24/10/2022 00:00:00,"267515",1395.41,"GL0214","GLENDALE GROUNDS MANAGEMENT LIMITED",26/9/2022 00:00:00,30/10/2022 00:00:00,"P07-2023"
,"LEE VALLEY WATERWORKS CENTRE","PREMISES RELATED EXPENDITURE","GM HORTICULTURE SCHEDULED","2143","SEPTEMBER 2022",24/10/2022 00:00:00,"267514",166.85,"GL0214","GLENDALE GROUNDS MANAGEMENT LIMITED",26/9/2022 00:00:00,30/10/2022 00:00:00,"P07-2023"
"P&V","NORTH AREA RANGERS","PREMISES RELATED EXPENDITURE","GM HORTICULTURE SCHEDULED","2143","SEPTEMBER 2022",24/10/2022 00:00:00,"267514",248.06,"GL0214","GLENDALE GROUNDS MANAGEMENT LIMITED",26/9/2022 00:00:00,30/10/2022 00:00:00,"P07-2023"
"P&V","SOUTH AREA RANGERS","PREMISES RELATED EXPENDITURE","GM HORTICULTURE SCHEDULED","2143","SEPTEMBER 2022",24/10/2022 00:00:00,"267514",142.22,"GL0214","GLENDALE GROUNDS MANAGEMENT LIMITED",26/9/2022 00:00:00,30/10/2022 00:00:00,"P07-2023"
"P&V","ABBEY GARDENS","PREMISES RELATED EXPENDITURE","GM HORTICULTURE SCHEDULED","2143","SEPTEMBER 2022",24/10/2022 00:00:00,"267514",1938.16,"GL0214","GLENDALE GROUNDS MANAGEMENT LIMITED",26/9/2022 00:00:00,30/10/2022 00:00:00,"P07-2023"
"P&V","GUNPOWDER PARK","PREMISES RELATED EXPENDITURE","GM HORTICULTURE SCHEDULED","2143","SEPTEMBER 2022",24/10/2022 00:00:00,"267514",254.42,"GL0214","GLENDALE GROUNDS MANAGEMENT LIMITED",26/9/2022 00:00:00,30/10/2022 00:00:00,"P07-2023"
"P&V","RIVER LEE COUNTRY PARK","PREMISES RELATED EXPENDITURE","GM HORTICULTURE SCHEDULED","2143","SEPTEMBER 2022",24/10/2022 00:00:00,"267514",132.03,"GL0214","GLENDALE GROUNDS MANAGEMENT LIMITED",26/9/2022 00:00:00,30/10/2022 00:00:00,"P07-2023"
,"LEE VALLEY VELOPARK","PREMISES RELATED EXPENDITURE","GM HORTICULTURE SCHEDULED","2143","SEPTEMBER 2022",24/10/2022 00:00:00,"267514",1131.69,"GL0214","GLENDALE GROUNDS MANAGEMENT LIMITED",26/9/2022 00:00:00,30/10/2022 00:00:00,"P07-2023"
,"LV HOCKEY AND TENNIS CENTRE","PREMISES RELATED EXPENDITURE","GM HORTICULTURE SCHEDULED","2143","SEPTEMBER 2022",24/10/2022 00:00:00,"267514",1629.71,"GL0214","GLENDALE GROUNDS MANAGEMENT LIMITED",26/9/2022 00:00:00,30/10/2022 00:00:00,"P07-2023"
"P&V","THREE MILLS","PREMISES RELATED EXPENDITURE","GM HORTICULTURE SCHEDULED","2143","SEPTEMBER 2022",24/10/2022 00:00:00,"267514",52.89,"GL0214","GLENDALE GROUNDS MANAGEMENT LIMITED",26/9/2022 00:00:00,30/10/2022 00:00:00,"P07-2023"
,"LEE VALLEY RIDING CENTRE","PREMISES RELATED EXPENDITURE","GM HORTICULTURE SCHEDULED","2143","SEPTEMBER 2022",24/10/2022 00:00:00,"267514",13.22,"GL0214","GLENDALE GROUNDS MANAGEMENT LIMITED",26/9/2022 00:00:00,30/10/2022 00:00:00,"P07-2023"
"P&V","FORMER LV LIDO SITE","PREMISES RELATED EXPENDITURE","GM HORTICULTURE SCHEDULED","2143","SEPTEMBER 2022",24/10/2022 00:00:00,"267514",12.61,"GL0214","GLENDALE GROUNDS MANAGEMENT LIMITED",26/9/2022 00:00:00,30/10/2022 00:00:00,"P07-2023"
,"LEE VALLEY WHITE WATER CENTRE","PREMISES RELATED EXPENDITURE","GM HORTICULTURE SCHEDULED","2143","SEPTEMBER 2022",24/10/2022 00:00:00,"267514",28.88,"GL0214","GLENDALE GROUNDS MANAGEMENT LIMITED",26/9/2022 00:00:00,30/10/2022 00:00:00,"P07-2023"
"P&V","ABBEY GARDENS","PREMISES RELATED EXPENDITURE","GM HORTICULTURE UNSCHEDULED","2144","P119248-SERVICE-Wall 3  at Waltham Abbey Gardens",4/10/2022 00:00:00,"267492",420,"PU0213","PURCELL ARCHITECTURE LTD",26/9/2022 00:00:00,30/10/2022 00:00:00,"P07-2023"
"P&V","NORTH AREA RANGERS","PREMISES RELATED EXPENDITURE","GM ARBORICULTURE UNSCHEDULED","2146","P118809-SERVICE-Tree Works Amwell",3/10/2022 00:00:00,"267322",500,"VE0004","PRINCIPAL TREES LTD",26/9/2022 00:00:00,30/10/2022 00:00:00,"P07-2023"
"P&V","RIVER LEE COUNTRY PARK","PREMISES RELATED EXPENDITURE","GM ARBORICULTURE UNSCHEDULED","2146","P118854-SERVICE-Tree Works at Cheshunt Country Walk",21/10/2022 00:00:00,"267320",310,"VE0004","PRINCIPAL TREES LTD",26/9/2022 00:00:00,30/10/2022 00:00:00,"P07-2023"
"P&V","RIVER LEE COUNTRY PARK","PREMISES RELATED EXPENDITURE","GM ARBORICULTURE UNSCHEDULED","2146","P118881-SERVICE-Tree Works at Seventy Acres",3/10/2022 00:00:00,"267323",950,"VE0004","PRINCIPAL TREES LTD",26/9/2022 00:00:00,30/10/2022 00:00:00,"P07-2023"
"P&V","RIVER LEE COUNTRY PARK","PREMISES RELATED EXPENDITURE","GM ARBORICULTURE UNSCHEDULED","2146","P119349-SERVICE-Tree Works - Clayton Hill",3/10/2022 00:00:00,"267324",945,"VE0004","PRINCIPAL TREES LTD",26/9/2022 00:00:00,30/10/2022 00:00:00,"P07-2023"
"P&V","RIVER LEE COUNTRY PARK","PREMISES RELATED EXPENDITURE","GM ARBORICULTURE UNSCHEDULED","2146","P118854-SERVICE-Tree Works at Cheshunt Country Walk",18/10/2022 00:00:00,"267694",-310,"VE0004","PRINCIPAL TREES LTD",26/9/2022 00:00:00,30/10/2022 00:00:00,"P07-2023"
"P&V","NORTH AREA RANGERS","PREMISES RELATED EXPENDITURE","GM NON MAIN CONT UNSCHEDULED","2147","P119130-SERVICE-Side Arm Flail Willow at Dobbs Weir",4/10/2022 00:00:00,"267512",100,"RO0348","ROY P GREENALL AND SONS",26/9/2022 00:00:00,30/10/2022 00:00:00,"P07-2023"
"P&V","GUNPOWDER PARK","PREMISES RELATED EXPENDITURE","GM NON MAIN CONT UNSCHEDULED","2147","P119455-SERVICE-Boardwalk Repairs at Gunpowder Park",4/10/2022 00:00:00,"267493",580,"JO0019","R G JOYCE",26/9/2022 00:00:00,30/10/2022 00:00:00,"P07-2023"
"P&V","GUNPOWDER PARK","PREMISES RELATED EXPENDITURE","GM NON MAIN CONT UNSCHEDULED","2147","P119034-SERVICE-Bench Repairs at Gunpowder Park",5/10/2022 00:00:00,"267494",200,"JO0019","R G JOYCE",26/9/2022 00:00:00,30/10/2022 00:00:00,"P07-2023"
"P&V","RIVER LEE COUNTRY PARK","PREMISES RELATED EXPENDITURE","GM NON MAIN CONT UNSCHEDULED","2147","P118538-SERVICE-2x Roundup PRO Active 360 Weedkiller",3/10/2022 00:00:00,"267319",165,"AP0245","APS LIMITED",26/9/2022 00:00:00,30/10/2022 00:00:00,"P07-2023"
"P&V","RIVER LEE COUNTRY PARK","PREMISES RELATED EXPENDITURE","GM NON MAIN CONT UNSCHEDULED","2147","P119069-SERVICE-Flail Hedge at Nazeing Road",4/10/2022 00:00:00,"267512",400,"RO0348","ROY P GREENALL AND SONS",26/9/2022 00:00:00,30/10/2022 00:00:00,"P07-2023"
"P&V","RIVER LEE COUNTRY PARK","PREMISES RELATED EXPENDITURE","GM NON MAIN CONT UNSCHEDULED","2147","P119760-SERVICE-Paint Hatched Markings at Slipe Lane",30/10/2022 00:00:00,"268278",850,"LI0251","LINEWAYS LTD",26/9/2022 00:00:00,30/10/2022 00:00:00,"P07-2023"
"P&V","SOUTH AREA RANGERS","PREMISES RELATED EXPENDITURE","HABITAT MANAGEMENT WORKS","2149","P119498-SERVICE-Tree Works at Ferry Lane - Tottenham Marsh",4/10/2022 00:00:00,"267503",450,"PA0222","PARKIN & PARKER TREE SPECIALISTS",26/9/2022 00:00:00,30/10/2022 00:00:00,"P07-2023"
"P&V","SOUTH AREA RANGERS","PREMISES RELATED EXPENDITURE","HABITAT MANAGEMENT WORKS","2149","P117703-SERVICE-Treat Invasive Species adjacent to Pymmes Bro",26/10/2022 00:00:00,"268120",325,"GO0044","S.H.GOSS & CO LTD",26/9/2022 00:00:00,30/10/2022 00:00:00,"P07-2023"
"P&V","GUNPOWDER PARK","PREMISES RELATED EXPENDITURE","HABITAT MANAGEMENT WORKS","2149","P118961-SERVICE-Japanese Knotweed Spraying - Rammey Marsh",30/10/2022 00:00:00,"268260",225,"GO0044","S.H.GOSS & CO LTD",26/9/2022 00:00:00,30/10/2022 00:00:00,"P07-2023"
"P&V","RIVER LEE COUNTRY PARK","PREMISES RELATED EXPENDITURE","HABITAT MANAGEMENT WORKS","2149","P119033-SERVICE-Crassula Treatment at Hall Marsh Scrape",3/10/2022 00:00:00,"267243",525,"GO0044","S.H.GOSS & CO LTD",26/9/2022 00:00:00,30/10/2022 00:00:00,"P07-2023"
"P&V","NORTH AREA RANGERS","PREMISES RELATED EXPENDITURE","MEADOW CUTS","2150","P118801-SERVICE-Meadow Cuts - Variouis Sites",26/10/2022 00:00:00,"268125",9110.44,"MA0002","GTM RURAL  ENTERPRISES LIMITED",26/9/2022 00:00:00,30/10/2022 00:00:00,"P07-2023"
"P&V","SOUTH AREA RANGERS","PREMISES RELATED EXPENDITURE","MEADOW CUTS","2150","P118801-SERVICE-Meadow Cuts - Variouis Sites",26/10/2022 00:00:00,"268125",12999.68,"MA0002","GTM RURAL  ENTERPRISES LIMITED",26/9/2022 00:00:00,30/10/2022 00:00:00,"P07-2023"
,"LEE VALLEY MARINA SPRINGFIELD","PREMISES RELATED EXPENDITURE","GENERAL WASTE","2211","P119525-SERVICE-General waste & recyling",3/10/2022 00:00:00,"266900",1306.86,"CL0037","VEOLIA ES (UK) LTD",26/9/2022 00:00:00,30/10/2022 00:00:00,"P07-2023"
,"LEE VALLEY MARINA SPRINGFIELD","PREMISES RELATED EXPENDITURE","GENERAL WASTE","2211","P119525-SERVICE-General waste & recyling",12/10/2022 00:00:00,"267715",1024.26,"CL0037","VEOLIA ES (UK) LTD",26/9/2022 00:00:00,30/10/2022 00:00:00,"P07-2023"
,"LEE VALLEY MARINA STANSTEAD","PREMISES RELATED EXPENDITURE","GENERAL WASTE","2211","P117691-SERVICE-Annual useage Veolia -bins 4 Rye and Stan Mar",10/10/2022 00:00:00,"267482",43.05,"CL0037","VEOLIA ES (UK) LTD",26/9/2022 00:00:00,30/10/2022 00:00:00,"P07-2023"
,"LEE VALLEY MARINA STANSTEAD","PREMISES RELATED EXPENDITURE","GENERAL WASTE","2211","P117691-SERVICE-Annual useage Veolia -bins 4 Rye and Stan Mar",11/10/2022 00:00:00,"267710",13.47,"CL0037","VEOLIA ES (UK) LTD",26/9/2022 00:00:00,30/10/2022 00:00:00,"P07-2023"
,"LEE VALLEY MARINA STANSTEAD","PREMISES RELATED EXPENDITURE","GENERAL WASTE","2211","P117691-SERVICE-Annual useage Veolia -bins 4 Rye and Stan Mar",11/10/2022 00:00:00,"267714",204.24,"CL0037","VEOLIA ES (UK) LTD",26/9/2022 00:00:00,30/10/2022 00:00:00,"P07-2023"
,"LEE VALLEY MARINA STANSTEAD","PREMISES RELATED EXPENDITURE","GENERAL WASTE","2211","P117691-SERVICE-Annual useage Veolia -bins 4 Rye and Stan Mar",12/10/2022 00:00:00,"267782",818,"CL0037","VEOLIA ES (UK) LTD",26/9/2022 00:00:00,30/10/2022 00:00:00,"P07-2023"
,"LEE VALLEY CAMPSITE","PREMISES RELATED EXPENDITURE","GENERAL WASTE","2211","P119746-SERVICE-Skip collections Sept 22",18/10/2022 00:00:00,"267712",633.53,"CL0037","VEOLIA ES (UK) LTD",26/9/2022 00:00:00,30/10/2022 00:00:00,"P07-2023"
,"LEE VALLEY CAMPSITE","PREMISES RELATED EXPENDITURE","GENERAL WASTE","2211","P119752-SERVICE-Extra skip site tidy",18/10/2022 00:00:00,"267781",133,"CL0037","VEOLIA ES (UK) LTD",26/9/2022 00:00:00,30/10/2022 00:00:00,"P07-2023"
,"LEE VALLEY CARAVAN PARK","PREMISES RELATED EXPENDITURE","GENERAL WASTE","2211","P119664-SERVICE-Waste Collection",12/10/2022 00:00:00,"267711",2789.37,"CL0037","VEOLIA ES (UK) LTD",26/9/2022 00:00:00,30/10/2022 00:00:00,"P07-2023"
"P&V","SOUTH AREA RANGERS","PREMISES RELATED EXPENDITURE","GENERAL WASTE","2211","P119545-SERVICE-Skip at WaterWorks Centre",3/10/2022 00:00:00,"267468",308,"GB0239","GBN SERVICES LTD",26/9/2022 00:00:00,30/10/2022 00:00:00,"P07-2023"
"P&V","RIVER LEE COUNTRY PARK","PREMISES RELATED EXPENDITURE","GENERAL WASTE","2211","P117498-SERVICE-12yd General Rubbish Skip at Holyfield Hall F",10/10/2022 00:00:00,"267688",308,"GB0239","GBN SERVICES LTD",26/9/2022 00:00:00,30/10/2022 00:00:00,"P07-2023"
"P&V","RIVER LEE COUNTRY PARK","PREMISES RELATED EXPENDITURE","GENERAL WASTE","2211","P117694-SERVICE-12yd General Rubbish Skip at Holyfield Hall F",24/10/2022 00:00:00,"267790",308,"GB0239","GBN SERVICES LTD",26/9/2022 00:00:00,30/10/2022 00:00:00,"P07-2023"
,"LV LEISURE CENTRE CAMPSITE","PREMISES RELATED EXPENDITURE","GENERAL WASTE","2211","P119693-SERVICE-Recycling empty",18/10/2022 00:00:00,"267706",330.52,"BY0049","BYWATERS (LEYTON) LTD",26/9/2022 00:00:00,30/10/2022 00:00:00,"P07-2023"
,"LV LEISURE CENTRE CAMPSITE","PREMISES RELATED EXPENDITURE","GENERAL WASTE","2211","P119694-SERVICE-Compactor and skip",18/10/2022 00:00:00,"267713",1040.53,"CL0037","VEOLIA ES (UK) LTD",26/9/2022 00:00:00,30/10/2022 00:00:00,"P07-2023"
"P&V","MYDDELTON HOUSE","PREMISES RELATED EXPENDITURE","RECYCLING","2214","P119281-SERVICE-Recycling",11/10/2022 00:00:00,"267707",194.62,"CA0341","F & R CAWLEY LTD",26/9/2022 00:00:00,30/10/2022 00:00:00,"P07-2023"
"P&V","MYDDELTON HOUSE","PREMISES RELATED EXPENDITURE","BUILDING SERVICE AGREEMENTS","2220","P118773-SERVICE-Sanitary Services",24/10/2022 00:00:00,"268094",58.72,"PE0015","PHS GROUP PLC",26/9/2022 00:00:00,30/10/2022 00:00:00,"P07-2023"
"P&V","MYDDELTON HOUSE","PREMISES RELATED EXPENDITURE","BUILDING SERVICE AGREEMENTS","2220","P118773-SERVICE-Sanitary Services",30/10/2022 00:00:00,"268246",22.52,"PE0015","PHS GROUP PLC",26/9/2022 00:00:00,30/10/2022 00:00:00,"P07-2023"
"P&V","MYDDELTON HOUSE","PREMISES RELATED EXPENDITURE","BUILDING SERVICE AGREEMENTS","2220","P118773-SERVICE-Sanitary Services",30/10/2022 00:00:00,"268247",9.09,"PE0015","PHS GROUP PLC",26/9/2022 00:00:00,30/10/2022 00:00:00,"P07-2023"
"P&V","MYDDELTON HOUSE","PREMISES RELATED EXPENDITURE","BUILDING SERVICE AGREEMENTS","2220","P119876-SERVICE-Sanitary Services",30/10/2022 00:00:00,"268272",178.08,"PE0015","PHS GROUP PLC",26/9/2022 00:00:00,30/10/2022 00:00:00,"P07-2023"
,"LEE VALLEY MARINA STANSTEAD","PREMISES RELATED EXPENDITURE","BUILDING SERVICE AGREEMENTS","2220","P119510-SERVICE-annual service charge for workshop service",3/10/2022 00:00:00,"267094",230.85,"CH0088","CHUBB FIRE & SECURITY",26/9/2022 00:00:00,30/10/2022 00:00:00,"P07-2023"
,"LEE VALLEY WATERWORKS CENTRE","PREMISES RELATED EXPENDITURE","BUILDING SERVICE AGREEMENTS","2220","P119541-SERVICE-Engineering Service to Carry out PPM - Aug 22",3/10/2022 00:00:00,"267306",219.82,"CO0199","EQUANS FM LIMITED (frmlyENGIE FM LIMITED)",26/9/2022 00:00:00,30/10/2022 00:00:00,"P07-2023"
,"LEE VALLEY WATERWORKS CENTRE","PREMISES RELATED EXPENDITURE","BUILDING SERVICE AGREEMENTS","2220","P119318-SERVICE-Shutter Service at WaterWorks Centre",30/10/2022 00:00:00,"268241",1450,"GU0198","GUARDIAN INDUSTRIAL DOORS LIMITED",26/9/2022 00:00:00,30/10/2022 00:00:00,"P07-2023"
,"LEE VALLEY CAMPSITE","PREMISES RELATED EXPENDITURE","BUILDING SERVICE AGREEMENTS","2220","P119505-SERVICE-REPAIR OF INTRUDER ALARM",3/10/2022 00:00:00,"267141",115,"AC0012","SCUTUM SOUTH EAST LTD (frmly Active Security)",26/9/2022 00:00:00,30/10/2022 00:00:00,"P07-2023"
,"LEE VALLEY CAMPSITE","PREMISES RELATED EXPENDITURE","BUILDING SERVICE AGREEMENTS","2220","P118102-SERVICE-Sept 22",18/10/2022 00:00:00,"267720",70,"VE0006","VERMINATE CITY & RURAL PEST CONTROL LTD",26/9/2022 00:00:00,30/10/2022 00:00:00,"P07-2023"
,"LEE VALLEY CAMPSITE","PREMISES RELATED EXPENDITURE","BUILDING SERVICE AGREEMENTS","2220","P119632-SERVICE-Oct 22",18/10/2022 00:00:00,"267765",70,"VE0006","VERMINATE CITY & RURAL PEST CONTROL LTD",26/9/2022 00:00:00,30/10/2022 00:00:00,"P07-2023"
,"LEE VALLEY CARAVAN PARK","PREMISES RELATED EXPENDITURE","BUILDING SERVICE AGREEMENTS","2220","P119665-SERVICE-Monthly Pest Control",18/10/2022 00:00:00,"267719",70,"VE0006","VERMINATE CITY & RURAL PEST CONTROL LTD",26/9/2022 00:00:00,30/10/2022 00:00:00,"P07-2023"
"P&V","NORTH AREA RANGERS","PREMISES RELATED EXPENDITURE","BUILDING SERVICE AGREEMENTS","2220","P117223-SERVICE-Sanitary Disposal - Old Mill & Meadows Toilet",24/10/2022 00:00:00,"268092",3.5,"PE0015","PHS GROUP PLC",26/9/2022 00:00:00,30/10/2022 00:00:00,"P07-2023"
"P&V","SOUTH AREA RANGERS","PREMISES RELATED EXPENDITURE","BUILDING SERVICE AGREEMENTS","2220","P119469-SERVICE-Maintenance of Lighting at Lea Bridge Rd Unde",26/10/2022 00:00:00,"268141",723.36,"CO0199","EQUANS FM LIMITED (frmlyENGIE FM LIMITED)",26/9/2022 00:00:00,30/10/2022 00:00:00,"P07-2023"
"P&V","WILDLIFE DISCOVERY CENTRE","PREMISES RELATED EXPENDITURE","BUILDING SERVICE AGREEMENTS","2220","GARTEC",3/10/2022 00:00:00,"266870",563.33,"GA0448","GARTEC",26/9/2022 00:00:00,30/10/2022 00:00:00,"P07-2023"
"P&V","WILDLIFE DISCOVERY CENTRE","PREMISES RELATED EXPENDITURE","BUILDING SERVICE AGREEMENTS","2220","GARTEC",3/10/2022 00:00:00,"266891",-563.33,"GA0448","GARTEC",26/9/2022 00:00:00,30/10/2022 00:00:00,"P07-2023"
"P&V","GUNPOWDER PARK","PREMISES RELATED EXPENDITURE","BUILDING SERVICE AGREEMENTS","2220","P117222-SERVICE-Sanitary Disposal - Gunpowder Park - Public T",3/10/2022 00:00:00,"267347",2.7,"PE0015","PHS GROUP PLC",26/9/2022 00:00:00,30/10/2022 00:00:00,"P07-2023"
"P&V","GUNPOWDER PARK","PREMISES RELATED EXPENDITURE","BUILDING SERVICE AGREEMENTS","2220","P117222-SERVICE-Sanitary Disposal - Gunpowder Park - Public T",18/10/2022 00:00:00,"267798",14.3,"PE0015","PHS GROUP PLC",26/9/2022 00:00:00,30/10/2022 00:00:00,"P07-2023"
"P&V","GUNPOWDER PARK","PREMISES RELATED EXPENDITURE","BUILDING SERVICE AGREEMENTS","2220","P119459-SERVICE-Building Servcie Agreement - Gunpowder Park",26/10/2022 00:00:00,"268140",196.79,"CO0199","EQUANS FM LIMITED (frmlyENGIE FM LIMITED)",26/9/2022 00:00:00,30/10/2022 00:00:00,"P07-2023"
"P&V","GUNPOWDER PARK","PREMISES RELATED EXPENDITURE","BUILDING SERVICE AGREEMENTS","2220","P117221-SERVICE-Sanitary Disposal - Gunpowder Park Office Toi",30/10/2022 00:00:00,"268245",2.7,"PE0015","PHS GROUP PLC",26/9/2022 00:00:00,30/10/2022 00:00:00,"P07-2023"
"P&V","RIVER LEE COUNTRY PARK","PREMISES RELATED EXPENDITURE","BUILDING SERVICE AGREEMENTS","2220","P117218-SERVICE-Sanitary Disposal - Ranger Base Office Holyfi",3/10/2022 00:00:00,"267349",5.88,"PE0015","PHS GROUP PLC",26/9/2022 00:00:00,30/10/2022 00:00:00,"P07-2023"
"P&V","RIVER LEE COUNTRY PARK","PREMISES RELATED EXPENDITURE","BUILDING SERVICE AGREEMENTS","2220","P117224-SERVICE-Sanitary Disposal - Fishers Green Toilets",18/10/2022 00:00:00,"267797",10.07,"PE0015","PHS GROUP PLC",26/9/2022 00:00:00,30/10/2022 00:00:00,"P07-2023"
"P&V","RIVER LEE COUNTRY PARK","PREMISES RELATED EXPENDITURE","BUILDING SERVICE AGREEMENTS","2220","P117218-SERVICE-Sanitary Disposal - Ranger Base Office Holyfi",30/10/2022 00:00:00,"268248",5.88,"PE0015","PHS GROUP PLC",26/9/2022 00:00:00,30/10/2022 00:00:00,"P07-2023"
,"LV LEISURE CENTRE CAMPSITE","PREMISES RELATED EXPENDITURE","BUILDING SERVICE AGREEMENTS","2220","P119695-SERVICE-Pest control",18/10/2022 00:00:00,"267721",70,"VE0006","VERMINATE CITY & RURAL PEST CONTROL LTD",26/9/2022 00:00:00,30/10/2022 00:00:00,"P07-2023"
,"LV LEISURE CENTRE CAMPSITE","PREMISES RELATED EXPENDITURE","BUILDING SERVICE AGREEMENTS","2220","P119801-SERVICE-Platinum maintenance",24/10/2022 00:00:00,"267942",645,"RV0035","RVTV SECURITY GROUP LTD",26/9/2022 00:00:00,30/10/2022 00:00:00,"P07-2023"
,"LV LEISURE CENTRE CAMPSITE","PREMISES RELATED EXPENDITURE","BUILDING SERVICE AGREEMENTS","2220","P119805-SERVICE-Fire Alarm",24/10/2022 00:00:00,"267943",280,"RV0035","RVTV SECURITY GROUP LTD",26/9/2022 00:00:00,30/10/2022 00:00:00,"P07-2023"
,"LV LEISURE CENTRE CAMPSITE","PREMISES RELATED EXPENDITURE","BUILDING SERVICE AGREEMENTS","2220","P119806-SERVICE-Intruder and Hold",24/10/2022 00:00:00,"267946",480,"RV0035","RVTV SECURITY GROUP LTD",26/9/2022 00:00:00,30/10/2022 00:00:00,"P07-2023"
,"LV LEISURE CENTRE CAMPSITE","PREMISES RELATED EXPENDITURE","BUILDING SERVICE AGREEMENTS","2220","P119808-SERVICE-Intruder alarm",24/10/2022 00:00:00,"267947",480,"RV0035","RVTV SECURITY GROUP LTD",26/9/2022 00:00:00,30/10/2022 00:00:00,"P07-2023"
,"LV LEISURE CENTRE GOLF COURSE","PREMISES RELATED EXPENDITURE","BUILDING SERVICE AGREEMENTS","2220","P119764-SERVICE-Annual service contract",24/10/2022 00:00:00,"267977",920,"SJ0635","SJS IRRIGATION",26/9/2022 00:00:00,30/10/2022 00:00:00,"P07-2023"
"P&V","MYDDELTON HOUSE","PREMISES RELATED EXPENDITURE","BUILDING REPAIRS & MAINTENANCE","2222","P119659-SERVICE-Replacement Tap Cart to Disabled W/C and New",18/10/2022 00:00:00,"267879",267.92,"GI0137","R & P GIBBS LIMITED",26/9/2022 00:00:00,30/10/2022 00:00:00,"P07-2023"
"CEO","RESIDENTIAL ACCOMMODATION","PREMISES RELATED EXPENDITURE","BUILDING REPAIRS & MAINTENANCE","2222","P119675-SERVICE-9 Picketts Lock Lane - Titanium Element/Gate",18/10/2022 00:00:00,"267724",673.33,"CA0165","CASTLES",26/9/2022 00:00:00,30/10/2022 00:00:00,"P07-2023"
"CEO","RESIDENTIAL ACCOMMODATION","PREMISES RELATED EXPENDITURE","BUILDING REPAIRS & MAINTENANCE","2222","P119676-SERVICE-Roselea Pest Control",18/10/2022 00:00:00,"267725",300,"CA0165","CASTLES",26/9/2022 00:00:00,30/10/2022 00:00:00,"P07-2023"
"CEO","RESIDENTIAL ACCOMMODATION","PREMISES RELATED EXPENDITURE","BUILDING REPAIRS & MAINTENANCE","2222","P119677-SERVICE-7 Picketts Lock Lane - Electric Heater/Flores",18/10/2022 00:00:00,"267726",55.83,"CA0165","CASTLES",26/9/2022 00:00:00,30/10/2022 00:00:00,"P07-2023"
"CEO","RESIDENTIAL ACCOMMODATION","PREMISES RELATED EXPENDITURE","BUILDING REPAIRS & MAINTENANCE","2222","P118137-SERVICE-2 Connaught Close Pest Control",18/10/2022 00:00:00,"267770",70,"VE0006","VERMINATE CITY & RURAL PEST CONTROL LTD",26/9/2022 00:00:00,30/10/2022 00:00:00,"P07-2023"
"CEO","RESIDENTIAL ACCOMMODATION","PREMISES RELATED EXPENDITURE","BUILDING REPAIRS & MAINTENANCE","2222","P118137-SERVICE-2 Connaught Close Pest Control",18/10/2022 00:00:00,"267771",70,"VE0006","VERMINATE CITY & RURAL PEST CONTROL LTD",26/9/2022 00:00:00,30/10/2022 00:00:00,"P07-2023"
"CEO","RESIDENTIAL ACCOMMODATION","PREMISES RELATED EXPENDITURE","BUILDING REPAIRS & MAINTENANCE","2222","P119679-SERVICE-Marshgate Cottage - Replace Locks",18/10/2022 00:00:00,"267801",104,"WA0315","PAUL WALLACE ESTATE AGENTS",26/9/2022 00:00:00,30/10/2022 00:00:00,"P07-2023"
"CEO","RESIDENTIAL ACCOMMODATION","PREMISES RELATED EXPENDITURE","BUILDING REPAIRS & MAINTENANCE","2222","P119649-SERVICE-Tree Works at Marshgate Cottage",30/10/2022 00:00:00,"267979",275,"PA0222","PARKIN & PARKER TREE SPECIALISTS",26/9/2022 00:00:00,30/10/2022 00:00:00,"P07-2023"
"CEO","RESIDENTIAL ACCOMMODATION","PREMISES RELATED EXPENDITURE","BUILDING REPAIRS & MAINTENANCE","2222","P119645-SERVICE-Fit New Bathroom Light at Myddelton House Gat",26/10/2022 00:00:00,"268152",120,"GI0137","R & P GIBBS LIMITED",26/9/2022 00:00:00,30/10/2022 00:00:00,"P07-2023"
"CEO","COMMERCIAL ACCOMMODATION","PREMISES RELATED EXPENDITURE","BUILDING REPAIRS & MAINTENANCE","2222","P117857-SERVICE-Concrete Blocks Wharf road",3/10/2022 00:00:00,"267473",60,"NA0171","NAIVETTE SERVICES LTD",26/9/2022 00:00:00,30/10/2022 00:00:00,"P07-2023"
"CEO","COMMERCIAL ACCOMMODATION","PREMISES RELATED EXPENDITURE","BUILDING REPAIRS & MAINTENANCE","2222","P117857-SERVICE-Concrete Blocks Wharf road",30/10/2022 00:00:00,"268306",62,"NA0171","NAIVETTE SERVICES LTD",26/9/2022 00:00:00,30/10/2022 00:00:00,"P07-2023"
,"LEE VALLEY MARINA SPRINGFIELD","PREMISES RELATED EXPENDITURE","BUILDING REPAIRS & MAINTENANCE","2222","P119043-SERVICE-Rectifications on 3 yearly inspection",3/10/2022 00:00:00,"267298",3530,"BR0018","BRADSHAW ELECTRICAL LIMITED",26/9/2022 00:00:00,30/10/2022 00:00:00,"P07-2023"
,"LEE VALLEY MARINA SPRINGFIELD","PREMISES RELATED EXPENDITURE","BUILDING REPAIRS & MAINTENANCE","2222","P119548-SERVICE-To Resolve error issue with the CCTV at",5/10/2022 00:00:00,"267486",630,"DE0013","DENNIS SECURITY CENTRE",26/9/2022 00:00:00,30/10/2022 00:00:00,"P07-2023"
,"LEE VALLEY MARINA SPRINGFIELD","PREMISES RELATED EXPENDITURE","BUILDING REPAIRS & MAINTENANCE","2222","P117786-SERVICE-To supply pest & vermin control",12/10/2022 00:00:00,"267768",450,"VE0006","VERMINATE CITY & RURAL PEST CONTROL LTD",26/9/2022 00:00:00,30/10/2022 00:00:00,"P07-2023"
,"LEE VALLEY MARINA SPRINGFIELD","PREMISES RELATED EXPENDITURE","BUILDING REPAIRS & MAINTENANCE","2222","P119835-SERVICE-To supply items as requested",26/10/2022 00:00:00,"267896",73.86,"SC0057","SCREWFIX DIRECT LTD",26/9/2022 00:00:00,30/10/2022 00:00:00,"P07-2023"
,"LEE VALLEY MARINA SPRINGFIELD","PREMISES RELATED EXPENDITURE","BUILDING REPAIRS & MAINTENANCE","2222","P119107-SERVICE-Additional cost to order for materials & labo",26/10/2022 00:00:00,"267903",53,"BR0018","BRADSHAW ELECTRICAL LIMITED",26/9/2022 00:00:00,30/10/2022 00:00:00,"P07-2023"
,"LEE VALLEY MARINA SPRINGFIELD","PREMISES RELATED EXPENDITURE","BUILDING REPAIRS & MAINTENANCE","2222","P119107-SERVICE-Emergency lighting & P.A repairs",26/10/2022 00:00:00,"267903",530,"BR0018","BRADSHAW ELECTRICAL LIMITED",26/9/2022 00:00:00,30/10/2022 00:00:00,"P07-2023"
,"LEE VALLEY MARINA STANSTEAD","PREMISES RELATED EXPENDITURE","BUILDING REPAIRS & MAINTENANCE","2222","P119398-SERVICE-Legionella - Kingfisher- TMV Service",18/10/2022 00:00:00,"267754",114.8,"KI0090","KINGFISHER ENVIRONMENTAL SERVICES LTD",26/9/2022 00:00:00,30/10/2022 00:00:00,"P07-2023"
,"LEE VALLEY MARINA STANSTEAD","PREMISES RELATED EXPENDITURE","BUILDING REPAIRS & MAINTENANCE","2222","P119551-SERVICE-2 x tap sets, 1 gents w/shop 1 gents showerBl",24/10/2022 00:00:00,"267756",225,"TA0204","TAYLOR HEATING GROUP LTD",26/9/2022 00:00:00,30/10/2022 00:00:00,"P07-2023"
,"LEE VALLEY MARINA STANSTEAD","PREMISES RELATED EXPENDITURE","BUILDING REPAIRS & MAINTENANCE","2222","P119551-SERVICE-labour, acid shot, investigation for job",24/10/2022 00:00:00,"267756",140,"TA0204","TAYLOR HEATING GROUP LTD",26/9/2022 00:00:00,30/10/2022 00:00:00,"P07-2023"
,"LEE VALLEY WATERWORKS CENTRE","PREMISES RELATED EXPENDITURE","BUILDING REPAIRS & MAINTENANCE","2222","P119569-SERVICE-Safe at WaterWorks Call Out",18/10/2022 00:00:00,"267900",250,"BA0655","BANHAM SECURITY",26/9/2022 00:00:00,30/10/2022 00:00:00,"P07-2023"
,"LEE VALLEY CAMPSITE","PREMISES RELATED EXPENDITURE","BUILDING REPAIRS & MAINTENANCE","2222","P119315-SERVICE-2x leaning lime trees",24/10/2022 00:00:00,"268079",400,"PA0222","PARKIN & PARKER TREE SPECIALISTS",26/9/2022 00:00:00,30/10/2022 00:00:00,"P07-2023"
,"LEE VALLEY CAMPSITE","PREMISES RELATED EXPENDITURE","BUILDING REPAIRS & MAINTENANCE","2222","P119315-SERVICE-ash tree re pollared",24/10/2022 00:00:00,"268079",250,"PA0222","PARKIN & PARKER TREE SPECIALISTS",26/9/2022 00:00:00,30/10/2022 00:00:00,"P07-2023"
,"LEE VALLEY CAMPSITE","PREMISES RELATED EXPENDITURE","BUILDING REPAIRS & MAINTENANCE","2222","P119315-SERVICE-3x willow re- pollared",24/10/2022 00:00:00,"268079",650,"PA0222","PARKIN & PARKER TREE SPECIALISTS",26/9/2022 00:00:00,30/10/2022 00:00:00,"P07-2023"
"P&V","MYDDELTON HOUSE GARDENS","PREMISES RELATED EXPENDITURE","BUILDING REPAIRS & MAINTENANCE","2222","P119735-SERVICE-Postcrete",18/10/2022 00:00:00,"267876",21.33,"BQ0164","TRADE UK ACCOUNT",26/9/2022 00:00:00,30/10/2022 00:00:00,"P07-2023"
"P&V","MYDDELTON HOUSE GARDENS","PREMISES RELATED EXPENDITURE","BUILDING REPAIRS & MAINTENANCE","2222","P119837-SERVICE-Repair Japanese Shelter at Myddelton House Ga",26/10/2022 00:00:00,"268153",1557,"GA0278","THE GARDEN TRELLIS COMPANY LTD",26/9/2022 00:00:00,30/10/2022 00:00:00,"P07-2023"
"P&V","ABBEY GARDENS","PREMISES RELATED EXPENDITURE","BUILDING REPAIRS & MAINTENANCE","2222","P119530-SERVICE-Emergency shuttering for Gate Frame at Claust",19/10/2022 00:00:00,"267931",300,"BE0258","BETWEEN TIME LIMITED",26/9/2022 00:00:00,30/10/2022 00:00:00,"P07-2023"
,"LV LEISURE CENTRE CAMPSITE","PREMISES RELATED EXPENDITURE","BUILDING REPAIRS & MAINTENANCE","2222","P119798-SERVICE-Emergency led light",24/10/2022 00:00:00,"267905",152,"BR0018","BRADSHAW ELECTRICAL LIMITED",26/9/2022 00:00:00,30/10/2022 00:00:00,"P07-2023"
,"LEE VALLEY WHITE WATER CENTRE","PREMISES RELATED EXPENDITURE","BUILDING REPAIRS & MAINTENANCE","2222","P116549-SERVICE-Quote:  2022-008 Replace 300kg winch with 500",27/10/2022 00:00:00,"268240",2144.73,"RO0212","ROTREX GROUP LIMITED",26/9/2022 00:00:00,30/10/2022 00:00:00,"P07-2023"
"P&V","GUNPOWDER PARK","SUPPLIES AND SERVICES","FENCES/GATES ETC.","2231","P119440-SERVICE-Adjust Gate at Rammey Marsh",10/10/2022 00:00:00,"267638",187.5,"LW0268","LWC ENGINEERING LIMITED",26/9/2022 00:00:00,30/10/2022 00:00:00,"P07-2023"
"P&V","RIVER LEE COUNTRY PARK","SUPPLIES AND SERVICES","FENCES/GATES ETC.","2231","P118023-SERVICE-Stock Fencing along Tow Path at Silvermeade",11/10/2022 00:00:00,"267708",4153.88,"SK0678","SKYESAFE ESTATE MANAGEMENT LTD",26/9/2022 00:00:00,30/10/2022 00:00:00,"P07-2023"
"P&V","RIVER LEE COUNTRY PARK","SUPPLIES AND SERVICES","FENCES/GATES ETC.","2231","P119516-SERVICE-Fence Repairs - Goat Enclosure",18/10/2022 00:00:00,"267709",887.4,"SK0678","SKYESAFE ESTATE MANAGEMENT LTD",26/9/2022 00:00:00,30/10/2022 00:00:00,"P07-2023"
"P&V","RIVER LEE COUNTRY PARK","SUPPLIES AND SERVICES","FENCES/GATES ETC.","2231","P119731-SERVICE-100x 1.8m x 75 Round Posts",30/10/2022 00:00:00,"268237",173.91,"TI0164","414 TIMBER & FENCING",26/9/2022 00:00:00,30/10/2022 00:00:00,"P07-2023"
"P&V","RIVER LEE COUNTRY PARK","SUPPLIES AND SERVICES","FENCES/GATES ETC.","2231","P119731-SERVICE-100x 1.8m x 75 Round Posts",30/10/2022 00:00:00,"268314",167.09,"TI0164","414 TIMBER & FENCING",26/9/2022 00:00:00,30/10/2022 00:00:00,"P07-2023"
,"LEE VALLEY WATERWORKS CENTRE","EXPENDITURE FROM REPAIRS FUND","EXPENDITURE FROM REPAIRS FUND","2240","P119362-SERVICE-One hour on site",3/10/2022 00:00:00,"267357",270,"GU0198","GUARDIAN INDUSTRIAL DOORS LIMITED",26/9/2022 00:00:00,30/10/2022 00:00:00,"P07-2023"
,"LEE VALLEY WATERWORKS CENTRE","EXPENDITURE FROM REPAIRS FUND","EXPENDITURE FROM REPAIRS FUND","2240","P119362-SERVICE-Emergency Call out following break in to Wate",3/10/2022 00:00:00,"267357",120,"GU0198","GUARDIAN INDUSTRIAL DOORS LIMITED",26/9/2022 00:00:00,30/10/2022 00:00:00,"P07-2023"
"P&V","MYDDELTON HOUSE GARDENS","EXPENDITURE FROM REPAIRS FUND","EXPENDITURE FROM REPAIRS FUND","2240","P116396-SERVICE-boiler & low loss header issue",25/10/2022 00:00:00,"267877",928,"GI0137","R & P GIBBS LIMITED",26/9/2022 00:00:00,30/10/2022 00:00:00,"P07-2023"
"P&V","MYDDELTON HOUSE GARDENS","EXPENDITURE FROM REPAIRS FUND","EXPENDITURE FROM REPAIRS FUND","2240","P116394-SERVICE-Heating system Dirt Separators",25/10/2022 00:00:00,"267878",982.67,"GI0137","R & P GIBBS LIMITED",26/9/2022 00:00:00,30/10/2022 00:00:00,"P07-2023"
"CEO","COMMERCIAL ACCOMMODATION","PREMISES RELATED EXPENDITURE","EAST HALE ALLOTMENTS","2261","P119611-SERVICE-September Grass Cut",18/10/2022 00:00:00,"267516",370,"GL0214","GLENDALE GROUNDS MANAGEMENT LIMITED",26/9/2022 00:00:00,30/10/2022 00:00:00,"P07-2023"
"CEO","COMMERCIAL ACCOMMODATION","PREMISES RELATED EXPENDITURE","EAST HALE ALLOTMENTS","2261","P117652-SERVICE-Allotment Bins",18/10/2022 00:00:00,"267716",137.92,"CL0037","VEOLIA ES (UK) LTD",26/9/2022 00:00:00,30/10/2022 00:00:00,"P07-2023"
"CEO","RESIDENTIAL ACCOMMODATION","PREMISES RELATED EXPENDITURE","ENERGY COSTS (ELECTRICITY)","2332","BRITISH GAS TRADING LTD",10/10/2022 00:00:00,"267317",9.45,"BR0654","BRITISH GAS TRADING LTD",26/9/2022 00:00:00,30/10/2022 00:00:00,"P07-2023"
"CEO","COMMERCIAL ACCOMMODATION","PREMISES RELATED EXPENDITURE","ENERGY COSTS (ELECTRICITY)","2332","SEPTEMBER 2022",18/10/2022 00:00:00,"267703",94.88,"EO0398","E-ON NEXT ENERGY LTD",26/9/2022 00:00:00,30/10/2022 00:00:00,"P07-2023"
"CEO","COMMERCIAL ACCOMMODATION","PREMISES RELATED EXPENDITURE","ENERGY COSTS (ELECTRICITY)","2332","SEPTEMBER 2022",18/10/2022 00:00:00,"267704",23.33,"EO0398","E-ON NEXT ENERGY LTD",26/9/2022 00:00:00,30/10/2022 00:00:00,"P07-2023"
"CEO","COMMERCIAL ACCOMMODATION","PREMISES RELATED EXPENDITURE","ENERGY COSTS (ELECTRICITY)","2332","SEPTEMBER 2022",30/10/2022 00:00:00,"267890",23.76,"EO0398","E-ON NEXT ENERGY LTD",26/9/2022 00:00:00,30/10/2022 00:00:00,"P07-2023"
"CEO","COMMERCIAL ACCOMMODATION","PREMISES RELATED EXPENDITURE","ENERGY COSTS (ELECTRICITY)","2332","E-ON NEXT ENERGY LTD",30/10/2022 00:00:00,"267920",-66,"EO0398","E-ON NEXT ENERGY LTD",26/9/2022 00:00:00,30/10/2022 00:00:00,"P07-2023"
"CEO","COMMERCIAL ACCOMMODATION","PREMISES RELATED EXPENDITURE","ENERGY COSTS (ELECTRICITY)","2332","E-ON NEXT ENERGY LTD",30/10/2022 00:00:00,"267920",3.67,"EO0398","E-ON NEXT ENERGY LTD",26/9/2022 00:00:00,30/10/2022 00:00:00,"P07-2023"
"CEO","COMMERCIAL ACCOMMODATION","PREMISES RELATED EXPENDITURE","ENERGY COSTS (ELECTRICITY)","2332","E-ON NEXT ENERGY LTD",30/10/2022 00:00:00,"267920",9.67,"EO0398","E-ON NEXT ENERGY LTD",26/9/2022 00:00:00,30/10/2022 00:00:00,"P07-2023"
,"LEE VALLEY WATERWORKS CENTRE","PREMISES RELATED EXPENDITURE","ENERGY COSTS (ELECTRICITY)","2332","SEPTEMBER 2022",30/10/2022 00:00:00,"267927",531.58,"NP0123","NPOWER LIMITED",26/9/2022 00:00:00,30/10/2022 00:00:00,"P07-2023"
"P&V","CAR PARK INCOME","PREMISES RELATED EXPENDITURE","ENERGY COSTS (ELECTRICITY)","2332","SEPTEMBER 2022",19/10/2022 00:00:00,"267925",29.59,"NP0123","NPOWER LIMITED",26/9/2022 00:00:00,30/10/2022 00:00:00,"P07-2023"
"P&V","CAR PARK INCOME","PREMISES RELATED EXPENDITURE","ENERGY COSTS (ELECTRICITY)","2332","SEPTEMBER 2022",19/10/2022 00:00:00,"267926",21.92,"NP0123","NPOWER LIMITED",26/9/2022 00:00:00,30/10/2022 00:00:00,"P07-2023"
,"LEE VALLEY VELOPARK","PREMISES RELATED EXPENDITURE","ENERGY COSTS (ELECTRICITY)","2332","MARCH-JUNE 2022",12/10/2022 00:00:00,"267080",2.84,"ED0321","EDF ENERGY CUSTOMERS PLC",26/9/2022 00:00:00,30/10/2022 00:00:00,"P07-2023"
,"LEE VALLEY VELOPARK","PREMISES RELATED EXPENDITURE","ENERGY COSTS (ELECTRICITY)","2332","MARCH-JUNE 2022",12/10/2022 00:00:00,"267080",768.88,"ED0321","EDF ENERGY CUSTOMERS PLC",26/9/2022 00:00:00,30/10/2022 00:00:00,"P07-2023"
,"LEE VALLEY VELOPARK","PREMISES RELATED EXPENDITURE","ENERGY COSTS (ELECTRICITY)","2332","JUNE-SEPTEMBER 2022",12/10/2022 00:00:00,"267081",2.99,"ED0321","EDF ENERGY CUSTOMERS PLC",26/9/2022 00:00:00,30/10/2022 00:00:00,"P07-2023"
,"LEE VALLEY VELOPARK","PREMISES RELATED EXPENDITURE","ENERGY COSTS (ELECTRICITY)","2332","JUNE-SEPTEMBER 2022",12/10/2022 00:00:00,"267081",652.11,"ED0321","EDF ENERGY CUSTOMERS PLC",26/9/2022 00:00:00,30/10/2022 00:00:00,"P07-2023"
,"LEE VALLEY VELOPARK","PREMISES RELATED EXPENDITURE","ENERGY COSTS (ELECTRICITY)","2332","19/05/22-18/08/22",11/10/2022 00:00:00,"267122",16.41,"ED0321","EDF ENERGY CUSTOMERS PLC",26/9/2022 00:00:00,30/10/2022 00:00:00,"P07-2023"
,"LEE VALLEY VELOPARK","PREMISES RELATED EXPENDITURE","ENERGY COSTS (ELECTRICITY)","2332","19/02/22-18/05/22",11/10/2022 00:00:00,"267746",12.57,"ED0321","EDF ENERGY CUSTOMERS PLC",26/9/2022 00:00:00,30/10/2022 00:00:00,"P07-2023"
,"LV LEISURE CENTRE CAMPSITE","PREMISES RELATED EXPENDITURE","ENERGY COSTS (ELECTRICITY)","2332","SEPTEMBER 2022",24/10/2022 00:00:00,"267928",4973.74,"NP0123","NPOWER LIMITED",26/9/2022 00:00:00,30/10/2022 00:00:00,"P07-2023"
"P&V","MYDDELTON HOUSE","PREMISES RELATED EXPENDITURE","ENERGY COSTS (GAS)","2333","SEPTEMBER 2022",18/10/2022 00:00:00,"267874",312.1,"KE0007","KENT COUNTY COUNCIL (KCS)",26/9/2022 00:00:00,30/10/2022 00:00:00,"P07-2023"
"CEO","COMMERCIAL ACCOMMODATION","PREMISES RELATED EXPENDITURE","ENERGY COSTS (GAS)","2333","BRITISH GAS TRADING LTD",30/10/2022 00:00:00,"268081",78.91,"BR0030","BRITISH GAS TRADING LTD",26/9/2022 00:00:00,30/10/2022 00:00:00,"P07-2023"
"CEO","COMMERCIAL ACCOMMODATION","PREMISES RELATED EXPENDITURE","ENERGY COSTS (GAS)","2333","BRITISH GAS TRADING LTD",30/10/2022 00:00:00,"268117",9.38,"BR0654","BRITISH GAS TRADING LTD",26/9/2022 00:00:00,30/10/2022 00:00:00,"P07-2023"
,"LEE VALLEY MARINA SPRINGFIELD","PREMISES RELATED EXPENDITURE","ENERGY COSTS (GAS)","2333","AUGUST 2022",3/10/2022 00:00:00,"266945",81.83,"KE0007","KENT COUNTY COUNCIL (KCS)",26/9/2022 00:00:00,30/10/2022 00:00:00,"P07-2023"
,"LEE VALLEY MARINA SPRINGFIELD","PREMISES RELATED EXPENDITURE","ENERGY COSTS (GAS)","2333","SEPTEMBER 2022",26/10/2022 00:00:00,"267791",108.05,"KE0007","KENT COUNTY COUNCIL (KCS)",26/9/2022 00:00:00,30/10/2022 00:00:00,"P07-2023"
,"LEE VALLEY MARINA STANSTEAD","PREMISES RELATED EXPENDITURE","ENERGY COSTS (GAS)","2333","SEPTEMBER 2022",18/10/2022 00:00:00,"267794",91.06,"KE0007","KENT COUNTY COUNCIL (KCS)",26/9/2022 00:00:00,30/10/2022 00:00:00,"P07-2023"
,"LEE VALLEY MARINA STANSTEAD","PREMISES RELATED EXPENDITURE","ENERGY COSTS (GAS)","2333","SEPTEMBER 2022",18/10/2022 00:00:00,"267796",72.27,"KE0007","KENT COUNTY COUNCIL (KCS)",26/9/2022 00:00:00,30/10/2022 00:00:00,"P07-2023"
,"LEE VALLEY WATERWORKS CENTRE","PREMISES RELATED EXPENDITURE","ENERGY COSTS (GAS)","2333","AUGUST 2022",3/10/2022 00:00:00,"266944",177.68,"KE0007","KENT COUNTY COUNCIL (KCS)",26/9/2022 00:00:00,30/10/2022 00:00:00,"P07-2023"
,"LEE VALLEY WATERWORKS CENTRE","PREMISES RELATED EXPENDITURE","ENERGY COSTS (GAS)","2333","SEPTEMBER 2022",18/10/2022 00:00:00,"267795",238.55,"KE0007","KENT COUNTY COUNCIL (KCS)",26/9/2022 00:00:00,30/10/2022 00:00:00,"P07-2023"
,"LEE VALLEY CAMPSITE","PREMISES RELATED EXPENDITURE","ENERGY COSTS (GAS)","2333","SEPTEMBER 2022",18/10/2022 00:00:00,"267792",302.68,"KE0007","KENT COUNTY COUNCIL (KCS)",26/9/2022 00:00:00,30/10/2022 00:00:00,"P07-2023"
,"LEE VALLEY CARAVAN PARK","PREMISES RELATED EXPENDITURE","ENERGY COSTS (GAS)","2333","P119413-SERVICE-3 x 47 propane gas bottles",10/10/2022 00:00:00,"267576",238.65,"CA0006","CALOR GAS LIMITED",26/9/2022 00:00:00,30/10/2022 00:00:00,"P07-2023"
,"LEE VALLEY CARAVAN PARK","PREMISES RELATED EXPENDITURE","ENERGY COSTS (GAS)","2333","P119769-SERVICE-Gas Tanks Refillled",19/10/2022 00:00:00,"267924",2054.8,"AV0327","AVANTI GAS LIMITED",26/9/2022 00:00:00,30/10/2022 00:00:00,"P07-2023"
"P&V","GUNPOWDER PARK","PREMISES RELATED EXPENDITURE","ENERGY COSTS (GAS)","2333","AUGUST 2022",30/10/2022 00:00:00,"266946",46.16,"KE0007","KENT COUNTY COUNCIL (KCS)",26/9/2022 00:00:00,30/10/2022 00:00:00,"P07-2023"
"P&V","GUNPOWDER PARK","PREMISES RELATED EXPENDITURE","ENERGY COSTS (GAS)","2333","SEPTEMBER 2022",30/10/2022 00:00:00,"267886",45.87,"KE0007","KENT COUNTY COUNCIL (KCS)",26/9/2022 00:00:00,30/10/2022 00:00:00,"P07-2023"
,"LV LEISURE CENTRE CAMPSITE","PREMISES RELATED EXPENDITURE","ENERGY COSTS (GAS)","2333","SEPTEMBER 2022",18/10/2022 00:00:00,"267793",495.45,"KE0007","KENT COUNTY COUNCIL (KCS)",26/9/2022 00:00:00,30/10/2022 00:00:00,"P07-2023"
"P&V","MYDDELTON HOUSE","PREMISES RELATED EXPENDITURE","BUSINESS RATES","2444","2021/2022",24/10/2022 00:00:00,"268101",-3064.32,"EN0035","LONDON BOROUGH OF ENFIELD",26/9/2022 00:00:00,30/10/2022 00:00:00,"P07-2023"
,"LEE VALLEY VELOPARK","PREMISES RELATED EXPENDITURE","BUSINESS RATES","2444","2021/22",28/9/2022 00:00:00,"267358",807.77,"NE0038","LONDON BOROUGH OF NEWHAM",26/9/2022 00:00:00,30/10/2022 00:00:00,"P07-2023"
"P&V","LEE VALLEY FARM HOLYFIELDHALL","PREMISES RELATED EXPENDITURE","COUNCIL TAX","2445","EPPING FOREST DISTRICT COUNCIL",26/10/2022 00:00:00,"267919",278.37,"EP0025","EPPING FOREST DISTRICT COUNCIL",26/9/2022 00:00:00,30/10/2022 00:00:00,"P07-2023"
"CEO","RESIDENTIAL ACCOMMODATION","PREMISES RELATED EXPENDITURE","PROPERTY MANAGEMT/LETTING FEES","2447","P119610-SERVICE-2 Bungalow - 6 Month Management Fee",18/10/2022 00:00:00,"267337",897,"WA0315","PAUL WALLACE ESTATE AGENTS",26/9/2022 00:00:00,30/10/2022 00:00:00,"P07-2023"
"P&V","MYDDELTON HOUSE","PREMISES RELATED EXPENDITURE","WATER","2555","CASTLE WATER LIMITED",5/10/2022 00:00:00,"267518",746.04,"CA0625","CASTLE WATER LIMITED",26/9/2022 00:00:00,30/10/2022 00:00:00,"P07-2023"
"P&V","MYDDELTON HOUSE","PREMISES RELATED EXPENDITURE","WATER","2555","OCTOBER 2022",26/10/2022 00:00:00,"268113",2206.78,"CA0625","CASTLE WATER LIMITED",26/9/2022 00:00:00,30/10/2022 00:00:00,"P07-2023"
,"LEE VALLEY MARINA SPRINGFIELD","PREMISES RELATED EXPENDITURE","WATER","2555","SEPTEMBER 2022",26/10/2022 00:00:00,"267916",974.99,"CA0625","CASTLE WATER LIMITED",26/9/2022 00:00:00,30/10/2022 00:00:00,"P07-2023"
,"LEE VALLEY MARINA SPRINGFIELD","PREMISES RELATED EXPENDITURE","WATER","2555","SEPTEMBER 2022",26/10/2022 00:00:00,"267916",1426.64,"CA0625","CASTLE WATER LIMITED",26/9/2022 00:00:00,30/10/2022 00:00:00,"P07-2023"
,"LEE VALLEY MARINA SPRINGFIELD","PREMISES RELATED EXPENDITURE","WATER","2555","OCTOBER 2022",26/10/2022 00:00:00,"268114",1448.88,"CA0625","CASTLE WATER LIMITED",26/9/2022 00:00:00,30/10/2022 00:00:00,"P07-2023"
,"LEE VALLEY MARINA SPRINGFIELD","PREMISES RELATED EXPENDITURE","WATER","2555","OCTOBER 2022",26/10/2022 00:00:00,"268114",991.63,"CA0625","CASTLE WATER LIMITED",26/9/2022 00:00:00,30/10/2022 00:00:00,"P07-2023"
,"LEE VALLEY MARINA STANSTEAD","PREMISES RELATED EXPENDITURE","WATER","2555","CASTLE WATER LIMITED",10/10/2022 00:00:00,"267524",64.03,"CA0625","CASTLE WATER LIMITED",26/9/2022 00:00:00,30/10/2022 00:00:00,"P07-2023"
,"LEE VALLEY MARINA STANSTEAD","PREMISES RELATED EXPENDITURE","WATER","2555","CASTLE WATER LIMITED",10/10/2022 00:00:00,"267524",58.16,"CA0625","CASTLE WATER LIMITED",26/9/2022 00:00:00,30/10/2022 00:00:00,"P07-2023"
,"LEE VALLEY MARINA STANSTEAD","PREMISES RELATED EXPENDITURE","WATER","2555","CASTLE WATER LIMITED",30/10/2022 00:00:00,"268068",132.54,"CA0625","CASTLE WATER LIMITED",26/9/2022 00:00:00,30/10/2022 00:00:00,"P07-2023"
,"LEE VALLEY MARINA STANSTEAD","PREMISES RELATED EXPENDITURE","WATER","2555","CASTLE WATER LIMITED",30/10/2022 00:00:00,"268068",141.56,"CA0625","CASTLE WATER LIMITED",26/9/2022 00:00:00,30/10/2022 00:00:00,"P07-2023"
,"LEE VALLEY MARINA STANSTEAD","PREMISES RELATED EXPENDITURE","WATER","2555","CASTLE WATER LIMITED",30/10/2022 00:00:00,"268116",302.84,"CA0625","CASTLE WATER LIMITED",26/9/2022 00:00:00,30/10/2022 00:00:00,"P07-2023"
,"LEE VALLEY WATERWORKS CENTRE","PREMISES RELATED EXPENDITURE","WATER","2555","SEPTEMBER 2022",18/10/2022 00:00:00,"267527",94.69,"CA0625","CASTLE WATER LIMITED",26/9/2022 00:00:00,30/10/2022 00:00:00,"P07-2023"
,"LEE VALLEY WATERWORKS CENTRE","PREMISES RELATED EXPENDITURE","WATER","2555","OCTOBER 2022",24/10/2022 00:00:00,"268085",98.96,"CA0625","CASTLE WATER LIMITED",26/9/2022 00:00:00,30/10/2022 00:00:00,"P07-2023"
,"LEE VALLEY CAMPSITE","PREMISES RELATED EXPENDITURE","WATER","2555","CASTLE WATER LIMITED",10/10/2022 00:00:00,"267526",930.57,"CA0625","CASTLE WATER LIMITED",26/9/2022 00:00:00,30/10/2022 00:00:00,"P07-2023"
,"LEE VALLEY CAMPSITE","PREMISES RELATED EXPENDITURE","WATER","2555","CASTLE WATER LIMITED",10/10/2022 00:00:00,"267526",628.75,"CA0625","CASTLE WATER LIMITED",26/9/2022 00:00:00,30/10/2022 00:00:00,"P07-2023"
,"LEE VALLEY CAMPSITE","PREMISES RELATED EXPENDITURE","WATER","2555","OCTOBER 2022",24/10/2022 00:00:00,"268067",1610.93,"CA0625","CASTLE WATER LIMITED",26/9/2022 00:00:00,30/10/2022 00:00:00,"P07-2023"
,"LEE VALLEY CARAVAN PARK","PREMISES RELATED EXPENDITURE","WATER","2555","CASTLE WATER LIMITED",5/10/2022 00:00:00,"267525",1569.89,"CA0625","CASTLE WATER LIMITED",26/9/2022 00:00:00,30/10/2022 00:00:00,"P07-2023"
,"LEE VALLEY CARAVAN PARK","PREMISES RELATED EXPENDITURE","WATER","2555","CASTLE WATER LIMITED",5/10/2022 00:00:00,"267525",2376.02,"CA0625","CASTLE WATER LIMITED",26/9/2022 00:00:00,30/10/2022 00:00:00,"P07-2023"
"P&V","EAST INDIA DOCK AND BOW CREEK","PREMISES RELATED EXPENDITURE","WATER","2555","CASTLE WATER LIMITED",10/10/2022 00:00:00,"267691",13.65,"CA0625","CASTLE WATER LIMITED",26/9/2022 00:00:00,30/10/2022 00:00:00,"P07-2023"
"P&V","GUNPOWDER PARK","PREMISES RELATED EXPENDITURE","WATER","2555","AUG 2022 - JAN 2023",19/10/2022 00:00:00,"267519",200.08,"CA0625","CASTLE WATER LIMITED",26/9/2022 00:00:00,30/10/2022 00:00:00,"P07-2023"
"P&V","RIVER LEE COUNTRY PARK","PREMISES RELATED EXPENDITURE","WATER","2555","PERIOD: 01/08/22-31/01/23",4/10/2022 00:00:00,"267520",901.08,"CA0625","CASTLE WATER LIMITED",26/9/2022 00:00:00,30/10/2022 00:00:00,"P07-2023"
"P&V","RIVER LEE COUNTRY PARK","PREMISES RELATED EXPENDITURE","WATER","2555","CASTLE WATER LIMITED",10/10/2022 00:00:00,"267693",47.11,"CA0625","CASTLE WATER LIMITED",26/9/2022 00:00:00,30/10/2022 00:00:00,"P07-2023"
"P&V","FORMER LV LIDO SITE","PREMISES RELATED EXPENDITURE","WATER","2555","JANUARY-MARCH 2021",3/10/2022 00:00:00,"263497",591.19,"CA0625","CASTLE WATER LIMITED",26/9/2022 00:00:00,30/10/2022 00:00:00,"P07-2023"
"P&V","FORMER LV LIDO SITE","PREMISES RELATED EXPENDITURE","WATER","2555","JANUARY-MARCH 2021",3/10/2022 00:00:00,"263497",57.76,"CA0625","CASTLE WATER LIMITED",26/9/2022 00:00:00,30/10/2022 00:00:00,"P07-2023"
"P&V","FORMER LV LIDO SITE","PREMISES RELATED EXPENDITURE","WATER","2555","APRIL 2021-MARCH 2022",3/10/2022 00:00:00,"263498",337.64,"CA0625","CASTLE WATER LIMITED",26/9/2022 00:00:00,30/10/2022 00:00:00,"P07-2023"
"P&V","FORMER LV LIDO SITE","PREMISES RELATED EXPENDITURE","WATER","2555","APRIL 2021-MARCH 2022",3/10/2022 00:00:00,"263498",2477.09,"CA0625","CASTLE WATER LIMITED",26/9/2022 00:00:00,30/10/2022 00:00:00,"P07-2023"
"P&V","FORMER LV LIDO SITE","PREMISES RELATED EXPENDITURE","WATER","2555","APRIL-AUGUST 2022",3/10/2022 00:00:00,"263499",106.06,"CA0625","CASTLE WATER LIMITED",26/9/2022 00:00:00,30/10/2022 00:00:00,"P07-2023"
"P&V","FORMER LV LIDO SITE","PREMISES RELATED EXPENDITURE","WATER","2555","APRIL-AUGUST 2022",3/10/2022 00:00:00,"263499",996.74,"CA0625","CASTLE WATER LIMITED",26/9/2022 00:00:00,30/10/2022 00:00:00,"P07-2023"
"P&V","FORMER LV LIDO SITE","PREMISES RELATED EXPENDITURE","WATER","2555","SEPTEMBER 2022 - FEBRUARY 2023",26/10/2022 00:00:00,"268112",1100.53,"CA0625","CASTLE WATER LIMITED",26/9/2022 00:00:00,30/10/2022 00:00:00,"P07-2023"
"P&V","FORMER LV LIDO SITE","PREMISES RELATED EXPENDITURE","WATER","2555","SEPTEMBER 2022 - FEBRUARY 2023",26/10/2022 00:00:00,"268112",366.07,"CA0625","CASTLE WATER LIMITED",26/9/2022 00:00:00,30/10/2022 00:00:00,"P07-2023"
"P&V","FORMER LV LIDO SITE","PREMISES RELATED EXPENDITURE","WATER","2555","SEPTEMBER 2022 - FEBRUARY 2023",26/10/2022 00:00:00,"268112",229.39,"CA0625","CASTLE WATER LIMITED",26/9/2022 00:00:00,30/10/2022 00:00:00,"P07-2023"
,"LV LEISURE CENTRE CAMPSITE","PREMISES RELATED EXPENDITURE","WATER","2555","SEPTEMBER 2022",18/10/2022 00:00:00,"267692",33.13,"CA0625","CASTLE WATER LIMITED",26/9/2022 00:00:00,30/10/2022 00:00:00,"P07-2023"
,"LV LEISURE CENTRE CAMPSITE","PREMISES RELATED EXPENDITURE","WATER","2555","SEPTEMBER 2022",18/10/2022 00:00:00,"267692",34.09,"CA0625","CASTLE WATER LIMITED",26/9/2022 00:00:00,30/10/2022 00:00:00,"P07-2023"
,"LV LEISURE CENTRE CAMPSITE","PREMISES RELATED EXPENDITURE","WATER","2555","SEPTEMBER 2022",19/10/2022 00:00:00,"267915",1215.11,"CA0625","CASTLE WATER LIMITED",26/9/2022 00:00:00,30/10/2022 00:00:00,"P07-2023"
,"LV LEISURE CENTRE CAMPSITE","PREMISES RELATED EXPENDITURE","WATER","2555","SEPTEMBER 2022",19/10/2022 00:00:00,"267915",1421.51,"CA0625","CASTLE WATER LIMITED",26/9/2022 00:00:00,30/10/2022 00:00:00,"P07-2023"
,"LEE VALLEY MARINA SPRINGFIELD","PREMISES RELATED EXPENDITURE","CLEANING & DOMESTIC SUPPLIES","2666","P119045-SERVICE-Site cleaning for July,Aug,Sept 2022",3/10/2022 00:00:00,"266787",972.31,"MA0015","MAYFAIR CLEANING COMPANY LIMITED",26/9/2022 00:00:00,30/10/2022 00:00:00,"P07-2023"
,"LEE VALLEY MARINA SPRINGFIELD","PREMISES RELATED EXPENDITURE","CLEANING & DOMESTIC SUPPLIES","2666","P117560-SERVICE-Sanitary Disposal/Dust Mats,Eco Shield",3/10/2022 00:00:00,"267150",191.64,"PE0015","PHS GROUP PLC",26/9/2022 00:00:00,30/10/2022 00:00:00,"P07-2023"
,"LEE VALLEY MARINA SPRINGFIELD","PREMISES RELATED EXPENDITURE","CLEANING & DOMESTIC SUPPLIES","2666","P119045-SERVICE-Site cleaning for July,Aug,Sept 2022",5/10/2022 00:00:00,"267498",972.31,"MA0015","MAYFAIR CLEANING COMPANY LIMITED",26/9/2022 00:00:00,30/10/2022 00:00:00,"P07-2023"
,"LEE VALLEY MARINA SPRINGFIELD","PREMISES RELATED EXPENDITURE","CLEANING & DOMESTIC SUPPLIES","2666","P119549-SERVICE-To supply items as requested",11/10/2022 00:00:00,"267652",283.16,"HY0043","HYGIENE SYSTEMS LTD",26/9/2022 00:00:00,30/10/2022 00:00:00,"P07-2023"
,"LEE VALLEY MARINA SPRINGFIELD","PREMISES RELATED EXPENDITURE","CLEANING & DOMESTIC SUPPLIES","2666","P117560-SERVICE-Sanitary Disposal/Dust Mats,Eco Shield",26/10/2022 00:00:00,"268093",191.64,"PE0015","PHS GROUP PLC",26/9/2022 00:00:00,30/10/2022 00:00:00,"P07-2023"
,"LEE VALLEY MARINA STANSTEAD","PREMISES RELATED EXPENDITURE","CLEANING & DOMESTIC SUPPLIES","2666","P119715-SERVICE-washing up liq x2",24/10/2022 00:00:00,"267938",18.16,"TH0008","JKL SOLUTIONS LTD",26/9/2022 00:00:00,30/10/2022 00:00:00,"P07-2023"
,"LEE VALLEY MARINA STANSTEAD","PREMISES RELATED EXPENDITURE","CLEANING & DOMESTIC SUPPLIES","2666","P119793-SERVICE-Tonya Cleaner (Maria away) 20/10/22",30/10/2022 00:00:00,"268083",82.5,"TR0632","TONYA RENNIE T/A TR SERVICES",26/9/2022 00:00:00,30/10/2022 00:00:00,"P07-2023"
,"LEE VALLEY CAMPSITE","PREMISES RELATED EXPENDITURE","CLEANING & DOMESTIC SUPPLIES","2666","P119600-SERVICE-green recycling bin x5",10/10/2022 00:00:00,"267552",67.95,"HY0043","HYGIENE SYSTEMS LTD",26/9/2022 00:00:00,30/10/2022 00:00:00,"P07-2023"
,"LEE VALLEY CAMPSITE","PREMISES RELATED EXPENDITURE","CLEANING & DOMESTIC SUPPLIES","2666","P119600-SERVICE-round washing up bowls x6",10/10/2022 00:00:00,"267553",10.02,"HY0043","HYGIENE SYSTEMS LTD",26/9/2022 00:00:00,30/10/2022 00:00:00,"P07-2023"
,"LEE VALLEY CAMPSITE","PREMISES RELATED EXPENDITURE","CLEANING & DOMESTIC SUPPLIES","2666","P119600-SERVICE-lemon disinfectant",10/10/2022 00:00:00,"267554",10.86,"HY0043","HYGIENE SYSTEMS LTD",26/9/2022 00:00:00,30/10/2022 00:00:00,"P07-2023"
,"LEE VALLEY CAMPSITE","PREMISES RELATED EXPENDITURE","CLEANING & DOMESTIC SUPPLIES","2666","P119600-SERVICE-blue microfible cloths",10/10/2022 00:00:00,"267554",4.38,"HY0043","HYGIENE SYSTEMS LTD",26/9/2022 00:00:00,30/10/2022 00:00:00,"P07-2023"
,"LEE VALLEY CAMPSITE","PREMISES RELATED EXPENDITURE","CLEANING & DOMESTIC SUPPLIES","2666","P119600-SERVICE-oust sachet descaler x3",10/10/2022 00:00:00,"267554",8.16,"HY0043","HYGIENE SYSTEMS LTD",26/9/2022 00:00:00,30/10/2022 00:00:00,"P07-2023"
,"LEE VALLEY CAMPSITE","PREMISES RELATED EXPENDITURE","CLEANING & DOMESTIC SUPPLIES","2666","P119600-SERVICE-dust beater",10/10/2022 00:00:00,"267554",17.96,"HY0043","HYGIENE SYSTEMS LTD",26/9/2022 00:00:00,30/10/2022 00:00:00,"P07-2023"
,"LEE VALLEY CAMPSITE","PREMISES RELATED EXPENDITURE","CLEANING & DOMESTIC SUPPLIES","2666","P119600-SERVICE-cistern blocks",10/10/2022 00:00:00,"267555",22.72,"HY0043","HYGIENE SYSTEMS LTD",26/9/2022 00:00:00,30/10/2022 00:00:00,"P07-2023"
,"LEE VALLEY CAMPSITE","PREMISES RELATED EXPENDITURE","CLEANING & DOMESTIC SUPPLIES","2666","P119600-SERVICE-bio laundry liquid",10/10/2022 00:00:00,"267555",7.02,"HY0043","HYGIENE SYSTEMS LTD",26/9/2022 00:00:00,30/10/2022 00:00:00,"P07-2023"
,"LEE VALLEY CAMPSITE","PREMISES RELATED EXPENDITURE","CLEANING & DOMESTIC SUPPLIES","2666","P119600-SERVICE-STC toilet cleaner x12",10/10/2022 00:00:00,"267555",41.64,"HY0043","HYGIENE SYSTEMS LTD",26/9/2022 00:00:00,30/10/2022 00:00:00,"P07-2023"
,"LEE VALLEY CAMPSITE","PREMISES RELATED EXPENDITURE","CLEANING & DOMESTIC SUPPLIES","2666","P119600-SERVICE-Bleach x2",10/10/2022 00:00:00,"267555",14.74,"HY0043","HYGIENE SYSTEMS LTD",26/9/2022 00:00:00,30/10/2022 00:00:00,"P07-2023"
,"LEE VALLEY CAMPSITE","PREMISES RELATED EXPENDITURE","CLEANING & DOMESTIC SUPPLIES","2666","P119600-SERVICE-spray & wipe x3",10/10/2022 00:00:00,"267555",23.97,"HY0043","HYGIENE SYSTEMS LTD",26/9/2022 00:00:00,30/10/2022 00:00:00,"P07-2023"
,"LEE VALLEY CAMPSITE","PREMISES RELATED EXPENDITURE","CLEANING & DOMESTIC SUPPLIES","2666","P119600-SERVICE-deodoriser x4",10/10/2022 00:00:00,"267555",17.12,"HY0043","HYGIENE SYSTEMS LTD",26/9/2022 00:00:00,30/10/2022 00:00:00,"P07-2023"
,"LEE VALLEY CAMPSITE","PREMISES RELATED EXPENDITURE","CLEANING & DOMESTIC SUPPLIES","2666","P119635-SERVICE-window cleaning spray x6",18/10/2022 00:00:00,"267676",9.17,"HY0043","HYGIENE SYSTEMS LTD",26/9/2022 00:00:00,30/10/2022 00:00:00,"P07-2023"
,"LEE VALLEY CARAVAN PARK","PREMISES RELATED EXPENDITURE","CLEANING & DOMESTIC SUPPLIES","2666","P119237-SERVICE-Cleaning supplies",5/10/2022 00:00:00,"267559",519.51,"HY0043","HYGIENE SYSTEMS LTD",26/9/2022 00:00:00,30/10/2022 00:00:00,"P07-2023"
,"LEE VALLEY CARAVAN PARK","PREMISES RELATED EXPENDITURE","CLEANING & DOMESTIC SUPPLIES","2666","P119493-SERVICE-Cleaning supplies",5/10/2022 00:00:00,"267560",83.22,"HY0043","HYGIENE SYSTEMS LTD",26/9/2022 00:00:00,30/10/2022 00:00:00,"P07-2023"
,"LEE VALLEY CARAVAN PARK","PREMISES RELATED EXPENDITURE","CLEANING & DOMESTIC SUPPLIES","2666","P119832-SERVICE-Cleaning Products",30/10/2022 00:00:00,"268277",153.36,"HY0043","HYGIENE SYSTEMS LTD",26/9/2022 00:00:00,30/10/2022 00:00:00,"P07-2023"
,"LV LEISURE CENTRE CAMPSITE","PREMISES RELATED EXPENDITURE","CLEANING & DOMESTIC SUPPLIES","2666","P119329-SERVICE-Cleaning supplies",11/10/2022 00:00:00,"267556",184.56,"HY0043","HYGIENE SYSTEMS LTD",26/9/2022 00:00:00,30/10/2022 00:00:00,"P07-2023"
,"LV LEISURE CENTRE CAMPSITE","PREMISES RELATED EXPENDITURE","CLEANING & DOMESTIC SUPPLIES","2666","P119074-SERVICE-Cleaning supplies",18/10/2022 00:00:00,"267557",182.47,"HY0043","HYGIENE SYSTEMS LTD",26/9/2022 00:00:00,30/10/2022 00:00:00,"P07-2023"
,"LV LEISURE CENTRE CAMPSITE","PREMISES RELATED EXPENDITURE","CLEANING & DOMESTIC SUPPLIES","2666","P119206-SERVICE-Cleaning supplies",11/10/2022 00:00:00,"267558",439.09,"HY0043","HYGIENE SYSTEMS LTD",26/9/2022 00:00:00,30/10/2022 00:00:00,"P07-2023"
,"LV LEISURE CENTRE CAMPSITE","PREMISES RELATED EXPENDITURE","CLEANING & DOMESTIC SUPPLIES","2666","P119010-SERVICE-Cleaning supplies",12/10/2022 00:00:00,"267678",97.48,"HY0043","HYGIENE SYSTEMS LTD",26/9/2022 00:00:00,30/10/2022 00:00:00,"P07-2023"
,"LV LEISURE CENTRE CAMPSITE","PREMISES RELATED EXPENDITURE","CLEANING & DOMESTIC SUPPLIES","2666","P119436-SERVICE-Cleaning supplies",11/10/2022 00:00:00,"267679",104.71,"HY0043","HYGIENE SYSTEMS LTD",26/9/2022 00:00:00,30/10/2022 00:00:00,"P07-2023"
,"LV LEISURE CENTRE CAMPSITE","PREMISES RELATED EXPENDITURE","CLEANING & DOMESTIC SUPPLIES","2666","P119680-SERVICE-HSL",24/10/2022 00:00:00,"267940",344.55,"HY0043","HYGIENE SYSTEMS LTD",26/9/2022 00:00:00,30/10/2022 00:00:00,"P07-2023"
"P&V","LEE VALLEY FARM HOLYFIELDHALL","TRANSPORT RELATED EXPENDITURE","TRANSPORT RUNNING EXPENSES","3333","P119557-SERVICE-Parts",10/10/2022 00:00:00,"267246",99,"RW0257","R. W. CRAWFORD AGRICULTURAL MACHINERY LTD",26/9/2022 00:00:00,30/10/2022 00:00:00,"P07-2023"
"P&V","LEE VALLEY FARM HOLYFIELDHALL","TRANSPORT RELATED EXPENDITURE","TRANSPORT RUNNING EXPENSES","3333","P117596-SERVICE-Puncture Repair",10/10/2022 00:00:00,"267499",104.5,"KB0006","KB TYRES LTD",26/9/2022 00:00:00,30/10/2022 00:00:00,"P07-2023"
"P&V","LEE VALLEY FARM HOLYFIELDHALL","TRANSPORT RELATED EXPENDITURE","TRANSPORT RUNNING EXPENSES","3333","P119618-SERVICE-Gas Oil",10/10/2022 00:00:00,"267562",5197,"TE0052","CERTAS ENERGY UK LIMITED",26/9/2022 00:00:00,30/10/2022 00:00:00,"P07-2023"
"P&V","LEE VALLEY FARM HOLYFIELDHALL","TRANSPORT RELATED EXPENDITURE","TRANSPORT RUNNING EXPENSES","3333","P119191-SERVICE-Various Parts",10/10/2022 00:00:00,"267686",704.92,"BO0292","R C BOREHAM & CO LTD",26/9/2022 00:00:00,30/10/2022 00:00:00,"P07-2023"
"P&V","LEE VALLEY FARM HOLYFIELDHALL","TRANSPORT RELATED EXPENDITURE","TRANSPORT RUNNING EXPENSES","3333","P119557-SERVICE-Parts",12/10/2022 00:00:00,"267738",99,"RW0257","R. W. CRAWFORD AGRICULTURAL MACHINERY LTD",26/9/2022 00:00:00,30/10/2022 00:00:00,"P07-2023"
"P&V","LEE VALLEY FARM HOLYFIELDHALL","TRANSPORT RELATED EXPENDITURE","TRANSPORT RUNNING EXPENSES","3333","P119557-SERVICE-Parts",12/10/2022 00:00:00,"267739",73.01,"RW0257","R. W. CRAWFORD AGRICULTURAL MACHINERY LTD",26/9/2022 00:00:00,30/10/2022 00:00:00,"P07-2023"
"P&V","LEE VALLEY FARM HOLYFIELDHALL","TRANSPORT RELATED EXPENDITURE","TRANSPORT RUNNING EXPENSES","3333","P117603-SERVICE-Tractor Spares",24/10/2022 00:00:00,"267800",22.4,"OL0059","OLIVER LANDPOWER LIMITED",26/9/2022 00:00:00,30/10/2022 00:00:00,"P07-2023"
"P&V","LEE VALLEY FARM HOLYFIELDHALL","TRANSPORT RELATED EXPENDITURE","TRANSPORT RUNNING EXPENSES","3333","P119447-SERVICE-Parts",30/10/2022 00:00:00,"267802",193.52,"OL0001","OLIVER AGRICULTURE LTD",26/9/2022 00:00:00,30/10/2022 00:00:00,"P07-2023"
"P&V","LEE VALLEY FARM HOLYFIELDHALL","TRANSPORT RELATED EXPENDITURE","TRANSPORT RUNNING EXPENSES","3333","P119447-SERVICE-Parts",24/10/2022 00:00:00,"267803",330,"OL0001","OLIVER AGRICULTURE LTD",26/9/2022 00:00:00,30/10/2022 00:00:00,"P07-2023"
"P&V","LEE VALLEY FARM HOLYFIELDHALL","TRANSPORT RELATED EXPENDITURE","TRANSPORT RUNNING EXPENSES","3333","P119557-SERVICE-Parts",24/10/2022 00:00:00,"267987",290,"RW0257","R. W. CRAWFORD AGRICULTURAL MACHINERY LTD",26/9/2022 00:00:00,30/10/2022 00:00:00,"P07-2023"
"P&V","LEE VALLEY FARM HOLYFIELDHALL","TRANSPORT RELATED EXPENDITURE","TRANSPORT RUNNING EXPENSES","3333","P119869-SERVICE-Tyre Repairs",30/10/2022 00:00:00,"268063",65,"KB0006","KB TYRES LTD",26/9/2022 00:00:00,30/10/2022 00:00:00,"P07-2023"
"P&V","LEE VALLEY FARM HOLYFIELDHALL","TRANSPORT RELATED EXPENDITURE","TRANSPORT RUNNING EXPENSES","3333","P119557-SERVICE-Parts",30/10/2022 00:00:00,"268129",160.69,"RW0257","R. W. CRAWFORD AGRICULTURAL MACHINERY LTD",26/9/2022 00:00:00,30/10/2022 00:00:00,"P07-2023"
"P&V","FISHERIES MANAGEMENT","TRANSPORT RELATED EXPENDITURE","VEHICLE FUEL","3335","ALLSTAR BUSINESS SOLUTIONS LTD",4/10/2022 00:00:00,"267484",102.33,"AR0035","ALLSTAR BUSINESS SOLUTIONS LTD",26/9/2022 00:00:00,30/10/2022 00:00:00,"P07-2023"
,"LEE VALLEY MARINA STANSTEAD","TRANSPORT RELATED EXPENDITURE","VEHICLE FUEL","3335","ALLSTAR BUSINESS SOLUTIONS LTD",4/10/2022 00:00:00,"267484",100.62,"AR0035","ALLSTAR BUSINESS SOLUTIONS LTD",26/9/2022 00:00:00,30/10/2022 00:00:00,"P07-2023"
,"LEE VALLEY MARINA STANSTEAD","TRANSPORT RELATED EXPENDITURE","VEHICLE FUEL","3335","P119772-SERVICE-white diesel 200l @ 185.25ppl",25/10/2022 00:00:00,"268099",369.35,"SP0543","SPEEDY FUELS LIMITED",26/9/2022 00:00:00,30/10/2022 00:00:00,"P07-2023"
"P&V","LEE VALLEY FARM HOLYFIELDHALL","TRANSPORT RELATED EXPENDITURE","VEHICLE FUEL","3335","ALLSTAR BUSINESS SOLUTIONS LTD",4/10/2022 00:00:00,"267484",160.86,"AR0035","ALLSTAR BUSINESS SOLUTIONS LTD",26/9/2022 00:00:00,30/10/2022 00:00:00,"P07-2023"
,"LEE VALLEY CAMPSITE","TRANSPORT RELATED EXPENDITURE","VEHICLE FUEL","3335","ALLSTAR BUSINESS SOLUTIONS LTD",4/10/2022 00:00:00,"267484",103.39,"AR0035","ALLSTAR BUSINESS SOLUTIONS LTD",26/9/2022 00:00:00,30/10/2022 00:00:00,"P07-2023"
,"LEE VALLEY CARAVAN PARK","TRANSPORT RELATED EXPENDITURE","VEHICLE FUEL","3335","ALLSTAR BUSINESS SOLUTIONS LTD",4/10/2022 00:00:00,"267484",395.6,"AR0035","ALLSTAR BUSINESS SOLUTIONS LTD",26/9/2022 00:00:00,30/10/2022 00:00:00,"P07-2023"
"P&V","SOUTH AREA RANGERS","TRANSPORT RELATED EXPENDITURE","VEHICLE FUEL","3335","ALLSTAR BUSINESS SOLUTIONS LTD",4/10/2022 00:00:00,"267484",459.7,"AR0035","ALLSTAR BUSINESS SOLUTIONS LTD",26/9/2022 00:00:00,30/10/2022 00:00:00,"P07-2023"
"P&V","RIVER LEE COUNTRY PARK","TRANSPORT RELATED EXPENDITURE","VEHICLE FUEL","3335","ALLSTAR BUSINESS SOLUTIONS LTD",4/10/2022 00:00:00,"267484",64.79,"AR0035","ALLSTAR BUSINESS SOLUTIONS LTD",26/9/2022 00:00:00,30/10/2022 00:00:00,"P07-2023"
"P&V","RIVER LEE COUNTRY PARK","TRANSPORT RELATED EXPENDITURE","VEHICLE FUEL","3335","ALLSTAR BUSINESS SOLUTIONS LTD",4/10/2022 00:00:00,"267484",318.11,"AR0035","ALLSTAR BUSINESS SOLUTIONS LTD",26/9/2022 00:00:00,30/10/2022 00:00:00,"P07-2023"
"P&V","RIVER LEE COUNTRY PARK","TRANSPORT RELATED EXPENDITURE","VEHICLE REPAIRS & MAINTENANCE","3338","P119417-SERVICE-To carry out an M.O.T  and Service on two Ran",3/10/2022 00:00:00,"267293",267,"AB0153","ABBEY SERVICE CENTRE",26/9/2022 00:00:00,30/10/2022 00:00:00,"P07-2023"
"P&V","RIVER LEE COUNTRY PARK","TRANSPORT RELATED EXPENDITURE","VEHICLE REPAIRS & MAINTENANCE","3338","ABBEY SERVICE CENTRE",3/10/2022 00:00:00,"267293",45,"AB0153","ABBEY SERVICE CENTRE",26/9/2022 00:00:00,30/10/2022 00:00:00,"P07-2023"
"P&V","RIVER LEE COUNTRY PARK","TRANSPORT RELATED EXPENDITURE","VEHICLE REPAIRS & MAINTENANCE","3338","ABBEY SERVICE CENTRE",3/10/2022 00:00:00,"267293",222,"AB0153","ABBEY SERVICE CENTRE",26/9/2022 00:00:00,30/10/2022 00:00:00,"P07-2023"
"P&V","RIVER LEE COUNTRY PARK","TRANSPORT RELATED EXPENDITURE","VEHICLE REPAIRS & MAINTENANCE","3338","ABBEY SERVICE CENTRE",3/10/2022 00:00:00,"267293",-267,"AB0153","ABBEY SERVICE CENTRE",26/9/2022 00:00:00,30/10/2022 00:00:00,"P07-2023"
"P&V","RIVER LEE COUNTRY PARK","TRANSPORT RELATED EXPENDITURE","VEHICLE REPAIRS & MAINTENANCE","3338","ABBEY SERVICE CENTRE",11/10/2022 00:00:00,"267294",45,"AB0153","ABBEY SERVICE CENTRE",26/9/2022 00:00:00,30/10/2022 00:00:00,"P07-2023"
"P&V","RIVER LEE COUNTRY PARK","TRANSPORT RELATED EXPENDITURE","VEHICLE REPAIRS & MAINTENANCE","3338","P119474-SERVICE-Replace Belts - GK65MOF",11/10/2022 00:00:00,"267294",267,"AB0153","ABBEY SERVICE CENTRE",26/9/2022 00:00:00,30/10/2022 00:00:00,"P07-2023"
"P&V","RIVER LEE COUNTRY PARK","TRANSPORT RELATED EXPENDITURE","VEHICLE REPAIRS & MAINTENANCE","3338","ABBEY SERVICE CENTRE",11/10/2022 00:00:00,"267294",-267,"AB0153","ABBEY SERVICE CENTRE",26/9/2022 00:00:00,30/10/2022 00:00:00,"P07-2023"
"P&V","RIVER LEE COUNTRY PARK","TRANSPORT RELATED EXPENDITURE","VEHICLE REPAIRS & MAINTENANCE","3338","ABBEY SERVICE CENTRE",11/10/2022 00:00:00,"267294",222,"AB0153","ABBEY SERVICE CENTRE",26/9/2022 00:00:00,30/10/2022 00:00:00,"P07-2023"
"P&V","RIVER LEE COUNTRY PARK","TRANSPORT RELATED EXPENDITURE","VEHICLE REPAIRS & MAINTENANCE","3338","PARKING",4/10/2022 00:00:00,"267517",1,"FI0001","DIRECTOR OF FINANCE - CASH",26/9/2022 00:00:00,30/10/2022 00:00:00,"P07-2023"
"P&V","RIVER LEE COUNTRY PARK","TRANSPORT RELATED EXPENDITURE","VEHICLE REPAIRS & MAINTENANCE","3338","PARKING",4/10/2022 00:00:00,"267517",1,"FI0001","DIRECTOR OF FINANCE - CASH",26/9/2022 00:00:00,30/10/2022 00:00:00,"P07-2023"
,"STANSTEAD RECHARGEABLE WORKS","SUPPLIES AND SERVICES","EQUIPMENT & MATERIALS","4111","P119465-SERVICE-anodes",10/10/2022 00:00:00,"267310",1972,"MI0200","MIDLAND CHANDLERS LIMITED",26/9/2022 00:00:00,30/10/2022 00:00:00,"P07-2023"
,"STANSTEAD RECHARGEABLE WORKS","SUPPLIES AND SERVICES","EQUIPMENT & MATERIALS","4111","P119501-SERVICE-200l white diesel @ 185.75ppl",12/10/2022 00:00:00,"267472",371.5,"SP0543","SPEEDY FUELS LIMITED",26/9/2022 00:00:00,30/10/2022 00:00:00,"P07-2023"
,"STANSTEAD RECHARGEABLE WORKS","SUPPLIES AND SERVICES","EQUIPMENT & MATERIALS","4111","P119242-SERVICE-calorifier",18/10/2022 00:00:00,"267672",357.79,"MI0200","MIDLAND CHANDLERS LIMITED",26/9/2022 00:00:00,30/10/2022 00:00:00,"P07-2023"
,"STANSTEAD RECHARGEABLE WORKS","SUPPLIES AND SERVICES","EQUIPMENT & MATERIALS","4111","P119734-SERVICE-parts for w/s",25/10/2022 00:00:00,"267976",534.07,"MI0200","MIDLAND CHANDLERS LIMITED",26/9/2022 00:00:00,30/10/2022 00:00:00,"P07-2023"
,"STANSTEAD RECHARGEABLE WORKS","SUPPLIES AND SERVICES","EQUIPMENT & MATERIALS","4111","P119840-SERVICE-workshop supplies  (anodes)",30/10/2022 00:00:00,"268254",1281.26,"MI0200","MIDLAND CHANDLERS LIMITED",26/9/2022 00:00:00,30/10/2022 00:00:00,"P07-2023"
,"LEE VALLEY CAMPSITE","SUPPLIES AND SERVICES","EQUIPMENT & MATERIALS","4111","P119578-SERVICE-10xFluorescent sticks 9w",10/10/2022 00:00:00,"267509",27.5,"SC0057","SCREWFIX DIRECT LTD",26/9/2022 00:00:00,30/10/2022 00:00:00,"P07-2023"
,"LEE VALLEY CAMPSITE","SUPPLIES AND SERVICES","EQUIPMENT & MATERIALS","4111","P119578-SERVICE-5xFluorescent sticks 18w",10/10/2022 00:00:00,"267509",20.79,"SC0057","SCREWFIX DIRECT LTD",26/9/2022 00:00:00,30/10/2022 00:00:00,"P07-2023"
,"LEE VALLEY CAMPSITE","SUPPLIES AND SERVICES","EQUIPMENT & MATERIALS","4111","P119604-SERVICE-Bulbs for electric posts",10/10/2022 00:00:00,"267566",23.87,"SC0057","SCREWFIX DIRECT LTD",26/9/2022 00:00:00,30/10/2022 00:00:00,"P07-2023"
,"LEE VALLEY CAMPSITE","SUPPLIES AND SERVICES","EQUIPMENT & MATERIALS","4111","P119750-SERVICE-Yale lock disabled toilet",18/10/2022 00:00:00,"267732",20.42,"BQ0164","TRADE UK ACCOUNT",26/9/2022 00:00:00,30/10/2022 00:00:00,"P07-2023"
,"LEE VALLEY CAMPSITE","SUPPLIES AND SERVICES","EQUIPMENT & MATERIALS","4111","P119751-SERVICE-18w fluorescent sticks",18/10/2022 00:00:00,"267741",24.96,"SC0057","SCREWFIX DIRECT LTD",26/9/2022 00:00:00,30/10/2022 00:00:00,"P07-2023"
,"LEE VALLEY CAMPSITE","SUPPLIES AND SERVICES","EQUIPMENT & MATERIALS","4111","P118746-SERVICE-Fire exit signs x2",26/10/2022 00:00:00,"267917",11.09,"FI0215","VALUE PRODUCTS LTD",26/9/2022 00:00:00,30/10/2022 00:00:00,"P07-2023"
,"LEE VALLEY CAMPSITE","SUPPLIES AND SERVICES","EQUIPMENT & MATERIALS","4111","P119842-SERVICE-woven Fire blankets x9",30/10/2022 00:00:00,"268252",126,"FI0215","VALUE PRODUCTS LTD",26/9/2022 00:00:00,30/10/2022 00:00:00,"P07-2023"
,"LEE VALLEY CAMPSITE","SUPPLIES AND SERVICES","EQUIPMENT & MATERIALS","4111","P119842-SERVICE-Fire blanket ID X9",30/10/2022 00:00:00,"268253",17.01,"FI0215","VALUE PRODUCTS LTD",26/9/2022 00:00:00,30/10/2022 00:00:00,"P07-2023"
,"LEE VALLEY CAMPSITE","SUPPLIES AND SERVICES","EQUIPMENT & MATERIALS","4111","P119842-SERVICE-Speed bump for site",30/10/2022 00:00:00,"268270",77.28,"FI0215","VALUE PRODUCTS LTD",26/9/2022 00:00:00,30/10/2022 00:00:00,"P07-2023"
,"LEE VALLEY CARAVAN PARK","SUPPLIES AND SERVICES","EQUIPMENT & MATERIALS","4111","P119378-SERVICE-Wigwam signs and comp cards",3/10/2022 00:00:00,"267450",693,"SL0528","SLAM SIGNS LTD",26/9/2022 00:00:00,30/10/2022 00:00:00,"P07-2023"
,"LEE VALLEY CARAVAN PARK","SUPPLIES AND SERVICES","EQUIPMENT & MATERIALS","4111","P119567-SERVICE-Replacement Light Bulbs & Basin Wrench",18/10/2022 00:00:00,"267508",35.64,"SC0057","SCREWFIX DIRECT LTD",26/9/2022 00:00:00,30/10/2022 00:00:00,"P07-2023"
,"LEE VALLEY CARAVAN PARK","SUPPLIES AND SERVICES","EQUIPMENT & MATERIALS","4111","P119624-SERVICE-8 x 2by2 for front of the lodges flower beds",12/10/2022 00:00:00,"267755",30,"LE0012","LEASIDE TIMBER & BUILDERS MERCHANTS LTD",26/9/2022 00:00:00,30/10/2022 00:00:00,"P07-2023"
,"LEE VALLEY CARAVAN PARK","SUPPLIES AND SERVICES","EQUIPMENT & MATERIALS","4111","P119767-SERVICE-Electrical Connections",19/10/2022 00:00:00,"267950",600,"BR0018","BRADSHAW ELECTRICAL LIMITED",26/9/2022 00:00:00,30/10/2022 00:00:00,"P07-2023"
"P&V","MYDDELTON HOUSE GARDENS","SUPPLIES AND SERVICES","EQUIPMENT & MATERIALS","4111","P119094-SERVICE-Universal 180 chemical store",3/10/2022 00:00:00,"266475",422,"CL0107","CLEVELAND SITESAFE LIMITED",26/9/2022 00:00:00,30/10/2022 00:00:00,"P07-2023"
"P&V","MYDDELTON HOUSE GARDENS","SUPPLIES AND SERVICES","EQUIPMENT & MATERIALS","4111","P119094-SERVICE-Carriage",3/10/2022 00:00:00,"266475",95,"CL0107","CLEVELAND SITESAFE LIMITED",26/9/2022 00:00:00,30/10/2022 00:00:00,"P07-2023"
"P&V","MYDDELTON HOUSE GARDENS","SUPPLIES AND SERVICES","EQUIPMENT & MATERIALS","4111","P119565-SERVICE-defib order house & gardens 22 x2 fully auto",18/10/2022 00:00:00,"267749",1590,"WE0172","WEL MEDICAL LIMITED",26/9/2022 00:00:00,30/10/2022 00:00:00,"P07-2023"
"P&V","NORTH AREA RANGERS","SUPPLIES AND SERVICES","EQUIPMENT & MATERIALS","4111","P119707-SERVICE-Delivery",19/10/2022 00:00:00,"267951",2.49,"ME0490","MEDISAVE UK LTD",26/9/2022 00:00:00,30/10/2022 00:00:00,"P07-2023"
"P&V","NORTH AREA RANGERS","SUPPLIES AND SERVICES","EQUIPMENT & MATERIALS","4111","P119707-SERVICE-20 x HSE Dressing Large",19/10/2022 00:00:00,"267951",8.6,"ME0490","MEDISAVE UK LTD",26/9/2022 00:00:00,30/10/2022 00:00:00,"P07-2023"
"P&V","NORTH AREA RANGERS","SUPPLIES AND SERVICES","EQUIPMENT & MATERIALS","4111","P119707-SERVICE-24x HypaCool Instant Cold Pack Pro",19/10/2022 00:00:00,"267951",16.8,"ME0490","MEDISAVE UK LTD",26/9/2022 00:00:00,30/10/2022 00:00:00,"P07-2023"
"P&V","NORTH AREA RANGERS","SUPPLIES AND SERVICES","EQUIPMENT & MATERIALS","4111","P117538-SERVICE-Equipment & Materials as and when required",30/10/2022 00:00:00,"268295",25.48,"JE0011","SAINT-GOBAIN BUILDING DISTRIBUTION",26/9/2022 00:00:00,30/10/2022 00:00:00,"P07-2023"
"P&V","SOUTH AREA RANGERS","SUPPLIES AND SERVICES","EQUIPMENT & MATERIALS","4111","P119538-SERVICE-Delivery to address below",18/10/2022 00:00:00,"267561",2.49,"ME0490","MEDISAVE UK LTD",26/9/2022 00:00:00,30/10/2022 00:00:00,"P07-2023"
"P&V","SOUTH AREA RANGERS","SUPPLIES AND SERVICES","EQUIPMENT & MATERIALS","4111","P119538-SERVICE-15x Medium HSE dressing 12 x 12 cm",18/10/2022 00:00:00,"267561",8.1,"ME0490","MEDISAVE UK LTD",26/9/2022 00:00:00,30/10/2022 00:00:00,"P07-2023"
"P&V","SOUTH AREA RANGERS","SUPPLIES AND SERVICES","EQUIPMENT & MATERIALS","4111","P119538-SERVICE-11x Eye Pad Dressing with Bandage  Sterile",18/10/2022 00:00:00,"267561",4.18,"ME0490","MEDISAVE UK LTD",26/9/2022 00:00:00,30/10/2022 00:00:00,"P07-2023"
"P&V","SOUTH AREA RANGERS","SUPPLIES AND SERVICES","EQUIPMENT & MATERIALS","4111","P119538-SERVICE-2x Steroplast Conforming Bandage 7.5cm x 4m",18/10/2022 00:00:00,"267561",0.64,"ME0490","MEDISAVE UK LTD",26/9/2022 00:00:00,30/10/2022 00:00:00,"P07-2023"
"P&V","SOUTH AREA RANGERS","SUPPLIES AND SERVICES","EQUIPMENT & MATERIALS","4111","P119538-SERVICE-3x Large HSE Dressing 18 x 18 cm	",18/10/2022 00:00:00,"267561",2.25,"ME0490","MEDISAVE UK LTD",26/9/2022 00:00:00,30/10/2022 00:00:00,"P07-2023"
"P&V","RIVER LEE COUNTRY PARK","SUPPLIES AND SERVICES","EQUIPMENT & MATERIALS","4111","P118538-SERVICE-2x Stihl Function Basic Chainsaw Helmet and N",3/10/2022 00:00:00,"267319",65.9,"AP0245","APS LIMITED",26/9/2022 00:00:00,30/10/2022 00:00:00,"P07-2023"
"P&V","RIVER LEE COUNTRY PARK","SUPPLIES AND SERVICES","EQUIPMENT & MATERIALS","4111","P118538-SERVICE-2x Stihl Advance Universal Harness",3/10/2022 00:00:00,"267319",76.66,"AP0245","APS LIMITED",26/9/2022 00:00:00,30/10/2022 00:00:00,"P07-2023"
"P&V","RIVER LEE COUNTRY PARK","SUPPLIES AND SERVICES","EQUIPMENT & MATERIALS","4111","TOOLS & EQUIP",4/10/2022 00:00:00,"267517",1.66,"FI0001","DIRECTOR OF FINANCE - CASH",26/9/2022 00:00:00,30/10/2022 00:00:00,"P07-2023"
"P&V","RIVER LEE COUNTRY PARK","SUPPLIES AND SERVICES","EQUIPMENT & MATERIALS","4111","TOOLS & EQUIP",4/10/2022 00:00:00,"267517",6.67,"FI0001","DIRECTOR OF FINANCE - CASH",26/9/2022 00:00:00,30/10/2022 00:00:00,"P07-2023"
"P&V","RIVER LEE COUNTRY PARK","SUPPLIES AND SERVICES","EQUIPMENT & MATERIALS","4111","TOOLS & EQUIP",4/10/2022 00:00:00,"267517",5,"FI0001","DIRECTOR OF FINANCE - CASH",26/9/2022 00:00:00,30/10/2022 00:00:00,"P07-2023"
"P&V","RIVER LEE COUNTRY PARK","SUPPLIES AND SERVICES","EQUIPMENT & MATERIALS","4111","TOOLS & EQUIP",4/10/2022 00:00:00,"267517",2.91,"FI0001","DIRECTOR OF FINANCE - CASH",26/9/2022 00:00:00,30/10/2022 00:00:00,"P07-2023"
"P&V","RIVER LEE COUNTRY PARK","SUPPLIES AND SERVICES","EQUIPMENT & MATERIALS","4111","TOOLS & EQUIP",4/10/2022 00:00:00,"267517",10,"FI0001","DIRECTOR OF FINANCE - CASH",26/9/2022 00:00:00,30/10/2022 00:00:00,"P07-2023"
"P&V","RIVER LEE COUNTRY PARK","SUPPLIES AND SERVICES","EQUIPMENT & MATERIALS","4111","TOOLS & EQUIP",4/10/2022 00:00:00,"267517",13.33,"FI0001","DIRECTOR OF FINANCE - CASH",26/9/2022 00:00:00,30/10/2022 00:00:00,"P07-2023"
"P&V","RIVER LEE COUNTRY PARK","SUPPLIES AND SERVICES","EQUIPMENT & MATERIALS","4111","TOOLS & EQUIP",4/10/2022 00:00:00,"267517",6.25,"FI0001","DIRECTOR OF FINANCE - CASH",26/9/2022 00:00:00,30/10/2022 00:00:00,"P07-2023"
"P&V","RIVER LEE COUNTRY PARK","SUPPLIES AND SERVICES","EQUIPMENT & MATERIALS","4111","P119521-SERVICE-Electric Outboard",11/10/2022 00:00:00,"267729",220,"MO0459","MORTON BOATS",26/9/2022 00:00:00,30/10/2022 00:00:00,"P07-2023"
"P&V","RIVER LEE COUNTRY PARK","SUPPLIES AND SERVICES","EQUIPMENT & MATERIALS","4111","P119521-SERVICE-Delivery to address below",11/10/2022 00:00:00,"267729",14.95,"MO0459","MORTON BOATS",26/9/2022 00:00:00,30/10/2022 00:00:00,"P07-2023"
"P&V","RIVER LEE COUNTRY PARK","SUPPLIES AND SERVICES","EQUIPMENT & MATERIALS","4111","P119755-SERVICE-10x Litter Pickers 32"" Trigger Type",24/10/2022 00:00:00,"268073",153.7,"GR0020","GREENHAM TRADING LIMITED",26/9/2022 00:00:00,30/10/2022 00:00:00,"P07-2023"
"P&V","RIVER LEE COUNTRY PARK","SUPPLIES AND SERVICES","EQUIPMENT & MATERIALS","4111","P119790-SERVICE-4x DeFib Pads",30/10/2022 00:00:00,"268118",159.8,"WE0172","WEL MEDICAL LIMITED",26/9/2022 00:00:00,30/10/2022 00:00:00,"P07-2023"
"P&V","RIVER LEE COUNTRY PARK","SUPPLIES AND SERVICES","EQUIPMENT & MATERIALS","4111","P119790-SERVICE-Delivery",30/10/2022 00:00:00,"268118",5.95,"WE0172","WEL MEDICAL LIMITED",26/9/2022 00:00:00,30/10/2022 00:00:00,"P07-2023"
"P&V","RIVER LEE COUNTRY PARK","SUPPLIES AND SERVICES","EQUIPMENT & MATERIALS","4111","P119652-SERVICE-2x 6mm Granite Dust Bulk Bag (2 Bags)",30/10/2022 00:00:00,"268296",170.56,"JE0011","SAINT-GOBAIN BUILDING DISTRIBUTION",26/9/2022 00:00:00,30/10/2022 00:00:00,"P07-2023"
"P&V","RIVER LEE COUNTRY PARK","SUPPLIES AND SERVICES","EQUIPMENT & MATERIALS","4111","P119652-SERVICE-1x Type 1 Bulk Bag (1 Bag)",30/10/2022 00:00:00,"268296",56.66,"JE0011","SAINT-GOBAIN BUILDING DISTRIBUTION",26/9/2022 00:00:00,30/10/2022 00:00:00,"P07-2023"
"P&V","RIVER LEE COUNTRY PARK","SUPPLIES AND SERVICES","EQUIPMENT & MATERIALS","4111","P119652-SERVICE-2x 6mm Granite Dust Bulk Bag (2 Bags)",30/10/2022 00:00:00,"268297",56.66,"JE0011","SAINT-GOBAIN BUILDING DISTRIBUTION",26/9/2022 00:00:00,30/10/2022 00:00:00,"P07-2023"
,"LV LEISURE CENTRE CAMPSITE","SUPPLIES AND SERVICES","EQUIPMENT & MATERIALS","4111","P119339-SERVICE-Featheredge fence panels",28/9/2022 00:00:00,"267145",25.63,"BQ0164","TRADE UK ACCOUNT",26/9/2022 00:00:00,30/10/2022 00:00:00,"P07-2023"
,"LV LEISURE CENTRE GOLF COURSE","SUPPLIES AND SERVICES","EQUIPMENT & MATERIALS","4111","P119534-SERVICE-Tractor aprts maintenance",5/10/2022 00:00:00,"267490",350.79,"LE0279","REESINK TURFCARE UK LIMITED",26/9/2022 00:00:00,30/10/2022 00:00:00,"P07-2023"
,"LEE VALLEY WHITE WATER CENTRE","SUPPLIES AND SERVICES","EQUIPMENT & MATERIALS","4111","DEPOSIT ALREADY PAID-COMP 261249",27/10/2022 00:00:00,"268080",0,"SE0657","SEWFINE LTD",26/9/2022 00:00:00,30/10/2022 00:00:00,"P07-2023"
,"LEE VALLEY WHITE WATER CENTRE","SUPPLIES AND SERVICES","EQUIPMENT & MATERIALS","4111","DEPOSIT ALREADY PAID-COMP 261249",27/10/2022 00:00:00,"268080",-4392,"SE0657","SEWFINE LTD",26/9/2022 00:00:00,30/10/2022 00:00:00,"P07-2023"
,"LEE VALLEY WHITE WATER CENTRE","SUPPLIES AND SERVICES","EQUIPMENT & MATERIALS","4111","P117037-SERVICE-To supply and install jumbrellas, membranes a",27/10/2022 00:00:00,"268080",4392,"SE0657","SEWFINE LTD",26/9/2022 00:00:00,30/10/2022 00:00:00,"P07-2023"
,"LEE VALLEY WHITE WATER CENTRE","SUPPLIES AND SERVICES","EQUIPMENT & MATERIALS","4111","DEPOSIT ALREADY PAID-COMP 261249",27/10/2022 00:00:00,"268080",4392,"SE0657","SEWFINE LTD",26/9/2022 00:00:00,30/10/2022 00:00:00,"P07-2023"
,"LEE VALLEY CAMPSITE","SUPPLIES AND SERVICES","EQUIPMENT MAINTENANCE","4112","P119507-SERVICE-Push Taps pipework  B Block",3/10/2022 00:00:00,"267459",240,"SO0400","SOUTHERN GREEN SERVICES LIMITED",26/9/2022 00:00:00,30/10/2022 00:00:00,"P07-2023"
,"LEE VALLEY CAMPSITE","SUPPLIES AND SERVICES","EQUIPMENT MAINTENANCE","4112","P119507-SERVICE-Touring water point replace tap valves",3/10/2022 00:00:00,"267459",100,"SO0400","SOUTHERN GREEN SERVICES LIMITED",26/9/2022 00:00:00,30/10/2022 00:00:00,"P07-2023"
,"LEE VALLEY CAMPSITE","SUPPLIES AND SERVICES","EQUIPMENT MAINTENANCE","4112","P119507-SERVICE-Replace push taps laundry",3/10/2022 00:00:00,"267459",185,"SO0400","SOUTHERN GREEN SERVICES LIMITED",26/9/2022 00:00:00,30/10/2022 00:00:00,"P07-2023"
,"LEE VALLEY CAMPSITE","SUPPLIES AND SERVICES","EQUIPMENT MAINTENANCE","4112","P119747-SERVICE-faulty bollard / Peakys tripping",18/10/2022 00:00:00,"267904",98,"BR0018","BRADSHAW ELECTRICAL LIMITED",26/9/2022 00:00:00,30/10/2022 00:00:00,"P07-2023"
,"LEE VALLEY CAMPSITE","SUPPLIES AND SERVICES","EQUIPMENT MAINTENANCE","4112","P119748-SERVICE-replace 2x bollards",18/10/2022 00:00:00,"267906",440,"BR0018","BRADSHAW ELECTRICAL LIMITED",26/9/2022 00:00:00,30/10/2022 00:00:00,"P07-2023"
,"LEE VALLEY CARAVAN PARK","SUPPLIES AND SERVICES","EQUIPMENT MAINTENANCE","4112","P119479-SERVICE-reset barrier code",4/10/2022 00:00:00,"267500",345,"AU0245","AUTO-MATE SYSTEMS LIMITED",26/9/2022 00:00:00,30/10/2022 00:00:00,"P07-2023"
,"LEE VALLEY CARAVAN PARK","SUPPLIES AND SERVICES","EQUIPMENT MAINTENANCE","4112","P119868-SERVICE-Fit new latch to washing machine door",30/10/2022 00:00:00,"268271",184.01,"AL0434","ALLSOP & FRANCIS",26/9/2022 00:00:00,30/10/2022 00:00:00,"P07-2023"
"P&V","SOUTH AREA RANGERS","SUPPLIES AND SERVICES","EQUIPMENT MAINTENANCE","4112","P119322-SERVICE-BCS MFS 660 Repairs",24/10/2022 00:00:00,"268075",512.3,"AP0245","APS LIMITED",26/9/2022 00:00:00,30/10/2022 00:00:00,"P07-2023"
"P&V","SOUTH AREA RANGERS","SUPPLIES AND SERVICES","EQUIPMENT MAINTENANCE","4112","P119323-SERVICE-BCS Automatic Repairs",24/10/2022 00:00:00,"268076",1078.26,"AP0245","APS LIMITED",26/9/2022 00:00:00,30/10/2022 00:00:00,"P07-2023"
"P&V","SOUTH AREA RANGERS","SUPPLIES AND SERVICES","EQUIPMENT MAINTENANCE","4112","P119426-SERVICE-Brush Cutter Repairs - 178445304",30/10/2022 00:00:00,"268280",111.79,"AP0245","APS LIMITED",26/9/2022 00:00:00,30/10/2022 00:00:00,"P07-2023"
,"LV LEISURE CENTRE CAMPSITE","SUPPLIES AND SERVICES","EQUIPMENT MAINTENANCE","4112","P119774-SERVICE-fIRE EXTINGUISHERS",19/10/2022 00:00:00,"266897",69.32,"MO0478","MORGAN FIRE PROTECTION LTD",26/9/2022 00:00:00,30/10/2022 00:00:00,"P07-2023"
,"LV LEISURE CENTRE CAMPSITE","SUPPLIES AND SERVICES","EQUIPMENT MAINTENANCE","4112","P119688-SERVICE-Post caps etc for fencing",18/10/2022 00:00:00,"267457",87.02,"BQ0164","TRADE UK ACCOUNT",26/9/2022 00:00:00,30/10/2022 00:00:00,"P07-2023"
,"LV LEISURE CENTRE CAMPSITE","SUPPLIES AND SERVICES","EQUIPMENT MAINTENANCE","4112","P119689-SERVICE-Tiles grouting, adhesive etc",18/10/2022 00:00:00,"267505",208.49,"BQ0164","TRADE UK ACCOUNT",26/9/2022 00:00:00,30/10/2022 00:00:00,"P07-2023"
,"LV LEISURE CENTRE CAMPSITE","SUPPLIES AND SERVICES","EQUIPMENT MAINTENANCE","4112","P119690-SERVICE-Timber, nails etc",18/10/2022 00:00:00,"267506",26.31,"BQ0164","TRADE UK ACCOUNT",26/9/2022 00:00:00,30/10/2022 00:00:00,"P07-2023"
,"LV LEISURE CENTRE CAMPSITE","SUPPLIES AND SERVICES","EQUIPMENT MAINTENANCE","4112","P119699-SERVICE-maintenance supplies",18/10/2022 00:00:00,"267567",74.86,"BQ0164","TRADE UK ACCOUNT",26/9/2022 00:00:00,30/10/2022 00:00:00,"P07-2023"
,"LV LEISURE CENTRE CAMPSITE","SUPPLIES AND SERVICES","EQUIPMENT MAINTENANCE","4112","P119696-SERVICE-Fencing accesories",18/10/2022 00:00:00,"267731",28.95,"BQ0164","TRADE UK ACCOUNT",26/9/2022 00:00:00,30/10/2022 00:00:00,"P07-2023"
,"LV LEISURE CENTRE CAMPSITE","SUPPLIES AND SERVICES","EQUIPMENT MAINTENANCE","4112","P119699-SERVICE-maintenance supplies",18/10/2022 00:00:00,"267733",-27.5,"BQ0164","TRADE UK ACCOUNT",26/9/2022 00:00:00,30/10/2022 00:00:00,"P07-2023"
,"LV LEISURE CENTRE CAMPSITE","SUPPLIES AND SERVICES","EQUIPMENT MAINTENANCE","4112","P119800-SERVICE-Tiling supplies",24/10/2022 00:00:00,"267982",133.3,"BQ0164","TRADE UK ACCOUNT",26/9/2022 00:00:00,30/10/2022 00:00:00,"P07-2023"
"R&B","INFORMATION TECHNOLOGY","SUPPLIES AND SERVICES","IT CORE SYSTEMS","4113","P119590-SERVICE-CIPHR Payroll Nov 2022",10/10/2022 00:00:00,"267568",569.62,"CI0721","CIPHR",26/9/2022 00:00:00,30/10/2022 00:00:00,"P07-2023"
"R&B","INFORMATION TECHNOLOGY","SUPPLIES AND SERVICES","IT CORE SYSTEMS","4113","P119812-SERVICE-Managed Service fee - 14 Dec 22 - Jan 23",25/10/2022 00:00:00,"267723",1333.47,"CE0021","ADVANCED BUSINESS SOLUTIONS",26/9/2022 00:00:00,30/10/2022 00:00:00,"P07-2023"
"R&B","INFORMATION TECHNOLOGY","SUPPLIES AND SERVICES","IT CORE SYSTEMS","4113","P119428-SERVICE-Canto licence renewal - 2 year agreement",24/10/2022 00:00:00,"267930",5421.58,"CA0717","CANTO GMBH",26/9/2022 00:00:00,30/10/2022 00:00:00,"P07-2023"
"R&B","INFORMATION TECHNOLOGY","SUPPLIES AND SERVICES","IT CORE SYSTEMS","4113","P119782-SERVICE-Monthly fees PAYware Ocius Pos",24/10/2022 00:00:00,"267933",351,"CO0440","VERIFONE SERVICES UK & IRELAND LTD",26/9/2022 00:00:00,30/10/2022 00:00:00,"P07-2023"
"R&B","INFORMATION TECHNOLOGY","SUPPLIES AND SERVICES","IT NETWORK & TELECOMS COSTS","4114","P117871-SERVICE-Monthly SIP Apr 22-Mar 23",5/10/2022 00:00:00,"267531",145.15,"FR0131","VOICEFLEX LTD",26/9/2022 00:00:00,30/10/2022 00:00:00,"P07-2023"
"R&B","INFORMATION TECHNOLOGY","SUPPLIES AND SERVICES","IT NETWORK & TELECOMS COSTS","4114","P119627-SERVICE-MPLS for all sites Oct 22",10/10/2022 00:00:00,"267684",9605.86,"PP0200","PPSNET LIMITED",26/9/2022 00:00:00,30/10/2022 00:00:00,"P07-2023"
,"LEE VALLEY CARAVAN PARK","SUPPLIES AND SERVICES","IT NETWORK & TELECOMS COSTS","4114","MY O2",30/10/2022 00:00:00,"268279",60.3,"O20134","MY O2",26/9/2022 00:00:00,30/10/2022 00:00:00,"P07-2023"
,"LV LEISURE CENTRE CAMPSITE","SUPPLIES AND SERVICES","EQUIPMENT HIRE","4115","P119724-SERVICE-Utility Hire Cushman",24/10/2022 00:00:00,"267957",616,"CA0698","CAMBRIDGE GOLF COMPANY",26/9/2022 00:00:00,30/10/2022 00:00:00,"P07-2023"
,"LV LEISURE CENTRE CAMPSITE","SUPPLIES AND SERVICES","EQUIPMENT HIRE","4115","P119724-SERVICE-Utility Hire Cushman",24/10/2022 00:00:00,"267958",1232,"CA0698","CAMBRIDGE GOLF COMPANY",26/9/2022 00:00:00,30/10/2022 00:00:00,"P07-2023"
"P&V","MYDDELTON HOUSE","SUPPLIES AND SERVICES","IT HARDWARE & SOFTWARE COSTS","4116","ZEN INTERNET LTD",24/10/2022 00:00:00,"267753",42,"ZE0007","ZEN INTERNET LTD",26/9/2022 00:00:00,30/10/2022 00:00:00,"P07-2023"
"R&B","INFORMATION TECHNOLOGY","SUPPLIES AND SERVICES","IT HARDWARE & SOFTWARE COSTS","4116","P119662-SERVICE-Datto RMM Device Licence",19/10/2022 00:00:00,"267736",453,"IQ0022","IQUAL",26/9/2022 00:00:00,30/10/2022 00:00:00,"P07-2023"
,"LEE VALLEY MARINA SPRINGFIELD","SUPPLIES AND SERVICES","IT HARDWARE & SOFTWARE COSTS","4116","P119609-SERVICE-Annual Service Maintenance Fee Oct",10/10/2022 00:00:00,"267647",139.26,"WI0209","WIFI SPARK LIMITED",26/9/2022 00:00:00,30/10/2022 00:00:00,"P07-2023"
,"LEE VALLEY MARINA SPRINGFIELD","SUPPLIES AND SERVICES","IT HARDWARE & SOFTWARE COSTS","4116","ZEN INTERNET LTD",24/10/2022 00:00:00,"267804",38,"ZE0007","ZEN INTERNET LTD",26/9/2022 00:00:00,30/10/2022 00:00:00,"P07-2023"
,"LEE VALLEY MARINA STANSTEAD","SUPPLIES AND SERVICES","IT HARDWARE & SOFTWARE COSTS","4116","P119609-SERVICE-Annual Service Maintenance Fee Oct Stanstead",10/10/2022 00:00:00,"267647",218.36,"WI0209","WIFI SPARK LIMITED",26/9/2022 00:00:00,30/10/2022 00:00:00,"P07-2023"
,"LEE VALLEY MARINA STANSTEAD","SUPPLIES AND SERVICES","IT HARDWARE & SOFTWARE COSTS","4116","ZEN INTERNET LTD",24/10/2022 00:00:00,"267884",31.32,"ZE0007","ZEN INTERNET LTD",26/9/2022 00:00:00,30/10/2022 00:00:00,"P07-2023"
,"LEE VALLEY CAMPSITE","SUPPLIES AND SERVICES","IT HARDWARE & SOFTWARE COSTS","4116","P119609-SERVICE-Annual Service Maintenance Fee Oct",10/10/2022 00:00:00,"267647",218.92,"WI0209","WIFI SPARK LIMITED",26/9/2022 00:00:00,30/10/2022 00:00:00,"P07-2023"
,"LEE VALLEY CARAVAN PARK","SUPPLIES AND SERVICES","IT HARDWARE & SOFTWARE COSTS","4116","P119609-SERVICE-Annual Service Maintenance Fee Oct",10/10/2022 00:00:00,"267647",310.65,"WI0209","WIFI SPARK LIMITED",26/9/2022 00:00:00,30/10/2022 00:00:00,"P07-2023"
,"LEE VALLEY CARAVAN PARK","SUPPLIES AND SERVICES","IT HARDWARE & SOFTWARE COSTS","4116","P119628-SERVICE-Fibre Connection Oct 22",11/10/2022 00:00:00,"267683",835,"PP0200","PPSNET LIMITED",26/9/2022 00:00:00,30/10/2022 00:00:00,"P07-2023"
,"LV LEISURE CENTRE CAMPSITE","SUPPLIES AND SERVICES","IT HARDWARE & SOFTWARE COSTS","4116","P119609-SERVICE-Annual Service Maintenance Fee Oct",10/10/2022 00:00:00,"267647",163.42,"WI0209","WIFI SPARK LIMITED",26/9/2022 00:00:00,30/10/2022 00:00:00,"P07-2023"
"R&B","INFORMATION TECHNOLOGY","SUPPLIES AND SERVICES","IT MAINTENANCE AGREEMENTS","4119","P119658-SERVICE-Off-site backup & disaster recovery",19/10/2022 00:00:00,"267737",4680,"IQ0022","IQUAL",26/9/2022 00:00:00,30/10/2022 00:00:00,"P07-2023"
,"LEE VALLEY MARINA SPRINGFIELD","SUPPLIES AND SERVICES","IT MAINTENANCE AGREEMENTS","4119","P119608-SERVICE-Support & Data September 22",10/10/2022 00:00:00,"267569",80.26,"CY0653","CYBERTILL",26/9/2022 00:00:00,30/10/2022 00:00:00,"P07-2023"
,"LEE VALLEY MARINA STANSTEAD","SUPPLIES AND SERVICES","IT MAINTENANCE AGREEMENTS","4119","P119608-SERVICE-Support & Data September 22",10/10/2022 00:00:00,"267569",80.27,"CY0653","CYBERTILL",26/9/2022 00:00:00,30/10/2022 00:00:00,"P07-2023"
,"LEE VALLEY CAMPSITE","SUPPLIES AND SERVICES","IT MAINTENANCE AGREEMENTS","4119","P119809-SERVICE-Monthly Subscrption Nov 22 - Mar 23",24/10/2022 00:00:00,"267759",145.5,"NE0218","NETGUIDES LIMITED",26/9/2022 00:00:00,30/10/2022 00:00:00,"P07-2023"
,"LEE VALLEY CARAVAN PARK","SUPPLIES AND SERVICES","IT MAINTENANCE AGREEMENTS","4119","P119809-SERVICE-Monthly Subscriptions Nov 22 - Mar 23",24/10/2022 00:00:00,"267759",145.5,"NE0218","NETGUIDES LIMITED",26/9/2022 00:00:00,30/10/2022 00:00:00,"P07-2023"
"P&V","ALMOST WILD CAMPSITE","SUPPLIES AND SERVICES","IT MAINTENANCE AGREEMENTS","4119","P119809-SERVICE-Monthly Subscrption Nov 22 - Mar 23",24/10/2022 00:00:00,"267759",145.5,"NE0218","NETGUIDES LIMITED",26/9/2022 00:00:00,30/10/2022 00:00:00,"P07-2023"
,"LV LEISURE CENTRE CAMPSITE","SUPPLIES AND SERVICES","IT MAINTENANCE AGREEMENTS","4119","P119809-SERVICE-Monthly Subscrption Nov 22 - Mar 23",24/10/2022 00:00:00,"267759",145.5,"NE0218","NETGUIDES LIMITED",26/9/2022 00:00:00,30/10/2022 00:00:00,"P07-2023"
,"LV LEISURE CENTRE GOLF COURSE","SUPPLIES AND SERVICES","IT MAINTENANCE AGREEMENTS","4119","P119582-SERVICE-Digitickets Services Sept 2022",10/10/2022 00:00:00,"267483",517.63,"DI0304","DIGITAL TICKETING SYSTEMS LTD (DIGITICKETS)",26/9/2022 00:00:00,30/10/2022 00:00:00,"P07-2023"
"P&V","EAST INDIA DOCK AND BOW CREEK","SUPPLIES AND SERVICES","MATERIALS (COUNTERS)","4123","P119656-SERVICE-Visitor Counter Maintainance",11/10/2022 00:00:00,"267698",1400,"HE0418","HEALTHMATIC LTD",26/9/2022 00:00:00,30/10/2022 00:00:00,"P07-2023"
"P&V","NORTH AREA RANGERS","SUPPLIES AND SERVICES","MATERIALS (COUNTERS)","4123","P119656-SERVICE-Visitor Counter Maintainance",11/10/2022 00:00:00,"267698",3300,"HE0418","HEALTHMATIC LTD",26/9/2022 00:00:00,30/10/2022 00:00:00,"P07-2023"
"P&V","SOUTH AREA RANGERS","SUPPLIES AND SERVICES","MATERIALS (COUNTERS)","4123","P119656-SERVICE-Visitor Counter Maintainance",11/10/2022 00:00:00,"267698",4350,"HE0418","HEALTHMATIC LTD",26/9/2022 00:00:00,30/10/2022 00:00:00,"P07-2023"
"P&V","SOUTH AREA RANGERS","SUPPLIES AND SERVICES","MATERIALS (COUNTERS)","4123","P119776-SERVICE-Replace Sandpiper Close Visitor Counter with",26/10/2022 00:00:00,"268128",1850,"HE0418","HEALTHMATIC LTD",26/9/2022 00:00:00,30/10/2022 00:00:00,"P07-2023"
"P&V","ABBEY GARDENS","SUPPLIES AND SERVICES","MATERIALS (COUNTERS)","4123","P119656-SERVICE-Visitor Counter Maintainance",11/10/2022 00:00:00,"267698",1000,"HE0418","HEALTHMATIC LTD",26/9/2022 00:00:00,30/10/2022 00:00:00,"P07-2023"
"P&V","GUNPOWDER PARK","SUPPLIES AND SERVICES","MATERIALS (COUNTERS)","4123","P119656-SERVICE-Visitor Counter Maintainance",11/10/2022 00:00:00,"267698",3350,"HE0418","HEALTHMATIC LTD",26/9/2022 00:00:00,30/10/2022 00:00:00,"P07-2023"
"P&V","RIVER LEE COUNTRY PARK","SUPPLIES AND SERVICES","MATERIALS (COUNTERS)","4123","P119656-SERVICE-Visitor Counter Maintainance",11/10/2022 00:00:00,"267698",10000,"HE0418","HEALTHMATIC LTD",26/9/2022 00:00:00,30/10/2022 00:00:00,"P07-2023"
"P&V","THREE MILLS","SUPPLIES AND SERVICES","MATERIALS (COUNTERS)","4123","P119656-SERVICE-Visitor Counter Maintainance",11/10/2022 00:00:00,"267698",750,"HE0418","HEALTHMATIC LTD",26/9/2022 00:00:00,30/10/2022 00:00:00,"P07-2023"
"P&V","WILDLIFE DISCOVERY CENTRE","SUPPLIES AND SERVICES","MATERIALS (LOCKS)","4124","P119828-SERVICE-WDC Lift Keys",30/10/2022 00:00:00,"268119",42,"GA0448","GARTEC",26/9/2022 00:00:00,30/10/2022 00:00:00,"P07-2023"
,"LEE VALLEY CARAVAN PARK","SUPPLIES AND SERVICES","MATERIALS (GROUNDS MAINT)","4125","P119629-SERVICE-6 bags of top soil",12/10/2022 00:00:00,"267758",365.58,"TH0051","THOMPSONS OF CREWS HILL LTD",26/9/2022 00:00:00,30/10/2022 00:00:00,"P07-2023"
,"LEE VALLEY CARAVAN PARK","SUPPLIES AND SERVICES","MATERIALS (GROUNDS MAINT)","4125","P119766-SERVICE-PLASTIC SHEETING TO COVER GRASS SEEDED AREAS",19/10/2022 00:00:00,"267953",31.76,"BQ0164","TRADE UK ACCOUNT",26/9/2022 00:00:00,30/10/2022 00:00:00,"P07-2023"
,"LEE VALLEY CARAVAN PARK","SUPPLIES AND SERVICES","MATERIALS (GROUNDS MAINT)","4125","P119745-SERVICE-TWO TON TOP SOIL",24/10/2022 00:00:00,"268062",200,"MO0041","CAPSER",26/9/2022 00:00:00,30/10/2022 00:00:00,"P07-2023"
"P&V","RIVER LEE COUNTRY PARK","SUPPLIES AND SERVICES","MATERIALS (GROUNDS MAINT)","4125","P119140-SERVICE-Crushed Concrete for ESSA Track",30/10/2022 00:00:00,"268234",100,"RB0269","RB WHITBREAD (PLANT HIRE) LTD",26/9/2022 00:00:00,30/10/2022 00:00:00,"P07-2023"
"P&V","MYDDELTON HOUSE GARDENS","SUPPLIES AND SERVICES","MATERIALS (PLANTS & SHRUBS)","4126","FARGRO LIMITED",18/10/2022 00:00:00,"267655",688.33,"FA0149","FARGRO LIMITED",26/9/2022 00:00:00,30/10/2022 00:00:00,"P07-2023"
"P&V","MYDDELTON HOUSE GARDENS","SUPPLIES AND SERVICES","MATERIALS (PLANTS & SHRUBS)","4126","P119572-SERVICE-fargro order winter 22 gardens",18/10/2022 00:00:00,"267655",804.33,"FA0149","FARGRO LIMITED",26/9/2022 00:00:00,30/10/2022 00:00:00,"P07-2023"
"P&V","MYDDELTON HOUSE GARDENS","SUPPLIES AND SERVICES","MATERIALS (PLANTS & SHRUBS)","4126","FARGRO LIMITED",18/10/2022 00:00:00,"267655",116,"FA0149","FARGRO LIMITED",26/9/2022 00:00:00,30/10/2022 00:00:00,"P07-2023"
"P&V","MYDDELTON HOUSE GARDENS","SUPPLIES AND SERVICES","MATERIALS (PLANTS & SHRUBS)","4126","FARGRO LIMITED",18/10/2022 00:00:00,"267655",-804.33,"FA0149","FARGRO LIMITED",26/9/2022 00:00:00,30/10/2022 00:00:00,"P07-2023"
"P&V","MYDDELTON HOUSE GARDENS","SUPPLIES AND SERVICES","MATERIALS (PLANTS & SHRUBS)","4126","P119572-SERVICE-fargro order winter 22 gardens",26/10/2022 00:00:00,"268126",38.47,"FA0149","FARGRO LIMITED",26/9/2022 00:00:00,30/10/2022 00:00:00,"P07-2023"
"P&V","MYDDELTON HOUSE GARDENS","SUPPLIES AND SERVICES","MATERIALS (PLANTS & SHRUBS)","4126","P119825-SERVICE-gardens manure order oct 22",26/10/2022 00:00:00,"268131",492.5,"TH0051","THOMPSONS OF CREWS HILL LTD",26/9/2022 00:00:00,30/10/2022 00:00:00,"P07-2023"
"P&V","MYDDELTON HOUSE GARDENS","SUPPLIES AND SERVICES","MATERIALS (PLANTS & SHRUBS)","4126","P119678-SERVICE-gel bedding plants oct 22",26/10/2022 00:00:00,"268142",215.83,"CL0093","CLOCKHOUSE NURSERY",26/9/2022 00:00:00,30/10/2022 00:00:00,"P07-2023"
,"LEE VALLEY MARINA SPRINGFIELD","SUPPLIES AND SERVICES","MATERIALS (TOOLS & PLANT)","4127","P119583-SERVICE-3 x adams argon CO2 12% 20 Ltr Cylinder",11/10/2022 00:00:00,"267700",221.05,"EL0281","ELTHAM WELDING SUPPLIES LIMITED",26/9/2022 00:00:00,30/10/2022 00:00:00,"P07-2023"
,"STANSTEAD RECHARGEABLE WORKS","SUPPLIES AND SERVICES","MATERIALS (TOOLS & PLANT)","4127","P119602-SERVICE-cable reel ext, do not park signs RH",11/10/2022 00:00:00,"267730",159.12,"SC0057","SCREWFIX DIRECT LTD",26/9/2022 00:00:00,30/10/2022 00:00:00,"P07-2023"
,"STANSTEAD RECHARGEABLE WORKS","SUPPLIES AND SERVICES","MATERIALS (TOOLS & PLANT)","4127","P119720-SERVICE-crane repair",25/10/2022 00:00:00,"267902",272,"EN0309","PRH ENGINEERING LIMITED",26/9/2022 00:00:00,30/10/2022 00:00:00,"P07-2023"
,"STANSTEAD RECHARGEABLE WORKS","SUPPLIES AND SERVICES","MATERIALS (TOOLS & PLANT)","4127","P119714-SERVICE-swarfega and step drill - screwfix Oct 22",19/10/2022 00:00:00,"267954",51.18,"SC0057","SCREWFIX DIRECT LTD",26/9/2022 00:00:00,30/10/2022 00:00:00,"P07-2023"
,"STANSTEAD RECHARGEABLE WORKS","SUPPLIES AND SERVICES","MATERIALS (TOOLS & PLANT)","4127","P119716-SERVICE-ICLS crane op hire 3 days 420 per day",30/10/2022 00:00:00,"268150",1260,"IN0207","INDEPENDENT CONTRACT LIFTING SERVICES",26/9/2022 00:00:00,30/10/2022 00:00:00,"P07-2023"
,"SPRINGFIELD RECHARGEABLE WORKS","SUPPLIES AND SERVICES","MATERIALS (ENG OTHER)","4130","P119442-SERVICE-welding materials",5/10/2022 00:00:00,"267341",854.5,"EL0281","ELTHAM WELDING SUPPLIES LIMITED",26/9/2022 00:00:00,30/10/2022 00:00:00,"P07-2023"
,"SPRINGFIELD RECHARGEABLE WORKS","SUPPLIES AND SERVICES","MATERIALS (ENG OTHER)","4130","P119250-SERVICE-To provide insurance @15%",10/10/2022 00:00:00,"267578",210,"BA0339","BALDWINS CRANE HIRE LTD",26/9/2022 00:00:00,30/10/2022 00:00:00,"P07-2023"
,"SPRINGFIELD RECHARGEABLE WORKS","SUPPLIES AND SERVICES","MATERIALS (ENG OTHER)","4130","P119250-SERVICE-To hire 110 ton crane on 21-09-2022",10/10/2022 00:00:00,"267578",1400,"BA0339","BALDWINS CRANE HIRE LTD",26/9/2022 00:00:00,30/10/2022 00:00:00,"P07-2023"
,"SPRINGFIELD RECHARGEABLE WORKS","SUPPLIES AND SERVICES","MATERIALS (ENG OTHER)","4130","P119442-SERVICE-welding materials",12/10/2022 00:00:00,"267701",70.63,"EL0281","ELTHAM WELDING SUPPLIES LIMITED",26/9/2022 00:00:00,30/10/2022 00:00:00,"P07-2023"
,"STANSTEAD RECHARGEABLE WORKS","SUPPLIES AND SERVICES","MATERIALS (ENG OTHER)","4130","P119399-SERVICE-2 x towel rags",3/10/2022 00:00:00,"267354",80,"IN0012","INITIAL WASHROOM HYGIENE",26/9/2022 00:00:00,30/10/2022 00:00:00,"P07-2023"
,"STANSTEAD RECHARGEABLE WORKS","SUPPLIES AND SERVICES","MATERIALS (ENG OTHER)","4130","P119721-SERVICE-parts for w/s",18/10/2022 00:00:00,"267901",133.5,"EN0309","PRH ENGINEERING LIMITED",26/9/2022 00:00:00,30/10/2022 00:00:00,"P07-2023"
,"LV LEISURE CENTRE CAMPSITE","SUPPLIES AND SERVICES","MATERIALS (ENG OTHER)","4130","P119205-SERVICE-fire extinguisher water for office as empty",19/10/2022 00:00:00,"266897",94.31,"MO0478","MORGAN FIRE PROTECTION LTD",26/9/2022 00:00:00,30/10/2022 00:00:00,"P07-2023"
"P&V","LEE VALLEY FARM HOLYFIELDHALL","SUPPLIES AND SERVICES","FEED","4133","P119559-SERVICE-Selcoplus",10/10/2022 00:00:00,"267344",4488.68,"BO0246","FOR FARMERS UK LTD",26/9/2022 00:00:00,30/10/2022 00:00:00,"P07-2023"
"P&V","LEE VALLEY FARM HOLYFIELDHALL","SUPPLIES AND SERVICES","FEED","4133","P119617-SERVICE-Translac/Optima/Prime Rearer",10/10/2022 00:00:00,"267529",11250.65,"BO0246","FOR FARMERS UK LTD",26/9/2022 00:00:00,30/10/2022 00:00:00,"P07-2023"
"P&V","LEE VALLEY FARM HOLYFIELDHALL","SUPPLIES AND SERVICES","FEED","4133","P119631-SERVICE-Maxcare Dairy",11/10/2022 00:00:00,"267685",758.25,"BO0246","FOR FARMERS UK LTD",26/9/2022 00:00:00,30/10/2022 00:00:00,"P07-2023"
"P&V","LEE VALLEY FARM HOLYFIELDHALL","SUPPLIES AND SERVICES","FEED","4133","P119784-SERVICE-Boosterlac",24/10/2022 00:00:00,"267799",1703,"BO0246","FOR FARMERS UK LTD",26/9/2022 00:00:00,30/10/2022 00:00:00,"P07-2023"
"P&V","LEE VALLEY FARM HOLYFIELDHALL","SUPPLIES AND SERVICES","FEED","4133","P119785-SERVICE-Dairy Meal",24/10/2022 00:00:00,"267914",10196.62,"HE0449","HEYGATES COUNTRY FEEDS LTD",26/9/2022 00:00:00,30/10/2022 00:00:00,"P07-2023"
"P&V","LEE VALLEY FARM HOLYFIELDHALL","SUPPLIES AND SERVICES","FEED","4133","P119786-SERVICE-Selcoplus",24/10/2022 00:00:00,"267952",4840.54,"BO0246","FOR FARMERS UK LTD",26/9/2022 00:00:00,30/10/2022 00:00:00,"P07-2023"
"P&V","LEE VALLEY FARM HOLYFIELDHALL","SUPPLIES AND SERVICES","SEEDS","4135","P119558-SERVICE-Winter Wheat",10/10/2022 00:00:00,"267296",7437.5,"HA0013","HARLOW AGRICULTURAL MERCHANTS",26/9/2022 00:00:00,30/10/2022 00:00:00,"P07-2023"
"P&V","LEE VALLEY FARM HOLYFIELDHALL","SUPPLIES AND SERVICES","SEEDS","4135","P119902-SERVICE-Winter Wheat",30/10/2022 00:00:00,"268303",595,"HA0013","HARLOW AGRICULTURAL MERCHANTS",26/9/2022 00:00:00,30/10/2022 00:00:00,"P07-2023"
"P&V","LEE VALLEY FARM HOLYFIELDHALL","SUPPLIES AND SERVICES","SPRAYS","4136","P119616-SERVICE-Nuform",10/10/2022 00:00:00,"267491",1900,"HA0013","HARLOW AGRICULTURAL MERCHANTS",26/9/2022 00:00:00,30/10/2022 00:00:00,"P07-2023"
"P&V","LEE VALLEY FARM HOLYFIELDHALL","SUPPLIES AND SERVICES","SPRAYS","4136","P119630-SERVICE-Sprays",10/10/2022 00:00:00,"267673",5156,"HA0013","HARLOW AGRICULTURAL MERCHANTS",26/9/2022 00:00:00,30/10/2022 00:00:00,"P07-2023"
"P&V","LEE VALLEY FARM HOLYFIELDHALL","SUPPLIES AND SERVICES","SPRAYS","4136","P119901-SERVICE-De Sangosse",30/10/2022 00:00:00,"268301",1268.75,"HA0013","HARLOW AGRICULTURAL MERCHANTS",26/9/2022 00:00:00,30/10/2022 00:00:00,"P07-2023"
"P&V","LEE VALLEY FARM HOLYFIELDHALL","SUPPLIES AND SERVICES","SPRAYS","4136","P119630-SERVICE-Sprays",30/10/2022 00:00:00,"268302",-275.5,"HA0013","HARLOW AGRICULTURAL MERCHANTS",26/9/2022 00:00:00,30/10/2022 00:00:00,"P07-2023"
"P&V","LEE VALLEY FARM HOLYFIELDHALL","SUPPLIES AND SERVICES","DAIRY SUNDRIES","4138","P118536-SERVICE-Animal Removal",4/10/2022 00:00:00,"267292",54,"MA0074","W MARTIN & SON LIMITED",26/9/2022 00:00:00,30/10/2022 00:00:00,"P07-2023"
"P&V","LEE VALLEY FARM HOLYFIELDHALL","SUPPLIES AND SERVICES","DAIRY SUNDRIES","4138","P118371-SERVICE-Dairy Sundries",4/10/2022 00:00:00,"267301",60.25,"MI0023","MILL DAIRY SERVICES",26/9/2022 00:00:00,30/10/2022 00:00:00,"P07-2023"
"P&V","LEE VALLEY FARM HOLYFIELDHALL","SUPPLIES AND SERVICES","DAIRY SUNDRIES","4138","P118536-SERVICE-Animal Removal",4/10/2022 00:00:00,"267356",86,"MA0074","W MARTIN & SON LIMITED",26/9/2022 00:00:00,30/10/2022 00:00:00,"P07-2023"
"P&V","LEE VALLEY FARM HOLYFIELDHALL","SUPPLIES AND SERVICES","DAIRY SUNDRIES","4138","P117958-SERVICE-Liquid Nitrogen",10/10/2022 00:00:00,"267648",61.25,"GE0005","GENUS BREEDING LTD",26/9/2022 00:00:00,30/10/2022 00:00:00,"P07-2023"
"P&V","LEE VALLEY FARM HOLYFIELDHALL","SUPPLIES AND SERVICES","DAIRY SUNDRIES","4138","P119870-SERVICE-Animal Removal",30/10/2022 00:00:00,"268124",280,"MA0074","W MARTIN & SON LIMITED",26/9/2022 00:00:00,30/10/2022 00:00:00,"P07-2023"
"P&V","LEE VALLEY FARM HOLYFIELDHALL","SUPPLIES AND SERVICES","DAIRY SUNDRIES","4138","P118646-SERVICE-Dairy Sundries",30/10/2022 00:00:00,"268266",32.04,"FA0099","FARM & COUNTRY SUPPLIES LTD",26/9/2022 00:00:00,30/10/2022 00:00:00,"P07-2023"
"P&V","LEE VALLEY FARM HOLYFIELDHALL","SUPPLIES AND SERVICES","DAIRY SUNDRIES","4138","P118646-SERVICE-Dairy Sundries",30/10/2022 00:00:00,"268267",36.25,"FA0099","FARM & COUNTRY SUPPLIES LTD",26/9/2022 00:00:00,30/10/2022 00:00:00,"P07-2023"
"P&V","LEE VALLEY FARM HOLYFIELDHALL","SUPPLIES AND SERVICES","DAIRY SUNDRIES","4138","P118371-SERVICE-Dairy Sundries",30/10/2022 00:00:00,"268292",347.65,"MI0023","MILL DAIRY SERVICES",26/9/2022 00:00:00,30/10/2022 00:00:00,"P07-2023"
"P&V","LEE VALLEY FARM HOLYFIELDHALL","SUPPLIES AND SERVICES","DAIRY SUNDRIES","4138","P119900-SERVICE-Pearson Liners",30/10/2022 00:00:00,"268293",690.11,"MI0023","MILL DAIRY SERVICES",26/9/2022 00:00:00,30/10/2022 00:00:00,"P07-2023"
,"LV CAMPSITE CARAVAN SALES","SUPPLIES AND SERVICES","DECKING PURCHASES","4173","P119463-SERVICE-Extension on P5 Decking Farley",5/10/2022 00:00:00,"267530",4202.4,"LO0459","LONDON LODGES UK",26/9/2022 00:00:00,30/10/2022 00:00:00,"P07-2023"
,"LEE VALLEY MARINA STANSTEAD","SUPPLIES AND SERVICES","CLOTHING & UNIFORMS","4225","P119550-SERVICE-thermal gloves for w/shop colleagues",5/10/2022 00:00:00,"267507",24.96,"SC0057","SCREWFIX DIRECT LTD",26/9/2022 00:00:00,30/10/2022 00:00:00,"P07-2023"
,"LEE VALLEY MARINA STANSTEAD","SUPPLIES AND SERVICES","CLOTHING & UNIFORMS","4225","P119667-SERVICE-uniform winter bits",24/10/2022 00:00:00,"267880",124.95,"DI0017","DIRECT BOOT & SHOE SUPPLIES",26/9/2022 00:00:00,30/10/2022 00:00:00,"P07-2023"
"CEO","CHIEF EXECUTIVE","SUPPLIES AND SERVICES","OFFICE EXPENSES","4311","P119612-SERVICE-4 x IN41588 8GB USB Drive",12/10/2022 00:00:00,"267760",60.8,"TH0008","JKL SOLUTIONS LTD",26/9/2022 00:00:00,30/10/2022 00:00:00,"P07-2023"
"CEO","CHIEF EXECUTIVE","SUPPLIES AND SERVICES","OFFICE EXPENSES","4311","P119614-SERVICE-Polyfile Pack of 5 (SK21810)",18/10/2022 00:00:00,"267761",47.05,"TH0008","JKL SOLUTIONS LTD",26/9/2022 00:00:00,30/10/2022 00:00:00,"P07-2023"
"CEO","PR/COMMUNICATIONS","SUPPLIES AND SERVICES","OFFICE EXPENSES","4311","P119711-SERVICE-LVPRA business cards - 5 kinds x 200",30/10/2022 00:00:00,"268233",90,"BE0505","BELMONT PRESS",26/9/2022 00:00:00,30/10/2022 00:00:00,"P07-2023"
"R&B","DEMOCRATIC REPRESENTATION & MA","SUPPLIES AND SERVICES","OFFICE EXPENSES","4311","P119444-SERVICE-Leitz 5582 Staples",10/10/2022 00:00:00,"267333",19,"TH0008","JKL SOLUTIONS LTD",26/9/2022 00:00:00,30/10/2022 00:00:00,"P07-2023"
"R&B","DEMOCRATIC REPRESENTATION & MA","SUPPLIES AND SERVICES","OFFICE EXPENSES","4311","P119444-SERVICE-297633 - 1 Box of Pink Paper @ 7.40 per Ream",10/10/2022 00:00:00,"267333",37,"TH0008","JKL SOLUTIONS LTD",26/9/2022 00:00:00,30/10/2022 00:00:00,"P07-2023"
"R&B","DEMOCRATIC REPRESENTATION & MA","SUPPLIES AND SERVICES","OFFICE EXPENSES","4311","P119444-SERVICE-BB48718 - Mouse Mat",10/10/2022 00:00:00,"267333",7.28,"TH0008","JKL SOLUTIONS LTD",26/9/2022 00:00:00,30/10/2022 00:00:00,"P07-2023"
"R&B","FINANCE","SUPPLIES AND SERVICES","OFFICE EXPENSES","4311","P119636-SERVICE-1 x 40044BL-Envelope DL Self Seal Plain WHITE",18/10/2022 00:00:00,"267887",18.81,"TH0008","JKL SOLUTIONS LTD",26/9/2022 00:00:00,30/10/2022 00:00:00,"P07-2023"
"R&B","FINANCE","SUPPLIES AND SERVICES","OFFICE EXPENSES","4311","P119636-SERVICE-2 x KF2001 Staples",18/10/2022 00:00:00,"267887",2.74,"TH0008","JKL SOLUTIONS LTD",26/9/2022 00:00:00,30/10/2022 00:00:00,"P07-2023"
"R&B","FINANCE","SUPPLIES AND SERVICES","OFFICE EXPENSES","4311","P119636-SERVICE-1 x FL2884-Envelope DL Self Seal Window-WHITE",18/10/2022 00:00:00,"267887",20.86,"TH0008","JKL SOLUTIONS LTD",26/9/2022 00:00:00,30/10/2022 00:00:00,"P07-2023"
"R&B","FINANCE","SUPPLIES AND SERVICES","OFFICE EXPENSES","4311","P119636-SERVICE-1 x KF26051- Multiple Labels",18/10/2022 00:00:00,"267887",5.25,"TH0008","JKL SOLUTIONS LTD",26/9/2022 00:00:00,30/10/2022 00:00:00,"P07-2023"
,"LEE VALLEY MARINA STANSTEAD","SUPPLIES AND SERVICES","OFFICE EXPENSES","4311","P119799-SERVICE-office stationery (key tags/",30/10/2022 00:00:00,"268144",14.71,"TH0008","JKL SOLUTIONS LTD",26/9/2022 00:00:00,30/10/2022 00:00:00,"P07-2023"
,"LEE VALLEY CAMPSITE","SUPPLIES AND SERVICES","OFFICE EXPENSES","4311","P119841-SERVICE-notebooks x5",30/10/2022 00:00:00,"268238",14.18,"TH0008","JKL SOLUTIONS LTD",26/9/2022 00:00:00,30/10/2022 00:00:00,"P07-2023"
,"LEE VALLEY CAMPSITE","SUPPLIES AND SERVICES","OFFICE EXPENSES","4311","P119841-SERVICE-post it notesx3",30/10/2022 00:00:00,"268238",45.15,"TH0008","JKL SOLUTIONS LTD",26/9/2022 00:00:00,30/10/2022 00:00:00,"P07-2023"
,"LEE VALLEY CAMPSITE","SUPPLIES AND SERVICES","OFFICE EXPENSES","4311","P119841-SERVICE-photocopier  paper 2x boxes",30/10/2022 00:00:00,"268238",46.08,"TH0008","JKL SOLUTIONS LTD",26/9/2022 00:00:00,30/10/2022 00:00:00,"P07-2023"
,"LV LEISURE CENTRE CAMPSITE","SUPPLIES AND SERVICES","OFFICE EXPENSES","4311","P119682-SERVICE-Stationary",24/10/2022 00:00:00,"267888",18.96,"TH0008","JKL SOLUTIONS LTD",26/9/2022 00:00:00,30/10/2022 00:00:00,"P07-2023"
"R&B","INFORMATION TECHNOLOGY","SUPPLIES AND SERVICES","PHOTOCOPYING","4314","KONICA MINOLTA BUSINESS SOLUTI",4/10/2022 00:00:00,"267451",499.74,"KO0071","KONICA MINOLTA BUSINESS SOLUTIONS ( UK) LTD",26/9/2022 00:00:00,30/10/2022 00:00:00,"P07-2023"
"R&B","INFORMATION TECHNOLOGY","SUPPLIES AND SERVICES","PHOTOCOPYING","4314","JULY-OCT 2022",24/10/2022 00:00:00,"267786",284.99,"KO0071","KONICA MINOLTA BUSINESS SOLUTIONS ( UK) LTD",26/9/2022 00:00:00,30/10/2022 00:00:00,"P07-2023"
"R&B","INFORMATION TECHNOLOGY","SUPPLIES AND SERVICES","PHOTOCOPYING","4314","OCT 2022 - JAN 2023",24/10/2022 00:00:00,"267929",459.6,"KO0071","KONICA MINOLTA BUSINESS SOLUTIONS ( UK) LTD",26/9/2022 00:00:00,30/10/2022 00:00:00,"P07-2023"
"P&V","LEE VALLEY FARM HOLYFIELDHALL","SUPPLIES AND SERVICES","SUBSCRIPTIONS","4334","P117608-SERVICE-Subs",12/10/2022 00:00:00,"267690",390.98,"NA0005","NATIONAL MILK RECORDS PLC",26/9/2022 00:00:00,30/10/2022 00:00:00,"P07-2023"
"P&V","MYDDELTON HOUSE GARDENS","SUPPLIES AND SERVICES","SUBSCRIPTIONS","4334","P119827-SERVICE-plant heritage membership 22",26/10/2022 00:00:00,"268130",100,"NA0067","PLANT HERITAGE",26/9/2022 00:00:00,30/10/2022 00:00:00,"P07-2023"
"R&B","REVENUE SUSPENSE (AUTHORITY)","SUPPLIES AND SERVICES","TELEPHONES (MOBILE)","4484","SEPTEMBER 2022",24/10/2022 00:00:00,"267748",0.58,"GA0432","GAMMA TELECOM LTD",26/9/2022 00:00:00,30/10/2022 00:00:00,"P07-2023"
"R&B","REVENUE SUSPENSE (AUTHORITY)","SUPPLIES AND SERVICES","TELEPHONES (MOBILE)","4484","SEPTEMBER 2022",24/10/2022 00:00:00,"267748",686.65,"GA0432","GAMMA TELECOM LTD",26/9/2022 00:00:00,30/10/2022 00:00:00,"P07-2023"
"R&B","REVENUE SUSPENSE (AUTHORITY)","SUPPLIES AND SERVICES","TELEPHONES (MOBILE)","4484","VODAFONE  LIMITED (CORPORATE)",30/10/2022 00:00:00,"268273",294.7,"VO0010","VODAFONE  LIMITED (CORPORATE)",26/9/2022 00:00:00,30/10/2022 00:00:00,"P07-2023"
"R&B","DEMOCRATIC REPRESENTATION & MA","SUPPLIES AND SERVICES","MEMBERS EXPENSES","4502","P119527-SERVICE-Catering on 22/09/22",3/10/2022 00:00:00,"267469",134.1,"SH0256","SHARRONS EVENT CATERING COMPANY LTD",26/9/2022 00:00:00,30/10/2022 00:00:00,"P07-2023"
"R&B","DEMOCRATIC REPRESENTATION & MA","SUPPLIES AND SERVICES","MEMBERS EXPENSES","4502","P119765-SERVICE-Catering on 11/10/22",19/10/2022 00:00:00,"267932",74.5,"SH0256","SHARRONS EVENT CATERING COMPANY LTD",26/9/2022 00:00:00,30/10/2022 00:00:00,"P07-2023"
"R&B","DEMOCRATIC REPRESENTATION & MA","SUPPLIES AND SERVICES","MEMBERS EXPENSES","4502","P119816-SERVICE-Catering 20/10/22",24/10/2022 00:00:00,"268102",550,"SP0239","AMAZE IN TASTE LIMITED",26/9/2022 00:00:00,30/10/2022 00:00:00,"P07-2023"
"CEO","PR/COMMUNICATIONS","SUPPLIES AND SERVICES","HOSPITALITY","4505","P119312-SERVICE-Commonwealth Games - refreshments for invited",3/10/2022 00:00:00,"267270",410,"GR0097","GREENWICH LEISURE LTD",26/9/2022 00:00:00,30/10/2022 00:00:00,"P07-2023"
"CEO","PR/COMMUNICATIONS","SUPPLIES AND SERVICES","HOSPITALITY","4505","P119312-SERVICE-Commonwealth Games - refreshments for invited",3/10/2022 00:00:00,"267334",-410,"GR0097","GREENWICH LEISURE LTD",26/9/2022 00:00:00,30/10/2022 00:00:00,"P07-2023"
"P&V","RIVER LEE COUNTRY PARK","SUPPLIES AND SERVICES","VOLUNTEERS EXPENSES","4506","VOLUNTEER REFRESHMENT",4/10/2022 00:00:00,"267517",1.25,"FI0001","DIRECTOR OF FINANCE - CASH",26/9/2022 00:00:00,30/10/2022 00:00:00,"P07-2023"
"P&V","RIVER LEE COUNTRY PARK","SUPPLIES AND SERVICES","VOLUNTEERS EXPENSES","4506","VOLUNTEER REFRESHMENT",4/10/2022 00:00:00,"267517",10.25,"FI0001","DIRECTOR OF FINANCE - CASH",26/9/2022 00:00:00,30/10/2022 00:00:00,"P07-2023"
"P&V","RIVER LEE COUNTRY PARK","SUPPLIES AND SERVICES","VOLUNTEERS EXPENSES","4506","VOLUNTEER REFRESHMENTS",4/10/2022 00:00:00,"267517",19.79,"FI0001","DIRECTOR OF FINANCE - CASH",26/9/2022 00:00:00,30/10/2022 00:00:00,"P07-2023"
,"LEE VALLEY CAMPSITE","SUPPLIES AND SERVICES","MARKETING","4603","P119584-SERVICE-Sewardstone yrly Subs for campsites directory",10/10/2022 00:00:00,"267489",132,"UK0084","UK PARK FINDER LIMITED",26/9/2022 00:00:00,30/10/2022 00:00:00,"P07-2023"
,"LEE VALLEY CAMPSITE","SUPPLIES AND SERVICES","MARKETING","4603","P119492-SERVICE-LV Camping and Caravan Sewardstone",18/10/2022 00:00:00,"267807",87.5,"AC0479","DISABLED ENABLED LIMITED t/a ACCESS ABLE",26/9/2022 00:00:00,30/10/2022 00:00:00,"P07-2023"
,"LEE VALLEY CAMPSITE","SUPPLIES AND SERVICES","MARKETING","4603","P119708-SERVICE-Nedcamp Sewardstone",24/10/2022 00:00:00,"267922",125,"NE0195","NEDCAMP",26/9/2022 00:00:00,30/10/2022 00:00:00,"P07-2023"
,"LEE VALLEY CAMPSITE","SUPPLIES AND SERVICES","MARKETING","4603","P119708-SERVICE-Sewardstone Add funds- Exchange rate",24/10/2022 00:00:00,"267922",1.28,"NE0195","NEDCAMP",26/9/2022 00:00:00,30/10/2022 00:00:00,"P07-2023"
,"LEE VALLEY CAMPSITE","SUPPLIES AND SERVICES","MARKETING","4603","P119855-SERVICE-Sewardstone Visit England",30/10/2022 00:00:00,"268148",472.04,"VI0109","VISIT ENGLAND ASSESSMENT SERVICES",26/9/2022 00:00:00,30/10/2022 00:00:00,"P07-2023"
,"LEE VALLEY CARAVAN PARK","SUPPLIES AND SERVICES","MARKETING","4603","P119584-SERVICE-Dobbs Yrly Subs for campsite Directory",10/10/2022 00:00:00,"267489",132,"UK0084","UK PARK FINDER LIMITED",26/9/2022 00:00:00,30/10/2022 00:00:00,"P07-2023"
,"LEE VALLEY CARAVAN PARK","SUPPLIES AND SERVICES","MARKETING","4603","P119492-SERVICE-LV Caravan Park Dobbs",18/10/2022 00:00:00,"267807",637.5,"AC0479","DISABLED ENABLED LIMITED t/a ACCESS ABLE",26/9/2022 00:00:00,30/10/2022 00:00:00,"P07-2023"
,"LEE VALLEY CARAVAN PARK","SUPPLIES AND SERVICES","MARKETING","4603","P119708-SERVICE-Dobbs Add Funds- Exchange Rate",27/10/2022 00:00:00,"268096",2.44,"NE0195","NEDCAMP",26/9/2022 00:00:00,30/10/2022 00:00:00,"P07-2023"
,"LEE VALLEY CARAVAN PARK","SUPPLIES AND SERVICES","MARKETING","4603","P119708-SERVICE-Nedcamp Dobbs Weir",27/10/2022 00:00:00,"268096",125,"NE0195","NEDCAMP",26/9/2022 00:00:00,30/10/2022 00:00:00,"P07-2023"
"P&V","MYDDELTON HOUSE GARDENS","SUPPLIES AND SERVICES","MARKETING","4603","P119275-SERVICE-MHG leaflet for venue",18/10/2022 00:00:00,"267100",573,"PR0293","ELLE MEDIA GROUP",26/9/2022 00:00:00,30/10/2022 00:00:00,"P07-2023"
,"LV LEISURE CENTRE CAMPSITE","SUPPLIES AND SERVICES","MARKETING","4603","P119584-SERVICE-Edmonton Yearly subs campsite directory",10/10/2022 00:00:00,"267489",132,"UK0084","UK PARK FINDER LIMITED",26/9/2022 00:00:00,30/10/2022 00:00:00,"P07-2023"
,"LV LEISURE CENTRE CAMPSITE","SUPPLIES AND SERVICES","MARKETING","4603","P119492-SERVICE-LV Campsite Edmonton",18/10/2022 00:00:00,"267807",87.5,"AC0479","DISABLED ENABLED LIMITED t/a ACCESS ABLE",26/9/2022 00:00:00,30/10/2022 00:00:00,"P07-2023"
,"LV LEISURE CENTRE CAMPSITE","SUPPLIES AND SERVICES","MARKETING","4603","P119708-SERVICE-Nedcamp Edmonton",27/10/2022 00:00:00,"268097",125,"NE0195","NEDCAMP",26/9/2022 00:00:00,30/10/2022 00:00:00,"P07-2023"
,"LV LEISURE CENTRE CAMPSITE","SUPPLIES AND SERVICES","MARKETING","4603","P119708-SERVICE-Edmonton Add Funds-Exchange rate",27/10/2022 00:00:00,"268097",2.43,"NE0195","NEDCAMP",26/9/2022 00:00:00,30/10/2022 00:00:00,"P07-2023"
,"LV LEISURE CENTRE CAMPSITE","SUPPLIES AND SERVICES","MARKETING","4603","P119855-SERVICE-Edmonton Visit England",30/10/2022 00:00:00,"268149",472.04,"VI0109","VISIT ENGLAND ASSESSMENT SERVICES",26/9/2022 00:00:00,30/10/2022 00:00:00,"P07-2023"
,"LV LEISURE CENTRE GOLF COURSE","SUPPLIES AND SERVICES","MARKETING","4603","P119492-SERVICE-LV Golf Edmonton",18/10/2022 00:00:00,"267807",87.5,"AC0479","DISABLED ENABLED LIMITED t/a ACCESS ABLE",26/9/2022 00:00:00,30/10/2022 00:00:00,"P07-2023"
"P&V","SPORTS DEVELOPMENT GRANTS & AG","SUPPLIES AND SERVICES","MARKETING","4603","P119497-SERVICE-500 Flyers Active Health Day",3/10/2022 00:00:00,"267471",71.33,"SO0582","SOLOPRESS",26/9/2022 00:00:00,30/10/2022 00:00:00,"P07-2023"
"P&V","SPORTS DEVELOPMENT GRANTS & AG","SUPPLIES AND SERVICES","MARKETING","4603","P119238-SERVICE-Design 2 x A5, 2pp leaflets for LV White Wate",30/10/2022 00:00:00,"267511",570,"BL0393","BLUE SEA DESIGN",26/9/2022 00:00:00,30/10/2022 00:00:00,"P07-2023"
,"LEE VALLEY WATERWORKS CENTRE","SUPPLIES AND SERVICES","PEST CONTROL","4625","P119668-SERVICE-Pest Control - WaterWorks - Oct to Dec",12/10/2022 00:00:00,"267769",165,"VE0006","VERMINATE CITY & RURAL PEST CONTROL LTD",26/9/2022 00:00:00,30/10/2022 00:00:00,"P07-2023"
"P&V","NORTH AREA RANGERS","SUPPLIES AND SERVICES","PEST CONTROL","4625","P117770-SERVICE-Pest Control - North Sites - Sep",11/10/2022 00:00:00,"267717",66.67,"VE0006","VERMINATE CITY & RURAL PEST CONTROL LTD",26/9/2022 00:00:00,30/10/2022 00:00:00,"P07-2023"
"P&V","NORTH AREA RANGERS","SUPPLIES AND SERVICES","PEST CONTROL","4625","P117772-SERVICE-Pest Control - Ware Town Centre - Sep",11/10/2022 00:00:00,"267718",53.34,"VE0006","VERMINATE CITY & RURAL PEST CONTROL LTD",26/9/2022 00:00:00,30/10/2022 00:00:00,"P07-2023"
"P&V","NORTH AREA RANGERS","SUPPLIES AND SERVICES","PEST CONTROL","4625","P117770-SERVICE-Pest Control - North Sites - Oct",18/10/2022 00:00:00,"267762",66.67,"VE0006","VERMINATE CITY & RURAL PEST CONTROL LTD",26/9/2022 00:00:00,30/10/2022 00:00:00,"P07-2023"
"P&V","NORTH AREA RANGERS","SUPPLIES AND SERVICES","PEST CONTROL","4625","P117772-SERVICE-Pest Control - Ware Town Centre - Oct",18/10/2022 00:00:00,"267763",53.34,"VE0006","VERMINATE CITY & RURAL PEST CONTROL LTD",26/9/2022 00:00:00,30/10/2022 00:00:00,"P07-2023"
"P&V","SOUTH AREA RANGERS","SUPPLIES AND SERVICES","PEST CONTROL","4625","P117769-SERVICE-Pest Control - Tottenham Marshes - Sep",11/10/2022 00:00:00,"267722",46.67,"VE0006","VERMINATE CITY & RURAL PEST CONTROL LTD",26/9/2022 00:00:00,30/10/2022 00:00:00,"P07-2023"
"P&V","SOUTH AREA RANGERS","SUPPLIES AND SERVICES","PEST CONTROL","4625","P117769-SERVICE-Pest Control - Tottenham Marshes - Nov",24/10/2022 00:00:00,"267767",46.67,"VE0006","VERMINATE CITY & RURAL PEST CONTROL LTD",26/9/2022 00:00:00,30/10/2022 00:00:00,"P07-2023"
"P&V","ABBEY GARDENS","SUPPLIES AND SERVICES","PEST CONTROL","4625","P117770-SERVICE-Pest Control - North Sites - Sep",11/10/2022 00:00:00,"267717",33.33,"VE0006","VERMINATE CITY & RURAL PEST CONTROL LTD",26/9/2022 00:00:00,30/10/2022 00:00:00,"P07-2023"
"P&V","ABBEY GARDENS","SUPPLIES AND SERVICES","PEST CONTROL","4625","P117770-SERVICE-Pest Control - North Sites - Oct",18/10/2022 00:00:00,"267762",33.33,"VE0006","VERMINATE CITY & RURAL PEST CONTROL LTD",26/9/2022 00:00:00,30/10/2022 00:00:00,"P07-2023"
"P&V","RIVER LEE COUNTRY PARK","SUPPLIES AND SERVICES","PEST CONTROL","4625","P117770-SERVICE-Pest Control - North Sites - Sep",11/10/2022 00:00:00,"267717",66.67,"VE0006","VERMINATE CITY & RURAL PEST CONTROL LTD",26/9/2022 00:00:00,30/10/2022 00:00:00,"P07-2023"
"P&V","RIVER LEE COUNTRY PARK","SUPPLIES AND SERVICES","PEST CONTROL","4625","P117770-SERVICE-Pest Control - North Sites - Oct",18/10/2022 00:00:00,"267762",66.67,"VE0006","VERMINATE CITY & RURAL PEST CONTROL LTD",26/9/2022 00:00:00,30/10/2022 00:00:00,"P07-2023"
"P&V","FORMER LV LIDO SITE","SUPPLIES AND SERVICES","PEST CONTROL","4625","P117770-SERVICE-Pest Control - North Sites - Sep",11/10/2022 00:00:00,"267717",33.33,"VE0006","VERMINATE CITY & RURAL PEST CONTROL LTD",26/9/2022 00:00:00,30/10/2022 00:00:00,"P07-2023"
"P&V","FORMER LV LIDO SITE","SUPPLIES AND SERVICES","PEST CONTROL","4625","P117770-SERVICE-Pest Control - North Sites - Oct",18/10/2022 00:00:00,"267762",33.33,"VE0006","VERMINATE CITY & RURAL PEST CONTROL LTD",26/9/2022 00:00:00,30/10/2022 00:00:00,"P07-2023"
,"LEE VALLEY MARINA SPRINGFIELD","SUPPLIES AND SERVICES","MERCHANT PROCESSING CHARGES","4641","WORLDPAY",3/10/2022 00:00:00,"267458",30,"WO0338","WORLDPAY",26/9/2022 00:00:00,30/10/2022 00:00:00,"P07-2023"
,"LEE VALLEY MARINA STANSTEAD","SUPPLIES AND SERVICES","MERCHANT PROCESSING CHARGES","4641","WORLDPAY",3/10/2022 00:00:00,"267458",30,"WO0338","WORLDPAY",26/9/2022 00:00:00,30/10/2022 00:00:00,"P07-2023"
,"LEE VALLEY MARINA SPRINGFIELD","SUPPLIES AND SERVICES","CASH COLLECTIONS","4642","P119280-SERVICE-Cash Collection Springfield",3/10/2022 00:00:00,"266752",125,"BD0529","BDI SECURITIES",26/9/2022 00:00:00,30/10/2022 00:00:00,"P07-2023"
,"LEE VALLEY MARINA STANSTEAD","SUPPLIES AND SERVICES","CASH COLLECTIONS","4642","P119280-SERVICE-Cash Collection Stanstead",3/10/2022 00:00:00,"266752",125,"BD0529","BDI SECURITIES",26/9/2022 00:00:00,30/10/2022 00:00:00,"P07-2023"
,"LEE VALLEY VELOPARK","SUPPLIES AND SERVICES","CASH COLLECTIONS","4642","P119280-SERVICE-Cash Collection  VELO",3/10/2022 00:00:00,"266752",125,"BD0529","BDI SECURITIES",26/9/2022 00:00:00,30/10/2022 00:00:00,"P07-2023"
,"LEE VALLEY ATHLETICS CENTRE","SUPPLIES AND SERVICES","CASH COLLECTIONS","4642","P119280-SERVICE-Cash Collection LVAC",3/10/2022 00:00:00,"266752",125,"BD0529","BDI SECURITIES",26/9/2022 00:00:00,30/10/2022 00:00:00,"P07-2023"
"R&B","FINANCE & RESOURCES MANAGEMENT","SUPPLIES AND SERVICES","DEBT RECOVERY FEES","4646","LEGAL RECOVERIES AND COLLECTIO",24/10/2022 00:00:00,"268074",83,"LE0069","LEGAL RECOVERIES AND COLLECTIONS LIMITED",26/9/2022 00:00:00,30/10/2022 00:00:00,"P07-2023"
"R&B","FINANCE & RESOURCES MANAGEMENT","SUPPLIES AND SERVICES","DEBT RECOVERY FEES","4646","LEGAL RECOVERIES AND COLLECTIO",24/10/2022 00:00:00,"268074",252.06,"LE0069","LEGAL RECOVERIES AND COLLECTIONS LIMITED",26/9/2022 00:00:00,30/10/2022 00:00:00,"P07-2023"
"R&B","FINANCE & RESOURCES MANAGEMENT","SUPPLIES AND SERVICES","DEBT RECOVERY FEES","4646","P117729-SERVICE-DEBT RECOVERY FEES 2022/2023",24/10/2022 00:00:00,"268074",302.47,"LE0069","LEGAL RECOVERIES AND COLLECTIONS LIMITED",26/9/2022 00:00:00,30/10/2022 00:00:00,"P07-2023"
"R&B","FINANCE & RESOURCES MANAGEMENT","SUPPLIES AND SERVICES","DEBT RECOVERY FEES","4646","LEGAL RECOVERIES AND COLLECTIO",24/10/2022 00:00:00,"268074",-302.47,"LE0069","LEGAL RECOVERIES AND COLLECTIONS LIMITED",26/9/2022 00:00:00,30/10/2022 00:00:00,"P07-2023"
,"LEE VALLEY MARINA STANSTEAD","SUPPLIES AND SERVICES","SECURITY","4650","P119552-SERVICE-control panel error/fix w/shop",3/10/2022 00:00:00,"264724",181.25,"CH0088","CHUBB FIRE & SECURITY",26/9/2022 00:00:00,30/10/2022 00:00:00,"P07-2023"
,"LEE VALLEY MARINA STANSTEAD","SUPPLIES AND SERVICES","SECURITY","4650","P119552-SERVICE-control panel error/fix  chandlery",4/10/2022 00:00:00,"264725",165.2,"CH0088","CHUBB FIRE & SECURITY",26/9/2022 00:00:00,30/10/2022 00:00:00,"P07-2023"
,"LEE VALLEY MARINA STANSTEAD","SUPPLIES AND SERVICES","SECURITY","4650","P118721-SERVICE-taking the sensor off the chandlery door temp",4/10/2022 00:00:00,"264974",257.09,"CH0088","CHUBB FIRE & SECURITY",26/9/2022 00:00:00,30/10/2022 00:00:00,"P07-2023"
,"LEE VALLEY MARINA STANSTEAD","SUPPLIES AND SERVICES","SECURITY","4650","P118721-SERVICE-reconnecting sensor chandlery door",3/10/2022 00:00:00,"265137",264.8,"CH0088","CHUBB FIRE & SECURITY",26/9/2022 00:00:00,30/10/2022 00:00:00,"P07-2023"
,"LEE VALLEY MARINA STANSTEAD","SUPPLIES AND SERVICES","SECURITY","4650","P119603-SERVICE-replace, reprogramme faulty detector-chandler",10/10/2022 00:00:00,"267485",370.76,"CH0088","CHUBB FIRE & SECURITY",26/9/2022 00:00:00,30/10/2022 00:00:00,"P07-2023"
"P&V","NORTH AREA RANGERS","SUPPLIES AND SERVICES","SECURITY","4650","P118176-SERVICE-Security - North of Park",3/10/2022 00:00:00,"267461",3570.57,"PA0059","PARKGUARD LTD",26/9/2022 00:00:00,30/10/2022 00:00:00,"P07-2023"
"P&V","SOUTH AREA RANGERS","SUPPLIES AND SERVICES","SECURITY","4650","P118177-SERVICE-Security - South of Park",3/10/2022 00:00:00,"267460",8510.29,"PA0059","PARKGUARD LTD",26/9/2022 00:00:00,30/10/2022 00:00:00,"P07-2023"
"P&V","SOUTH AREA RANGERS","SUPPLIES AND SERVICES","SECURITY","4650","P118177-SERVICE-Security - South of Park",24/10/2022 00:00:00,"267985",7627.31,"PA0059","PARKGUARD LTD",26/9/2022 00:00:00,30/10/2022 00:00:00,"P07-2023"
"P&V","RIVER LEE COUNTRY PARK","SUPPLIES AND SERVICES","SECURITY","4650","P118176-SERVICE-Security - North of Park",3/10/2022 00:00:00,"267461",3624.65,"PA0059","PARKGUARD LTD",26/9/2022 00:00:00,30/10/2022 00:00:00,"P07-2023"
"P&V","RIVER LEE COUNTRY PARK","SUPPLIES AND SERVICES","SECURITY","4650","P118176-SERVICE-Security - North of Park",24/10/2022 00:00:00,"267984",6182.49,"PA0059","PARKGUARD LTD",26/9/2022 00:00:00,30/10/2022 00:00:00,"P07-2023"
"CEO","LVLC SERVICE CHARGE","SUPPLIES AND SERVICES","SECURITY","4650","P119674-SERVICE-Security",18/10/2022 00:00:00,"267502",2876.4,"SA0626","SAFE SITE SECURITY SOLUTIONS LTD",26/9/2022 00:00:00,30/10/2022 00:00:00,"P07-2023"
"CEO","PR/COMMUNICATIONS","SUPPLIES AND SERVICES","SPECIAL MARKETING PROJECTS","4652","P119424-SERVICE-Lee Valley Park flags x 10",24/10/2022 00:00:00,"267934",750.61,"FL0146","FLAGMAKER GROUP",26/9/2022 00:00:00,30/10/2022 00:00:00,"P07-2023"
"R&B","PERFORMANCE MANAGEMENT","SUPPLIES AND SERVICES","OFFSITE ARCHIVED STORAGE","4667","P119794-SERVICE-Off site storage September 2022",26/10/2022 00:00:00,"267639",324.07,"DA0154","RESTORE PLC",26/9/2022 00:00:00,30/10/2022 00:00:00,"P07-2023"
"P&V","LEE VALLEY FARM HOLYFIELDHALL","THIRD PARTY PAYMENTS","VETERINARY SERVICES","4718","P119669-SERVICE-Vets",18/10/2022 00:00:00,"267750",1406.86,"HA0443","HAMPDEN VETERINARY HOSPITAL",26/9/2022 00:00:00,30/10/2022 00:00:00,"P07-2023"
"P&V","MYDDLETON HSE HERITAGE CENTRE","SUPPLIES AND SERVICES","NET CATERING PURCHASES","4777","P119122-SERVICE-Food/Drink order week commencing 22/08/2022",18/10/2022 00:00:00,"266506",-8.76,"360001","BIDFOOD",26/9/2022 00:00:00,30/10/2022 00:00:00,"P07-2023"
"P&V","MYDDLETON HSE HERITAGE CENTRE","SUPPLIES AND SERVICES","NET CATERING PURCHASES","4777","P119661-SERVICE-coffee order week comm 10.10.2022",18/10/2022 00:00:00,"267065",197.45,"TU0194","TUDOR TEA & COFFEE",26/9/2022 00:00:00,30/10/2022 00:00:00,"P07-2023"
"P&V","MYDDLETON HSE HERITAGE CENTRE","SUPPLIES AND SERVICES","NET CATERING PURCHASES","4777","BIDFOOD",18/10/2022 00:00:00,"267250",435.52,"360001","BIDFOOD",26/9/2022 00:00:00,30/10/2022 00:00:00,"P07-2023"
"P&V","MYDDLETON HSE HERITAGE CENTRE","SUPPLIES AND SERVICES","NET CATERING PURCHASES","4777","BIDFOOD",18/10/2022 00:00:00,"267250",-618.37,"360001","BIDFOOD",26/9/2022 00:00:00,30/10/2022 00:00:00,"P07-2023"
"P&V","MYDDLETON HSE HERITAGE CENTRE","SUPPLIES AND SERVICES","NET CATERING PURCHASES","4777","P119389-SERVICE-food/drinks order VC sept 14.9",18/10/2022 00:00:00,"267250",618.37,"360001","BIDFOOD",26/9/2022 00:00:00,30/10/2022 00:00:00,"P07-2023"
"P&V","MYDDLETON HSE HERITAGE CENTRE","SUPPLIES AND SERVICES","NET CATERING PURCHASES","4777","BIDFOOD",18/10/2022 00:00:00,"267250",182.85,"360001","BIDFOOD",26/9/2022 00:00:00,30/10/2022 00:00:00,"P07-2023"
"P&V","MYDDLETON HSE HERITAGE CENTRE","SUPPLIES AND SERVICES","NET CATERING PURCHASES","4777","BIDFOOD",18/10/2022 00:00:00,"267251",21.83,"360001","BIDFOOD",26/9/2022 00:00:00,30/10/2022 00:00:00,"P07-2023"
"P&V","MYDDLETON HSE HERITAGE CENTRE","SUPPLIES AND SERVICES","NET CATERING PURCHASES","4777","BIDFOOD",18/10/2022 00:00:00,"267251",192.55,"360001","BIDFOOD",26/9/2022 00:00:00,30/10/2022 00:00:00,"P07-2023"
"P&V","MYDDLETON HSE HERITAGE CENTRE","SUPPLIES AND SERVICES","NET CATERING PURCHASES","4777","BIDFOOD",18/10/2022 00:00:00,"267251",-214.38,"360001","BIDFOOD",26/9/2022 00:00:00,30/10/2022 00:00:00,"P07-2023"
"P&V","MYDDLETON HSE HERITAGE CENTRE","SUPPLIES AND SERVICES","NET CATERING PURCHASES","4777","P119389-SERVICE-food/drinks order VC sept 14.9",18/10/2022 00:00:00,"267251",214.38,"360001","BIDFOOD",26/9/2022 00:00:00,30/10/2022 00:00:00,"P07-2023"
"P&V","MYDDLETON HSE HERITAGE CENTRE","SUPPLIES AND SERVICES","NET CATERING PURCHASES","4777","BIDFOOD",18/10/2022 00:00:00,"267479",341.29,"360001","BIDFOOD",26/9/2022 00:00:00,30/10/2022 00:00:00,"P07-2023"
"P&V","MYDDLETON HSE HERITAGE CENTRE","SUPPLIES AND SERVICES","NET CATERING PURCHASES","4777","BIDFOOD",18/10/2022 00:00:00,"267479",-457.24,"360001","BIDFOOD",26/9/2022 00:00:00,30/10/2022 00:00:00,"P07-2023"
"P&V","MYDDLETON HSE HERITAGE CENTRE","SUPPLIES AND SERVICES","NET CATERING PURCHASES","4777","P119389-SERVICE-food/drinks order VC sept 14.9",18/10/2022 00:00:00,"267479",457.24,"360001","BIDFOOD",26/9/2022 00:00:00,30/10/2022 00:00:00,"P07-2023"
"P&V","MYDDLETON HSE HERITAGE CENTRE","SUPPLIES AND SERVICES","NET CATERING PURCHASES","4777","BIDFOOD",18/10/2022 00:00:00,"267479",115.95,"360001","BIDFOOD",26/9/2022 00:00:00,30/10/2022 00:00:00,"P07-2023"
"P&V","MYDDLETON HSE HERITAGE CENTRE","SUPPLIES AND SERVICES","NET CATERING PURCHASES","4777","P119389-SERVICE-food/drinks order VC sept 14.9",18/10/2022 00:00:00,"267480",352.83,"360001","BIDFOOD",26/9/2022 00:00:00,30/10/2022 00:00:00,"P07-2023"
"P&V","MYDDLETON HSE HERITAGE CENTRE","SUPPLIES AND SERVICES","NET CATERING PURCHASES","4777","P119661-SERVICE-coffee order week comm 10.10.2022",18/10/2022 00:00:00,"267680",52.55,"TU0194","TUDOR TEA & COFFEE",26/9/2022 00:00:00,30/10/2022 00:00:00,"P07-2023"
"P&V","MYDDLETON HSE HERITAGE CENTRE","SUPPLIES AND SERVICES","NET CATERING PURCHASES","4777","P119327-SERVICE-Coffee and coffeee machine cleaning products",18/10/2022 00:00:00,"267680",85.45,"TU0194","TUDOR TEA & COFFEE",26/9/2022 00:00:00,30/10/2022 00:00:00,"P07-2023"
"P&V","MYDDLETON HSE HERITAGE CENTRE","SUPPLIES AND SERVICES","NET CATERING PURCHASES","4777","P119327-SERVICE-Coffee and coffeee machine cleaning products",18/10/2022 00:00:00,"267681",263.6,"TU0194","TUDOR TEA & COFFEE",26/9/2022 00:00:00,30/10/2022 00:00:00,"P07-2023"
"P&V","MYDDLETON HSE HERITAGE CENTRE","SUPPLIES AND SERVICES","NET CATERING PURCHASES","4777","TUDOR TEA & COFFEE",18/10/2022 00:00:00,"267681",125.6,"TU0194","TUDOR TEA & COFFEE",26/9/2022 00:00:00,30/10/2022 00:00:00,"P07-2023"
"P&V","MYDDLETON HSE HERITAGE CENTRE","SUPPLIES AND SERVICES","NET CATERING PURCHASES","4777","TUDOR TEA & COFFEE",18/10/2022 00:00:00,"267681",138,"TU0194","TUDOR TEA & COFFEE",26/9/2022 00:00:00,30/10/2022 00:00:00,"P07-2023"
"P&V","MYDDLETON HSE HERITAGE CENTRE","SUPPLIES AND SERVICES","NET CATERING PURCHASES","4777","TUDOR TEA & COFFEE",18/10/2022 00:00:00,"267681",-263.6,"TU0194","TUDOR TEA & COFFEE",26/9/2022 00:00:00,30/10/2022 00:00:00,"P07-2023"
"P&V","MYDDLETON HSE HERITAGE CENTRE","SUPPLIES AND SERVICES","NET CATERING PURCHASES","4777","BIDFOOD",26/10/2022 00:00:00,"267689",473.75,"360001","BIDFOOD",26/9/2022 00:00:00,30/10/2022 00:00:00,"P07-2023"
"P&V","MYDDLETON HSE HERITAGE CENTRE","SUPPLIES AND SERVICES","NET CATERING PURCHASES","4777","BIDFOOD",26/10/2022 00:00:00,"267689",-538.68,"360001","BIDFOOD",26/9/2022 00:00:00,30/10/2022 00:00:00,"P07-2023"
"P&V","MYDDLETON HSE HERITAGE CENTRE","SUPPLIES AND SERVICES","NET CATERING PURCHASES","4777","BIDFOOD",26/10/2022 00:00:00,"267689",64.93,"360001","BIDFOOD",26/9/2022 00:00:00,30/10/2022 00:00:00,"P07-2023"
"P&V","MYDDLETON HSE HERITAGE CENTRE","SUPPLIES AND SERVICES","NET CATERING PURCHASES","4777","P119838-SERVICE-Food/drink order week comm 24/10/2022",26/10/2022 00:00:00,"267689",538.68,"360001","BIDFOOD",26/9/2022 00:00:00,30/10/2022 00:00:00,"P07-2023"
"P&V","MYDDLETON HSE HERITAGE CENTRE","SUPPLIES AND SERVICES","NET CATERING PURCHASES","4777","BIDFOOD",25/10/2022 00:00:00,"267789",-476.72,"360001","BIDFOOD",26/9/2022 00:00:00,30/10/2022 00:00:00,"P07-2023"
"P&V","MYDDLETON HSE HERITAGE CENTRE","SUPPLIES AND SERVICES","NET CATERING PURCHASES","4777","BIDFOOD",25/10/2022 00:00:00,"267789",59.95,"360001","BIDFOOD",26/9/2022 00:00:00,30/10/2022 00:00:00,"P07-2023"
"P&V","MYDDLETON HSE HERITAGE CENTRE","SUPPLIES AND SERVICES","NET CATERING PURCHASES","4777","P119660-SERVICE-Food/Drink order week com 10.10.2022",25/10/2022 00:00:00,"267789",476.72,"360001","BIDFOOD",26/9/2022 00:00:00,30/10/2022 00:00:00,"P07-2023"
"P&V","MYDDLETON HSE HERITAGE CENTRE","SUPPLIES AND SERVICES","NET CATERING PURCHASES","4777","BIDFOOD",25/10/2022 00:00:00,"267789",416.77,"360001","BIDFOOD",26/9/2022 00:00:00,30/10/2022 00:00:00,"P07-2023"
"P&V","MYDDLETON HSE HERITAGE CENTRE","SUPPLIES AND SERVICES","NET CATERING PURCHASES","4777","P119660-SERVICE-Food/Drink order week com 10.10.2022",25/10/2022 00:00:00,"267921",123.28,"360001","BIDFOOD",26/9/2022 00:00:00,30/10/2022 00:00:00,"P07-2023"
"P&V","MYDDLETON HSE HERITAGE CENTRE","SUPPLIES AND SERVICES","NET CATERING PURCHASES","4777","P119613-SERVICE-Food/Drink order week com 03/10/2022",25/10/2022 00:00:00,"267921",458.41,"360001","BIDFOOD",26/9/2022 00:00:00,30/10/2022 00:00:00,"P07-2023"
"P&V","MYDDLETON HSE HERITAGE CENTRE","SUPPLIES AND SERVICES","NET CATERING PURCHASES","4777","BIDFOOD",25/10/2022 00:00:00,"267921",-458.41,"360001","BIDFOOD",26/9/2022 00:00:00,30/10/2022 00:00:00,"P07-2023"
"P&V","MYDDLETON HSE HERITAGE CENTRE","SUPPLIES AND SERVICES","NET CATERING PURCHASES","4777","BIDFOOD",25/10/2022 00:00:00,"267921",416.46,"360001","BIDFOOD",26/9/2022 00:00:00,30/10/2022 00:00:00,"P07-2023"
"P&V","MYDDLETON HSE HERITAGE CENTRE","SUPPLIES AND SERVICES","NET CATERING PURCHASES","4777","BIDFOOD",25/10/2022 00:00:00,"267921",41.95,"360001","BIDFOOD",26/9/2022 00:00:00,30/10/2022 00:00:00,"P07-2023"
"P&V","MYDDLETON HSE HERITAGE CENTRE","SUPPLIES AND SERVICES","NET CATERING PURCHASES","4777","BIDFOOD",25/10/2022 00:00:00,"267974",121.14,"360001","BIDFOOD",26/9/2022 00:00:00,30/10/2022 00:00:00,"P07-2023"
"P&V","MYDDLETON HSE HERITAGE CENTRE","SUPPLIES AND SERVICES","NET CATERING PURCHASES","4777","BIDFOOD",25/10/2022 00:00:00,"267974",-424.52,"360001","BIDFOOD",26/9/2022 00:00:00,30/10/2022 00:00:00,"P07-2023"
"P&V","MYDDLETON HSE HERITAGE CENTRE","SUPPLIES AND SERVICES","NET CATERING PURCHASES","4777","P119613-SERVICE-Food/Drink order week com 03/10/2022",25/10/2022 00:00:00,"267974",424.52,"360001","BIDFOOD",26/9/2022 00:00:00,30/10/2022 00:00:00,"P07-2023"
"P&V","MYDDLETON HSE HERITAGE CENTRE","SUPPLIES AND SERVICES","NET CATERING PURCHASES","4777","BIDFOOD",25/10/2022 00:00:00,"267974",303.38,"360001","BIDFOOD",26/9/2022 00:00:00,30/10/2022 00:00:00,"P07-2023"
"P&V","MYDDLETON HSE HERITAGE CENTRE","SUPPLIES AND SERVICES","NET CATERING PURCHASES","4777","P119763-SERVICE-Disposable cups week com 17/10/2022",25/10/2022 00:00:00,"268058",141.1,"CA0585","CAFE CONNECTIONS",26/9/2022 00:00:00,30/10/2022 00:00:00,"P07-2023"
"P&V","MYDDLETON HSE HERITAGE CENTRE","SUPPLIES AND SERVICES","NET CATERING PURCHASES","4777","BIDFOOD",25/10/2022 00:00:00,"268084",-450.57,"360001","BIDFOOD",26/9/2022 00:00:00,30/10/2022 00:00:00,"P07-2023"
"P&V","MYDDLETON HSE HERITAGE CENTRE","SUPPLIES AND SERVICES","NET CATERING PURCHASES","4777","BIDFOOD",25/10/2022 00:00:00,"268084",380.03,"360001","BIDFOOD",26/9/2022 00:00:00,30/10/2022 00:00:00,"P07-2023"
"P&V","MYDDLETON HSE HERITAGE CENTRE","SUPPLIES AND SERVICES","NET CATERING PURCHASES","4777","BIDFOOD",25/10/2022 00:00:00,"268084",70.54,"360001","BIDFOOD",26/9/2022 00:00:00,30/10/2022 00:00:00,"P07-2023"
"P&V","MYDDLETON HSE HERITAGE CENTRE","SUPPLIES AND SERVICES","NET CATERING PURCHASES","4777","P119761-SERVICE-Food & Drink order week com 17 Oct 2022",25/10/2022 00:00:00,"268084",450.57,"360001","BIDFOOD",26/9/2022 00:00:00,30/10/2022 00:00:00,"P07-2023"
"P&V","MYDDLETON HSE HERITAGE CENTRE","SUPPLIES AND SERVICES","NET CATERING PURCHASES","4777","P119389-SERVICE-food/drinks order VC sept 14.9",25/10/2022 00:00:00,"268095",-54.49,"360001","BIDFOOD",26/9/2022 00:00:00,30/10/2022 00:00:00,"P07-2023"
"P&V","MYDDLETON HSE HERITAGE CENTRE","SUPPLIES AND SERVICES","NET CATERING PURCHASES","4777","BIDFOOD",30/10/2022 00:00:00,"268274",276.8,"360001","BIDFOOD",26/9/2022 00:00:00,30/10/2022 00:00:00,"P07-2023"
"P&V","MYDDLETON HSE HERITAGE CENTRE","SUPPLIES AND SERVICES","NET CATERING PURCHASES","4777","P119912-SERVICE-food/drinks order oct 22",30/10/2022 00:00:00,"268274",344.97,"360001","BIDFOOD",26/9/2022 00:00:00,30/10/2022 00:00:00,"P07-2023"
"P&V","MYDDLETON HSE HERITAGE CENTRE","SUPPLIES AND SERVICES","NET CATERING PURCHASES","4777","BIDFOOD",30/10/2022 00:00:00,"268274",-344.97,"360001","BIDFOOD",26/9/2022 00:00:00,30/10/2022 00:00:00,"P07-2023"
"P&V","MYDDLETON HSE HERITAGE CENTRE","SUPPLIES AND SERVICES","NET CATERING PURCHASES","4777","BIDFOOD",30/10/2022 00:00:00,"268274",68.17,"360001","BIDFOOD",26/9/2022 00:00:00,30/10/2022 00:00:00,"P07-2023"
"P&V","MYDDLETON HSE HERITAGE CENTRE","SUPPLIES AND SERVICES","NET CATERING PURCHASES","4777","P119838-SERVICE-Food/drink order week comm 24/10/2022",30/10/2022 00:00:00,"268275",18.48,"360001","BIDFOOD",26/9/2022 00:00:00,30/10/2022 00:00:00,"P07-2023"
"P&V","MYDDELTON HOUSE","SUPPLIES AND SERVICES","TRADING AC - EXTERNAL PURCHASE","4875","P119587-SERVICE-1 x Kenco Really Smooth (53526)",11/10/2022 00:00:00,"267699",18.99,"360001","BIDFOOD",26/9/2022 00:00:00,30/10/2022 00:00:00,"P07-2023"
"P&V","MYDDELTON HOUSE","SUPPLIES AND SERVICES","TRADING AC - EXTERNAL PURCHASE","4875","P119587-SERVICE-1 x Box Coronet White Sugar 1000",11/10/2022 00:00:00,"267699",7.71,"360001","BIDFOOD",26/9/2022 00:00:00,30/10/2022 00:00:00,"P07-2023"
"P&V","MYDDELTON HOUSE","SUPPLIES AND SERVICES","TRADING AC - EXTERNAL PURCHASE","4875","P119587-SERVICE-1 x Box Assorted Biscuits (20028)",11/10/2022 00:00:00,"267699",9.33,"360001","BIDFOOD",26/9/2022 00:00:00,30/10/2022 00:00:00,"P07-2023"
"P&V","MYDDELTON HOUSE","SUPPLIES AND SERVICES","TRADING AC - EXTERNAL PURCHASE","4875","P119587-SERVICE-1 x Soya Milk Substitue Portions (73374)",11/10/2022 00:00:00,"267699",4.79,"360001","BIDFOOD",26/9/2022 00:00:00,30/10/2022 00:00:00,"P07-2023"
"P&V","MYDDELTON HOUSE","SUPPLIES AND SERVICES","TRADING AC - EXTERNAL PURCHASE","4875","P119587-SERVICE-3 x Coronet Semi-Skimmed Milk Capsules UHT 12",11/10/2022 00:00:00,"267699",10.8,"360001","BIDFOOD",26/9/2022 00:00:00,30/10/2022 00:00:00,"P07-2023"
"P&V","MYDDELTON HOUSE","SUPPLIES AND SERVICES","TRADING AC - EXTERNAL PURCHASE","4875","P119587-SERVICE-1 x Box Luxury Biscuits (01048)",11/10/2022 00:00:00,"267699",17.67,"360001","BIDFOOD",26/9/2022 00:00:00,30/10/2022 00:00:00,"P07-2023"
,"LEE VALLEY MARINA SPRINGFIELD","SUPPLIES AND SERVICES","TRADING AC - EXTERNAL PURCHASE","4875","P119416-SERVICE-Chandlery Stock  (hull blacking)",18/10/2022 00:00:00,"267283",2313,"SM0658","SML PAINTS AND COATINGS",26/9/2022 00:00:00,30/10/2022 00:00:00,"P07-2023"
,"LEE VALLEY MARINA SPRINGFIELD","SUPPLIES AND SERVICES","TRADING AC - EXTERNAL PURCHASE","4875","P119414-SERVICE-Chandlery Stock   899001",18/10/2022 00:00:00,"267286",43.24,"MI0200","MIDLAND CHANDLERS LIMITED",26/9/2022 00:00:00,30/10/2022 00:00:00,"P07-2023"
,"LEE VALLEY MARINA SPRINGFIELD","SUPPLIES AND SERVICES","TRADING AC - EXTERNAL PURCHASE","4875","P119466-SERVICE-Chandlery Stock  900950",18/10/2022 00:00:00,"267309",426.25,"MI0200","MIDLAND CHANDLERS LIMITED",26/9/2022 00:00:00,30/10/2022 00:00:00,"P07-2023"
,"LEE VALLEY MARINA SPRINGFIELD","SUPPLIES AND SERVICES","TRADING AC - EXTERNAL PURCHASE","4875","P119488-SERVICE-Chandlery Stock",18/10/2022 00:00:00,"267311",461.68,"AQ0033","AQUAFAX LIMITED",26/9/2022 00:00:00,30/10/2022 00:00:00,"P07-2023"
,"LEE VALLEY MARINA SPRINGFIELD","SUPPLIES AND SERVICES","TRADING AC - EXTERNAL PURCHASE","4875","P119441-SERVICE-Chandlery Stock",19/10/2022 00:00:00,"267314",325.58,"CE0510","CENTURION EUROPE LIMITED",26/9/2022 00:00:00,30/10/2022 00:00:00,"P07-2023"
,"LEE VALLEY MARINA SPRINGFIELD","SUPPLIES AND SERVICES","TRADING AC - EXTERNAL PURCHASE","4875","P119441-SERVICE-Chandlery Stock",19/10/2022 00:00:00,"267314",54.4,"CE0510","CENTURION EUROPE LIMITED",26/9/2022 00:00:00,30/10/2022 00:00:00,"P07-2023"
,"LEE VALLEY MARINA SPRINGFIELD","SUPPLIES AND SERVICES","TRADING AC - EXTERNAL PURCHASE","4875","P119441-SERVICE-Chandlery Stock",18/10/2022 00:00:00,"267315",400.09,"CE0510","CENTURION EUROPE LIMITED",26/9/2022 00:00:00,30/10/2022 00:00:00,"P07-2023"
,"LEE VALLEY MARINA SPRINGFIELD","SUPPLIES AND SERVICES","TRADING AC - EXTERNAL PURCHASE","4875","P119381-SERVICE-Chandlery Stock  (gas and coal)",18/10/2022 00:00:00,"267336",375.9,"SM0664","KG SMITH & SON",26/9/2022 00:00:00,30/10/2022 00:00:00,"P07-2023"
,"LEE VALLEY MARINA SPRINGFIELD","SUPPLIES AND SERVICES","TRADING AC - EXTERNAL PURCHASE","4875","P119739-SERVICE-Chandlery Stock  (gas fitting)",19/10/2022 00:00:00,"267343",5.9,"AQ0033","AQUAFAX LIMITED",26/9/2022 00:00:00,30/10/2022 00:00:00,"P07-2023"
,"LEE VALLEY MARINA SPRINGFIELD","SUPPLIES AND SERVICES","TRADING AC - EXTERNAL PURCHASE","4875","P118038-SERVICE-Timber & Buffalo Board",5/10/2022 00:00:00,"267487",617.9,"RO0323","E ROBERT TIMBER LTD",26/9/2022 00:00:00,30/10/2022 00:00:00,"P07-2023"
,"LEE VALLEY MARINA SPRINGFIELD","SUPPLIES AND SERVICES","TRADING AC - EXTERNAL PURCHASE","4875","P119468-SERVICE-Chandlery Stock",18/10/2022 00:00:00,"267671",555.67,"CA0660","CALFIRE SPARELINE LIMITED",26/9/2022 00:00:00,30/10/2022 00:00:00,"P07-2023"
,"LEE VALLEY MARINA SPRINGFIELD","SUPPLIES AND SERVICES","TRADING AC - EXTERNAL PURCHASE","4875","P119415-SERVICE-Chandlery Stock  205902",18/10/2022 00:00:00,"267675",124.53,"AS0036","ASAP SUPPLIES",26/9/2022 00:00:00,30/10/2022 00:00:00,"P07-2023"
,"LEE VALLEY MARINA SPRINGFIELD","SUPPLIES AND SERVICES","TRADING AC - EXTERNAL PURCHASE","4875","P119381-SERVICE-Chandlery Stock (heatlogs)",18/10/2022 00:00:00,"267697",199.5,"SM0664","KG SMITH & SON",26/9/2022 00:00:00,30/10/2022 00:00:00,"P07-2023"
,"LEE VALLEY MARINA SPRINGFIELD","SUPPLIES AND SERVICES","TRADING AC - EXTERNAL PURCHASE","4875","P119701-SERVICE-Chandlery Stock",18/10/2022 00:00:00,"267727",22.38,"MI0200","MIDLAND CHANDLERS LIMITED",26/9/2022 00:00:00,30/10/2022 00:00:00,"P07-2023"
,"LEE VALLEY MARINA SPRINGFIELD","SUPPLIES AND SERVICES","TRADING AC - EXTERNAL PURCHASE","4875","P119657-SERVICE-Chandlery Stovck",18/10/2022 00:00:00,"267779",46.19,"CR0651","CRAFTMASTER PAINTS",26/9/2022 00:00:00,30/10/2022 00:00:00,"P07-2023"
,"LEE VALLEY MARINA SPRINGFIELD","SUPPLIES AND SERVICES","TRADING AC - EXTERNAL PURCHASE","4875","P119685-SERVICE-CHandlery Stock 907947",24/10/2022 00:00:00,"267891",911.38,"MI0200","MIDLAND CHANDLERS LIMITED",26/9/2022 00:00:00,30/10/2022 00:00:00,"P07-2023"
,"LEE VALLEY MARINA SPRINGFIELD","SUPPLIES AND SERVICES","TRADING AC - EXTERNAL PURCHASE","4875","P119712-SERVICE-Chandlery Stock (gearbox)",18/10/2022 00:00:00,"267895",809.72,"AS0036","ASAP SUPPLIES",26/9/2022 00:00:00,30/10/2022 00:00:00,"P07-2023"
,"LEE VALLEY MARINA SPRINGFIELD","SUPPLIES AND SERVICES","TRADING AC - EXTERNAL PURCHASE","4875","P119740-SERVICE-Chandlery Stock",24/10/2022 00:00:00,"267936",109.57,"AS0036","ASAP SUPPLIES",26/9/2022 00:00:00,30/10/2022 00:00:00,"P07-2023"
,"LEE VALLEY MARINA SPRINGFIELD","SUPPLIES AND SERVICES","TRADING AC - EXTERNAL PURCHASE","4875","P119741-SERVICE-Chandlery Stock",19/10/2022 00:00:00,"267937",351.75,"MI0200","MIDLAND CHANDLERS LIMITED",26/9/2022 00:00:00,30/10/2022 00:00:00,"P07-2023"
,"LEE VALLEY MARINA SPRINGFIELD","SUPPLIES AND SERVICES","TRADING AC - EXTERNAL PURCHASE","4875","P119777-SERVICE-Chandlery Stock",24/10/2022 00:00:00,"268064",436.5,"AQ0033","AQUAFAX LIMITED",26/9/2022 00:00:00,30/10/2022 00:00:00,"P07-2023"
,"LEE VALLEY MARINA SPRINGFIELD","SUPPLIES AND SERVICES","TRADING AC - EXTERNAL PURCHASE","4875","KG SMITH & SON",24/10/2022 00:00:00,"268090",1440.72,"SM0664","KG SMITH & SON",26/9/2022 00:00:00,30/10/2022 00:00:00,"P07-2023"
,"LEE VALLEY MARINA SPRINGFIELD","SUPPLIES AND SERVICES","TRADING AC - EXTERNAL PURCHASE","4875","P119733-SERVICE-Chandlery Stock (coal and gas)",24/10/2022 00:00:00,"268090",1995.72,"SM0664","KG SMITH & SON",26/9/2022 00:00:00,30/10/2022 00:00:00,"P07-2023"
,"LEE VALLEY MARINA SPRINGFIELD","SUPPLIES AND SERVICES","TRADING AC - EXTERNAL PURCHASE","4875","KG SMITH & SON",24/10/2022 00:00:00,"268090",-1995.72,"SM0664","KG SMITH & SON",26/9/2022 00:00:00,30/10/2022 00:00:00,"P07-2023"
,"LEE VALLEY MARINA SPRINGFIELD","SUPPLIES AND SERVICES","TRADING AC - EXTERNAL PURCHASE","4875","KG SMITH & SON",24/10/2022 00:00:00,"268090",555,"SM0664","KG SMITH & SON",26/9/2022 00:00:00,30/10/2022 00:00:00,"P07-2023"
,"LEE VALLEY MARINA SPRINGFIELD","SUPPLIES AND SERVICES","TRADING AC - EXTERNAL PURCHASE","4875","P119824-SERVICE-Paint for chandlery",30/10/2022 00:00:00,"268132",610.4,"CR0651","CRAFTMASTER PAINTS",26/9/2022 00:00:00,30/10/2022 00:00:00,"P07-2023"
,"LEE VALLEY MARINA SPRINGFIELD","SUPPLIES AND SERVICES","TRADING AC - EXTERNAL PURCHASE","4875","P119684-SERVICE-Chandlery Stock",30/10/2022 00:00:00,"268133",180.53,"DS0201","DSM GROUP",26/9/2022 00:00:00,30/10/2022 00:00:00,"P07-2023"
,"LEE VALLEY MARINA SPRINGFIELD","SUPPLIES AND SERVICES","TRADING AC - EXTERNAL PURCHASE","4875","P119684-SERVICE-Chandlery Stock",30/10/2022 00:00:00,"268134",124.53,"DS0201","DSM GROUP",26/9/2022 00:00:00,30/10/2022 00:00:00,"P07-2023"
,"LEE VALLEY MARINA SPRINGFIELD","SUPPLIES AND SERVICES","TRADING AC - EXTERNAL PURCHASE","4875","P119684-SERVICE-Chandlery Stock - Rope delivery charge",30/10/2022 00:00:00,"268134",12.97,"DS0201","DSM GROUP",26/9/2022 00:00:00,30/10/2022 00:00:00,"P07-2023"
,"LEE VALLEY MARINA SPRINGFIELD","SUPPLIES AND SERVICES","TRADING AC - EXTERNAL PURCHASE","4875","P119849-SERVICE-Chandlery Stock  912678",30/10/2022 00:00:00,"268255",588.28,"MI0200","MIDLAND CHANDLERS LIMITED",26/9/2022 00:00:00,30/10/2022 00:00:00,"P07-2023"
,"LEE VALLEY MARINA SPRINGFIELD","SUPPLIES AND SERVICES","TRADING AC - EXTERNAL PURCHASE","4875","P119850-SERVICE-Chandlery Stock  116177",30/10/2022 00:00:00,"268256",252.51,"AQ0033","AQUAFAX LIMITED",26/9/2022 00:00:00,30/10/2022 00:00:00,"P07-2023"
,"LEE VALLEY MARINA SPRINGFIELD","SUPPLIES AND SERVICES","TRADING AC - EXTERNAL PURCHASE","4875","P119850-SERVICE-Chandlery Stock  116177",30/10/2022 00:00:00,"268268",10.35,"AQ0033","AQUAFAX LIMITED",26/9/2022 00:00:00,30/10/2022 00:00:00,"P07-2023"
,"STANSTEAD RECHARGEABLE WORKS","SUPPLIES AND SERVICES","TRADING AC - EXTERNAL PURCHASE","4875","P119048-SERVICE-gas",10/10/2022 00:00:00,"266658",1338.45,"SM0664","KG SMITH & SON",26/9/2022 00:00:00,30/10/2022 00:00:00,"P07-2023"
,"STANSTEAD RECHARGEABLE WORKS","SUPPLIES AND SERVICES","TRADING AC - EXTERNAL PURCHASE","4875","P119464-SERVICE-CHANDLERY STOCK",12/10/2022 00:00:00,"266937",175.53,"AQ0033","AQUAFAX LIMITED",26/9/2022 00:00:00,30/10/2022 00:00:00,"P07-2023"
,"STANSTEAD RECHARGEABLE WORKS","SUPPLIES AND SERVICES","TRADING AC - EXTERNAL PURCHASE","4875","P119453-SERVICE-chandlery stock",10/10/2022 00:00:00,"267255",90.67,"MI0200","MIDLAND CHANDLERS LIMITED",26/9/2022 00:00:00,30/10/2022 00:00:00,"P07-2023"
,"STANSTEAD RECHARGEABLE WORKS","SUPPLIES AND SERVICES","TRADING AC - EXTERNAL PURCHASE","4875","P119360-SERVICE-chandlery stock",10/10/2022 00:00:00,"267256",4.81,"MI0200","MIDLAND CHANDLERS LIMITED",26/9/2022 00:00:00,30/10/2022 00:00:00,"P07-2023"
,"STANSTEAD RECHARGEABLE WORKS","SUPPLIES AND SERVICES","TRADING AC - EXTERNAL PURCHASE","4875","P119146-SERVICE-chandlery stock",10/10/2022 00:00:00,"267262",816.16,"EC0394","MANBAT LTD T/AS",26/9/2022 00:00:00,30/10/2022 00:00:00,"P07-2023"
,"STANSTEAD RECHARGEABLE WORKS","SUPPLIES AND SERVICES","TRADING AC - EXTERNAL PURCHASE","4875","P119453-SERVICE-chandlery stock",10/10/2022 00:00:00,"267287",39.4,"MI0200","MIDLAND CHANDLERS LIMITED",26/9/2022 00:00:00,30/10/2022 00:00:00,"P07-2023"
,"STANSTEAD RECHARGEABLE WORKS","SUPPLIES AND SERVICES","TRADING AC - EXTERNAL PURCHASE","4875","P119453-SERVICE-chandlery stock",10/10/2022 00:00:00,"267288",273.48,"MI0200","MIDLAND CHANDLERS LIMITED",26/9/2022 00:00:00,30/10/2022 00:00:00,"P07-2023"
,"STANSTEAD RECHARGEABLE WORKS","SUPPLIES AND SERVICES","TRADING AC - EXTERNAL PURCHASE","4875","P119453-SERVICE-chandlery stock",10/10/2022 00:00:00,"267289",1005.1,"MI0200","MIDLAND CHANDLERS LIMITED",26/9/2022 00:00:00,30/10/2022 00:00:00,"P07-2023"
,"STANSTEAD RECHARGEABLE WORKS","SUPPLIES AND SERVICES","TRADING AC - EXTERNAL PURCHASE","4875","P119465-SERVICE-chandlery stock",10/10/2022 00:00:00,"267310",262.13,"MI0200","MIDLAND CHANDLERS LIMITED",26/9/2022 00:00:00,30/10/2022 00:00:00,"P07-2023"
,"STANSTEAD RECHARGEABLE WORKS","SUPPLIES AND SERVICES","TRADING AC - EXTERNAL PURCHASE","4875","P118626-SERVICE-chandlery stock",18/10/2022 00:00:00,"267335",-87.5,"SM0664","KG SMITH & SON",26/9/2022 00:00:00,30/10/2022 00:00:00,"P07-2023"
,"STANSTEAD RECHARGEABLE WORKS","SUPPLIES AND SERVICES","TRADING AC - EXTERNAL PURCHASE","4875","P119453-SERVICE-chandlery stock",12/10/2022 00:00:00,"267342",24,"MI0200","MIDLAND CHANDLERS LIMITED",26/9/2022 00:00:00,30/10/2022 00:00:00,"P07-2023"
,"STANSTEAD RECHARGEABLE WORKS","SUPPLIES AND SERVICES","TRADING AC - EXTERNAL PURCHASE","4875","P119470-SERVICE-2200l red diesel @ 103.45",12/10/2022 00:00:00,"267352",2275.9,"SP0543","SPEEDY FUELS LIMITED",26/9/2022 00:00:00,30/10/2022 00:00:00,"P07-2023"
,"STANSTEAD RECHARGEABLE WORKS","SUPPLIES AND SERVICES","TRADING AC - EXTERNAL PURCHASE","4875","P119503-SERVICE-blacking",12/10/2022 00:00:00,"267449",593.4,"MA0008","AXALTA COATING SYSTEMS HUTHWAITE UK LTD",26/9/2022 00:00:00,30/10/2022 00:00:00,"P07-2023"
,"STANSTEAD RECHARGEABLE WORKS","SUPPLIES AND SERVICES","TRADING AC - EXTERNAL PURCHASE","4875","P118995-SERVICE-chandlery stock",12/10/2022 00:00:00,"267452",3.4,"AQ0033","AQUAFAX LIMITED",26/9/2022 00:00:00,30/10/2022 00:00:00,"P07-2023"
,"STANSTEAD RECHARGEABLE WORKS","SUPPLIES AND SERVICES","TRADING AC - EXTERNAL PURCHASE","4875","P118786-SERVICE-chandlery stock",12/10/2022 00:00:00,"267453",3.4,"AQ0033","AQUAFAX LIMITED",26/9/2022 00:00:00,30/10/2022 00:00:00,"P07-2023"
,"STANSTEAD RECHARGEABLE WORKS","SUPPLIES AND SERVICES","TRADING AC - EXTERNAL PURCHASE","4875","P118479-SERVICE-chandlery stock",12/10/2022 00:00:00,"267454",4.6,"AQ0033","AQUAFAX LIMITED",26/9/2022 00:00:00,30/10/2022 00:00:00,"P07-2023"
,"STANSTEAD RECHARGEABLE WORKS","SUPPLIES AND SERVICES","TRADING AC - EXTERNAL PURCHASE","4875","P119172-SERVICE-chandlery stock",12/10/2022 00:00:00,"267455",3.4,"AQ0033","AQUAFAX LIMITED",26/9/2022 00:00:00,30/10/2022 00:00:00,"P07-2023"
,"STANSTEAD RECHARGEABLE WORKS","SUPPLIES AND SERVICES","TRADING AC - EXTERNAL PURCHASE","4875","P119605-SERVICE-chandlery stock",18/10/2022 00:00:00,"267456",6.9,"AQ0033","AQUAFAX LIMITED",26/9/2022 00:00:00,30/10/2022 00:00:00,"P07-2023"
,"STANSTEAD RECHARGEABLE WORKS","SUPPLIES AND SERVICES","TRADING AC - EXTERNAL PURCHASE","4875","P119502-SERVICE-blacking",12/10/2022 00:00:00,"267470",576,"SM0658","SML PAINTS AND COATINGS",26/9/2022 00:00:00,30/10/2022 00:00:00,"P07-2023"
,"STANSTEAD RECHARGEABLE WORKS","SUPPLIES AND SERVICES","TRADING AC - EXTERNAL PURCHASE","4875","P119088-SERVICE-chandlery stock",12/10/2022 00:00:00,"267495",23.76,"MI0200","MIDLAND CHANDLERS LIMITED",26/9/2022 00:00:00,30/10/2022 00:00:00,"P07-2023"
,"STANSTEAD RECHARGEABLE WORKS","SUPPLIES AND SERVICES","TRADING AC - EXTERNAL PURCHASE","4875","P119537-SERVICE-chandlery stock",12/10/2022 00:00:00,"267496",28.03,"MI0200","MIDLAND CHANDLERS LIMITED",26/9/2022 00:00:00,30/10/2022 00:00:00,"P07-2023"
,"STANSTEAD RECHARGEABLE WORKS","SUPPLIES AND SERVICES","TRADING AC - EXTERNAL PURCHASE","4875","P119537-SERVICE-chandlery stock",12/10/2022 00:00:00,"267497",46.6,"MI0200","MIDLAND CHANDLERS LIMITED",26/9/2022 00:00:00,30/10/2022 00:00:00,"P07-2023"
,"STANSTEAD RECHARGEABLE WORKS","SUPPLIES AND SERVICES","TRADING AC - EXTERNAL PURCHASE","4875","P119537-SERVICE-chandlery stock",25/10/2022 00:00:00,"267528",743.07,"MI0200","MIDLAND CHANDLERS LIMITED",26/9/2022 00:00:00,30/10/2022 00:00:00,"P07-2023"
,"STANSTEAD RECHARGEABLE WORKS","SUPPLIES AND SERVICES","TRADING AC - EXTERNAL PURCHASE","4875","P119537-SERVICE-customer order",25/10/2022 00:00:00,"267528",12.62,"MI0200","MIDLAND CHANDLERS LIMITED",26/9/2022 00:00:00,30/10/2022 00:00:00,"P07-2023"
,"STANSTEAD RECHARGEABLE WORKS","SUPPLIES AND SERVICES","TRADING AC - EXTERNAL PURCHASE","4875","P119533-SERVICE-chandlery stock",18/10/2022 00:00:00,"267548",297.1,"DS0201","DSM GROUP",26/9/2022 00:00:00,30/10/2022 00:00:00,"P07-2023"
,"STANSTEAD RECHARGEABLE WORKS","SUPPLIES AND SERVICES","TRADING AC - EXTERNAL PURCHASE","4875","P119533-SERVICE-chandlery stock",25/10/2022 00:00:00,"267549",96.46,"DS0201","DSM GROUP",26/9/2022 00:00:00,30/10/2022 00:00:00,"P07-2023"
,"STANSTEAD RECHARGEABLE WORKS","SUPPLIES AND SERVICES","TRADING AC - EXTERNAL PURCHASE","4875","P119533-SERVICE-additional ropes",25/10/2022 00:00:00,"267549",53.37,"DS0201","DSM GROUP",26/9/2022 00:00:00,30/10/2022 00:00:00,"P07-2023"
,"STANSTEAD RECHARGEABLE WORKS","SUPPLIES AND SERVICES","TRADING AC - EXTERNAL PURCHASE","4875","P119537-SERVICE-chandlery stock",18/10/2022 00:00:00,"267563",28.1,"MI0200","MIDLAND CHANDLERS LIMITED",26/9/2022 00:00:00,30/10/2022 00:00:00,"P07-2023"
,"STANSTEAD RECHARGEABLE WORKS","SUPPLIES AND SERVICES","TRADING AC - EXTERNAL PURCHASE","4875","P119576-SERVICE-chandlery stock",18/10/2022 00:00:00,"267564",18.9,"MI0200","MIDLAND CHANDLERS LIMITED",26/9/2022 00:00:00,30/10/2022 00:00:00,"P07-2023"
,"STANSTEAD RECHARGEABLE WORKS","SUPPLIES AND SERVICES","TRADING AC - EXTERNAL PURCHASE","4875","P119514-SERVICE-chandlery stock",25/10/2022 00:00:00,"267565",58.54,"MI0200","MIDLAND CHANDLERS LIMITED",26/9/2022 00:00:00,30/10/2022 00:00:00,"P07-2023"
,"STANSTEAD RECHARGEABLE WORKS","SUPPLIES AND SERVICES","TRADING AC - EXTERNAL PURCHASE","4875","P119576-SERVICE-chandlery stock",18/10/2022 00:00:00,"267656",424.75,"MI0200","MIDLAND CHANDLERS LIMITED",26/9/2022 00:00:00,30/10/2022 00:00:00,"P07-2023"
,"STANSTEAD RECHARGEABLE WORKS","SUPPLIES AND SERVICES","TRADING AC - EXTERNAL PURCHASE","4875","P119576-SERVICE-chandlery stock",18/10/2022 00:00:00,"267657",18.03,"MI0200","MIDLAND CHANDLERS LIMITED",26/9/2022 00:00:00,30/10/2022 00:00:00,"P07-2023"
,"STANSTEAD RECHARGEABLE WORKS","SUPPLIES AND SERVICES","TRADING AC - EXTERNAL PURCHASE","4875","P119537-SERVICE-chandlery stock",18/10/2022 00:00:00,"267658",18.4,"MI0200","MIDLAND CHANDLERS LIMITED",26/9/2022 00:00:00,30/10/2022 00:00:00,"P07-2023"
,"STANSTEAD RECHARGEABLE WORKS","SUPPLIES AND SERVICES","TRADING AC - EXTERNAL PURCHASE","4875","P119382-SERVICE-chandlery stock Sept 22",18/10/2022 00:00:00,"267659",139.21,"AQ0033","AQUAFAX LIMITED",26/9/2022 00:00:00,30/10/2022 00:00:00,"P07-2023"
,"STANSTEAD RECHARGEABLE WORKS","SUPPLIES AND SERVICES","TRADING AC - EXTERNAL PURCHASE","4875","P119242-SERVICE-chandlery stock",18/10/2022 00:00:00,"267672",2224.36,"MI0200","MIDLAND CHANDLERS LIMITED",26/9/2022 00:00:00,30/10/2022 00:00:00,"P07-2023"
,"STANSTEAD RECHARGEABLE WORKS","SUPPLIES AND SERVICES","TRADING AC - EXTERNAL PURCHASE","4875","P119427-SERVICE-chandlery stock",18/10/2022 00:00:00,"267674",109.67,"AS0036","ASAP SUPPLIES",26/9/2022 00:00:00,30/10/2022 00:00:00,"P07-2023"
,"STANSTEAD RECHARGEABLE WORKS","SUPPLIES AND SERVICES","TRADING AC - EXTERNAL PURCHASE","4875","P119346-SERVICE-chandlery stock",12/10/2022 00:00:00,"267677",39.08,"CR0651","CRAFTMASTER PAINTS",26/9/2022 00:00:00,30/10/2022 00:00:00,"P07-2023"
,"STANSTEAD RECHARGEABLE WORKS","SUPPLIES AND SERVICES","TRADING AC - EXTERNAL PURCHASE","4875","P119576-SERVICE-chandlery stock",18/10/2022 00:00:00,"267728",87.28,"MI0200","MIDLAND CHANDLERS LIMITED",26/9/2022 00:00:00,30/10/2022 00:00:00,"P07-2023"
,"STANSTEAD RECHARGEABLE WORKS","SUPPLIES AND SERVICES","TRADING AC - EXTERNAL PURCHASE","4875","P119654-SERVICE-chandlery stock",18/10/2022 00:00:00,"267747",652.23,"CR0651","CRAFTMASTER PAINTS",26/9/2022 00:00:00,30/10/2022 00:00:00,"P07-2023"
,"STANSTEAD RECHARGEABLE WORKS","SUPPLIES AND SERVICES","TRADING AC - EXTERNAL PURCHASE","4875","P119576-SERVICE-chandlery stock",18/10/2022 00:00:00,"267882",20.72,"MI0200","MIDLAND CHANDLERS LIMITED",26/9/2022 00:00:00,30/10/2022 00:00:00,"P07-2023"
,"STANSTEAD RECHARGEABLE WORKS","SUPPLIES AND SERVICES","TRADING AC - EXTERNAL PURCHASE","4875","P119681-SERVICE-aquafax chandlery Oct 22 items",24/10/2022 00:00:00,"267883",611.07,"AQ0033","AQUAFAX LIMITED",26/9/2022 00:00:00,30/10/2022 00:00:00,"P07-2023"
,"STANSTEAD RECHARGEABLE WORKS","SUPPLIES AND SERVICES","TRADING AC - EXTERNAL PURCHASE","4875","P119543-SERVICE-chandlery stock",25/10/2022 00:00:00,"267913",327.19,"EC0394","MANBAT LTD T/AS",26/9/2022 00:00:00,30/10/2022 00:00:00,"P07-2023"
,"STANSTEAD RECHARGEABLE WORKS","SUPPLIES AND SERVICES","TRADING AC - EXTERNAL PURCHASE","4875","P119713-SERVICE-2200l red diesel @117.9ppl",25/10/2022 00:00:00,"267948",2592.62,"SP0543","SPEEDY FUELS LIMITED",26/9/2022 00:00:00,30/10/2022 00:00:00,"P07-2023"
,"STANSTEAD RECHARGEABLE WORKS","SUPPLIES AND SERVICES","TRADING AC - EXTERNAL PURCHASE","4875","P119734-SERVICE-chandlery stock",25/10/2022 00:00:00,"267955",359.65,"MI0200","MIDLAND CHANDLERS LIMITED",26/9/2022 00:00:00,30/10/2022 00:00:00,"P07-2023"
,"STANSTEAD RECHARGEABLE WORKS","SUPPLIES AND SERVICES","TRADING AC - EXTERNAL PURCHASE","4875","P119730-SERVICE-chandlery stock",25/10/2022 00:00:00,"267975",217.71,"CE0510","CENTURION EUROPE LIMITED",26/9/2022 00:00:00,30/10/2022 00:00:00,"P07-2023"
,"STANSTEAD RECHARGEABLE WORKS","SUPPLIES AND SERVICES","TRADING AC - EXTERNAL PURCHASE","4875","P119734-SERVICE-chandlery stock",25/10/2022 00:00:00,"267976",584.1,"MI0200","MIDLAND CHANDLERS LIMITED",26/9/2022 00:00:00,30/10/2022 00:00:00,"P07-2023"
,"STANSTEAD RECHARGEABLE WORKS","SUPPLIES AND SERVICES","TRADING AC - EXTERNAL PURCHASE","4875","P119681-SERVICE-aquafax chandlery Oct 22 items",24/10/2022 00:00:00,"267981",12.65,"AQ0033","AQUAFAX LIMITED",26/9/2022 00:00:00,30/10/2022 00:00:00,"P07-2023"
,"STANSTEAD RECHARGEABLE WORKS","SUPPLIES AND SERVICES","TRADING AC - EXTERNAL PURCHASE","4875","P119681-SERVICE-aquafax chandlery Oct 22 items",30/10/2022 00:00:00,"268065",31.04,"AQ0033","AQUAFAX LIMITED",26/9/2022 00:00:00,30/10/2022 00:00:00,"P07-2023"
,"STANSTEAD RECHARGEABLE WORKS","SUPPLIES AND SERVICES","TRADING AC - EXTERNAL PURCHASE","4875","P119795-SERVICE-chandlery /cust order",30/10/2022 00:00:00,"268088",15.5,"MI0200","MIDLAND CHANDLERS LIMITED",26/9/2022 00:00:00,30/10/2022 00:00:00,"P07-2023"
,"STANSTEAD RECHARGEABLE WORKS","SUPPLIES AND SERVICES","TRADING AC - EXTERNAL PURCHASE","4875","P119772-SERVICE-2200L red diesel @ 114.85ppl",25/10/2022 00:00:00,"268098",370.5,"SP0543","SPEEDY FUELS LIMITED",26/9/2022 00:00:00,30/10/2022 00:00:00,"P07-2023"
,"STANSTEAD RECHARGEABLE WORKS","SUPPLIES AND SERVICES","TRADING AC - EXTERNAL PURCHASE","4875","P119772-SERVICE-2200L red diesel @ 114.85ppl",25/10/2022 00:00:00,"268099",2156.2,"SP0543","SPEEDY FUELS LIMITED",26/9/2022 00:00:00,30/10/2022 00:00:00,"P07-2023"
,"STANSTEAD RECHARGEABLE WORKS","SUPPLIES AND SERVICES","TRADING AC - EXTERNAL PURCHASE","4875","P119723-SERVICE-chandlery stock",25/10/2022 00:00:00,"268105",165.83,"CH0333","CAMAC LIMITED",26/9/2022 00:00:00,30/10/2022 00:00:00,"P07-2023"
,"STANSTEAD RECHARGEABLE WORKS","SUPPLIES AND SERVICES","TRADING AC - EXTERNAL PURCHASE","4875","P119723-SERVICE-delivery",25/10/2022 00:00:00,"268105",15,"CH0333","CAMAC LIMITED",26/9/2022 00:00:00,30/10/2022 00:00:00,"P07-2023"
,"STANSTEAD RECHARGEABLE WORKS","SUPPLIES AND SERVICES","TRADING AC - EXTERNAL PURCHASE","4875","P119815-SERVICE-chandlery stock",30/10/2022 00:00:00,"268122",319.32,"MI0200","MIDLAND CHANDLERS LIMITED",26/9/2022 00:00:00,30/10/2022 00:00:00,"P07-2023"
,"STANSTEAD RECHARGEABLE WORKS","SUPPLIES AND SERVICES","TRADING AC - EXTERNAL PURCHASE","4875","P119758-SERVICE-chandlery stock",30/10/2022 00:00:00,"268123",317.12,"CA0660","CALFIRE SPARELINE LIMITED",26/9/2022 00:00:00,30/10/2022 00:00:00,"P07-2023"
,"STANSTEAD RECHARGEABLE WORKS","SUPPLIES AND SERVICES","TRADING AC - EXTERNAL PURCHASE","4875","P119795-SERVICE-chandlery /cust order",30/10/2022 00:00:00,"268138",259.5,"MI0200","MIDLAND CHANDLERS LIMITED",26/9/2022 00:00:00,30/10/2022 00:00:00,"P07-2023"
,"STANSTEAD RECHARGEABLE WORKS","SUPPLIES AND SERVICES","TRADING AC - EXTERNAL PURCHASE","4875","P119566-SERVICE-gas",30/10/2022 00:00:00,"268330",874.25,"SM0664","KG SMITH & SON",26/9/2022 00:00:00,30/10/2022 00:00:00,"P07-2023"
,"STANSTEAD RECHARGEABLE WORKS","SUPPLIES AND SERVICES","TRADING AC - EXTERNAL PURCHASE","4875","P119471-SERVICE-coal",30/10/2022 00:00:00,"268331",2325,"SM0664","KG SMITH & SON",26/9/2022 00:00:00,30/10/2022 00:00:00,"P07-2023"
"P&V","WILDLIFE DISCOVERY CENTRE","SUPPLIES AND SERVICES","TRADING AC - EXTERNAL PURCHASE","4875","WATER TO SELL @ WDC (WILDLIFE DISCORTY CENTRE)",4/10/2022 00:00:00,"267517",2.08,"FI0001","DIRECTOR OF FINANCE - CASH",26/9/2022 00:00:00,30/10/2022 00:00:00,"P07-2023"
,"LV LEISURE CENTRE CAMPSITE","SUPPLIES AND SERVICES","TRADING AC - EXTERNAL PURCHASE","4875","P119540-SERVICE-Air con unit return",11/10/2022 00:00:00,"267078",237.8,"SY0001","ANDREWS SYKES LIMITED",26/9/2022 00:00:00,30/10/2022 00:00:00,"P07-2023"
,"LV LEISURE CENTRE CAMPSITE","SUPPLIES AND SERVICES","TRADING AC - EXTERNAL PURCHASE","4875","P118757-SERVICE-Stationary",12/10/2022 00:00:00,"267488",39.19,"TH0008","JKL SOLUTIONS LTD",26/9/2022 00:00:00,30/10/2022 00:00:00,"P07-2023"
,"LV LEISURE CENTRE CAMPSITE","SUPPLIES AND SERVICES","TRADING AC - EXTERNAL PURCHASE","4875","RIJO 42 INGREDIENTS LIMITED",24/10/2022 00:00:00,"267893",-223.02,"RI0176","RIJO 42 INGREDIENTS LIMITED",26/9/2022 00:00:00,30/10/2022 00:00:00,"P07-2023"
,"LV LEISURE CENTRE CAMPSITE","SUPPLIES AND SERVICES","TRADING AC - EXTERNAL PURCHASE","4875","RIJO 42 INGREDIENTS LIMITED",24/10/2022 00:00:00,"267893",155.52,"RI0176","RIJO 42 INGREDIENTS LIMITED",26/9/2022 00:00:00,30/10/2022 00:00:00,"P07-2023"
,"LV LEISURE CENTRE CAMPSITE","SUPPLIES AND SERVICES","TRADING AC - EXTERNAL PURCHASE","4875","P119797-SERVICE-Coffee machine supplies",24/10/2022 00:00:00,"267893",223.02,"RI0176","RIJO 42 INGREDIENTS LIMITED",26/9/2022 00:00:00,30/10/2022 00:00:00,"P07-2023"
,"LV LEISURE CENTRE CAMPSITE","SUPPLIES AND SERVICES","TRADING AC - EXTERNAL PURCHASE","4875","RIJO 42 INGREDIENTS LIMITED",24/10/2022 00:00:00,"267893",67.5,"RI0176","RIJO 42 INGREDIENTS LIMITED",26/9/2022 00:00:00,30/10/2022 00:00:00,"P07-2023"
,"LV LEISURE CENTRE CAMPSITE","SUPPLIES AND SERVICES","TRADING AC - EXTERNAL PURCHASE","4875","P119691-SERVICE-Logs",24/10/2022 00:00:00,"267949",615.5,"LO0473","LOGS DIRECT LTD",26/9/2022 00:00:00,30/10/2022 00:00:00,"P07-2023"
,"LEE VALLEY CAMPSITE","SUPPLIES AND SERVICES","BOTTLED GAS","4877","P119633-SERVICE-Stock 10x47kg",18/10/2022 00:00:00,"267687",685.2,"FL0147","FLOGAS BRITAIN LIMITED",26/9/2022 00:00:00,30/10/2022 00:00:00,"P07-2023"
,"LEE VALLEY CAMPSITE","SUPPLIES AND SERVICES","BOTTLED GAS","4877","P119633-SERVICE-Delivery charge",18/10/2022 00:00:00,"267687",4.75,"FL0147","FLOGAS BRITAIN LIMITED",26/9/2022 00:00:00,30/10/2022 00:00:00,"P07-2023"
,"LEE VALLEY CAMPSITE","SUPPLIES AND SERVICES","BOTTLED GAS","4877","P119633-SERVICE-market volatility surcharge",18/10/2022 00:00:00,"267687",23.9,"FL0147","FLOGAS BRITAIN LIMITED",26/9/2022 00:00:00,30/10/2022 00:00:00,"P07-2023"
,"LEE VALLEY CAMPSITE","SUPPLIES AND SERVICES","BOTTLED GAS","4877","P119762-SERVICE-market volitility chg",30/10/2022 00:00:00,"268243",35.28,"FL0147","FLOGAS BRITAIN LIMITED",26/9/2022 00:00:00,30/10/2022 00:00:00,"P07-2023"
,"LEE VALLEY CAMPSITE","SUPPLIES AND SERVICES","BOTTLED GAS","4877","P119762-SERVICE-delivery",30/10/2022 00:00:00,"268243",4.75,"FL0147","FLOGAS BRITAIN LIMITED",26/9/2022 00:00:00,30/10/2022 00:00:00,"P07-2023"
,"LEE VALLEY CAMPSITE","SUPPLIES AND SERVICES","BOTTLED GAS","4877","P119762-SERVICE-10x 47kg cylinder",30/10/2022 00:00:00,"268243",616.68,"FL0147","FLOGAS BRITAIN LIMITED",26/9/2022 00:00:00,30/10/2022 00:00:00,"P07-2023"
"CEO","CHIEF EXECUTIVE","SUPPLIES AND SERVICES","UNRECONCILED COMPANY CARD EXP","4880","P ANDREWS - OCT 2022 CCARD STATEMENT",5/10/2022 00:00:00,"267522",225,"NA0007","NATWEST CARD CENTRE",26/9/2022 00:00:00,30/10/2022 00:00:00,"P07-2023"
"P&V","MYDDELTON HOUSE","SUPPLIES AND SERVICES","UNRECONCILED COMPANY CARD EXP","4880","G FLAVIEN  - OCT 2022 CCARD STATEMENT",5/10/2022 00:00:00,"267522",493.04,"NA0007","NATWEST CARD CENTRE",26/9/2022 00:00:00,30/10/2022 00:00:00,"P07-2023"
"CEO","PR/COMMUNICATIONS","SUPPLIES AND SERVICES","UNRECONCILED COMPANY CARD EXP","4880","S BROMBERG  - OCT 2022 CCARD STATEMENT",5/10/2022 00:00:00,"267522",1359.45,"NA0007","NATWEST CARD CENTRE",26/9/2022 00:00:00,30/10/2022 00:00:00,"P07-2023"
"CEO","REGENERATION & PLANNING","SUPPLIES AND SERVICES","UNRECONCILED COMPANY CARD EXP","4880","C MARTIN  - OCT 2022 CCARD STATEMENT",5/10/2022 00:00:00,"267522",148.2,"NA0007","NATWEST CARD CENTRE",26/9/2022 00:00:00,30/10/2022 00:00:00,"P07-2023"
"R&B","DEMOCRATIC REPRESENTATION & MA","SUPPLIES AND SERVICES","UNRECONCILED COMPANY CARD EXP","4880","S BERTCHIN  - OCT 2022 CCARD STATEMENT",5/10/2022 00:00:00,"267522",604.06,"NA0007","NATWEST CARD CENTRE",26/9/2022 00:00:00,30/10/2022 00:00:00,"P07-2023"
"R&B","FINANCE & RESOURCES MANAGEMENT","SUPPLIES AND SERVICES","UNRECONCILED COMPANY CARD EXP","4880","L READ  - OCT 2022 CCARD STATEMENT",5/10/2022 00:00:00,"267522",877.5,"NA0007","NATWEST CARD CENTRE",26/9/2022 00:00:00,30/10/2022 00:00:00,"P07-2023"
"R&B","INFORMATION TECHNOLOGY","SUPPLIES AND SERVICES","UNRECONCILED COMPANY CARD EXP","4880","S CLARK  - OCT 2022 CCARD STATEMENT",5/10/2022 00:00:00,"267522",109.76,"NA0007","NATWEST CARD CENTRE",26/9/2022 00:00:00,30/10/2022 00:00:00,"P07-2023"
,"LEE VALLEY MARINA SPRINGFIELD","SUPPLIES AND SERVICES","UNRECONCILED COMPANY CARD EXP","4880","L SCOTT  - OCT 2022 CCARD STATEMENT",5/10/2022 00:00:00,"267522",69.12,"NA0007","NATWEST CARD CENTRE",26/9/2022 00:00:00,30/10/2022 00:00:00,"P07-2023"
,"LEE VALLEY MARINA STANSTEAD","SUPPLIES AND SERVICES","UNRECONCILED COMPANY CARD EXP","4880","C BAKER  - OCT 2022 CCARD STATEMENT",5/10/2022 00:00:00,"267522",295.2,"NA0007","NATWEST CARD CENTRE",26/9/2022 00:00:00,30/10/2022 00:00:00,"P07-2023"
"P&V","LEE VALLEY FARM HOLYFIELDHALL","SUPPLIES AND SERVICES","UNRECONCILED COMPANY CARD EXP","4880","J PAINTER  - OCT 2022 CCARD STATEMENT",5/10/2022 00:00:00,"267522",116.4,"NA0007","NATWEST CARD CENTRE",26/9/2022 00:00:00,30/10/2022 00:00:00,"P07-2023"
,"LEE VALLEY CAMPSITE","SUPPLIES AND SERVICES","UNRECONCILED COMPANY CARD EXP","4880","C CARTER  - OCT 2022 CCARD STATEMENT",5/10/2022 00:00:00,"267522",2617.01,"NA0007","NATWEST CARD CENTRE",26/9/2022 00:00:00,30/10/2022 00:00:00,"P07-2023"
,"LEE VALLEY CARAVAN PARK","SUPPLIES AND SERVICES","UNRECONCILED COMPANY CARD EXP","4880","I RUSSELL  - OCT 2022 CCARD STATEMENT",5/10/2022 00:00:00,"267522",1368.11,"NA0007","NATWEST CARD CENTRE",26/9/2022 00:00:00,30/10/2022 00:00:00,"P07-2023"
"P&V","MYDDLETON HSE HERITAGE CENTRE","SUPPLIES AND SERVICES","UNRECONCILED COMPANY CARD EXP","4880","E BOAKO-EGGREY  - OCT 2022 CCARD STATEMENT",5/10/2022 00:00:00,"267522",18.07,"NA0007","NATWEST CARD CENTRE",26/9/2022 00:00:00,30/10/2022 00:00:00,"P07-2023"
"P&V","OPERATIONAL MANAGEMENT (L&E)","SUPPLIES AND SERVICES","UNRECONCILED COMPANY CARD EXP","4880","D HUTLEY  - OCT 2022 CCARD STATEMENT",5/10/2022 00:00:00,"267522",396,"NA0007","NATWEST CARD CENTRE",26/9/2022 00:00:00,30/10/2022 00:00:00,"P07-2023"
"P&V","POLICY & PERFORMANCE (L&E)","SUPPLIES AND SERVICES","UNRECONCILED COMPANY CARD EXP","4880","A SACKETT - OCT 2022 CCARD STATEMENT",5/10/2022 00:00:00,"267522",582.44,"NA0007","NATWEST CARD CENTRE",26/9/2022 00:00:00,30/10/2022 00:00:00,"P07-2023"
"P&V","MYDDLETON HSE HERITAGE CENTRE","SUPPLIES AND SERVICES","UNRECONCILED PETTY CASH","4881","TESCO-CATERING SERV",10/10/2022 00:00:00,"267575",8.6,"FI0001","DIRECTOR OF FINANCE - CASH",26/9/2022 00:00:00,30/10/2022 00:00:00,"P07-2023"
"P&V","MYDDLETON HSE HERITAGE CENTRE","SUPPLIES AND SERVICES","UNRECONCILED PETTY CASH","4881","TESCO- CATERING SERV",10/10/2022 00:00:00,"267575",4,"FI0001","DIRECTOR OF FINANCE - CASH",26/9/2022 00:00:00,30/10/2022 00:00:00,"P07-2023"
"P&V","MYDDLETON HSE HERITAGE CENTRE","SUPPLIES AND SERVICES","UNRECONCILED PETTY CASH","4881","TESCO-CATERING SERV",10/10/2022 00:00:00,"267575",2.8,"FI0001","DIRECTOR OF FINANCE - CASH",26/9/2022 00:00:00,30/10/2022 00:00:00,"P07-2023"
"P&V","MYDDLETON HSE HERITAGE CENTRE","SUPPLIES AND SERVICES","UNRECONCILED PETTY CASH","4881","LIDLE0CATERIG SERV",10/10/2022 00:00:00,"267575",0.49,"FI0001","DIRECTOR OF FINANCE - CASH",26/9/2022 00:00:00,30/10/2022 00:00:00,"P07-2023"
"P&V","MYDDLETON HSE HERITAGE CENTRE","SUPPLIES AND SERVICES","UNRECONCILED PETTY CASH","4881","LIDL CATERING SERV",10/10/2022 00:00:00,"267575",10.77,"FI0001","DIRECTOR OF FINANCE - CASH",26/9/2022 00:00:00,30/10/2022 00:00:00,"P07-2023"
"P&V","MYDDLETON HSE HERITAGE CENTRE","SUPPLIES AND SERVICES","UNRECONCILED PETTY CASH","4881","TESCO-CATERING SERV",10/10/2022 00:00:00,"267575",1.96,"FI0001","DIRECTOR OF FINANCE - CASH",26/9/2022 00:00:00,30/10/2022 00:00:00,"P07-2023"
"P&V","MYDDLETON HSE HERITAGE CENTRE","SUPPLIES AND SERVICES","UNRECONCILED PETTY CASH","4881","TESCO-CATERING SERVICES",10/10/2022 00:00:00,"267575",2.95,"FI0001","DIRECTOR OF FINANCE - CASH",26/9/2022 00:00:00,30/10/2022 00:00:00,"P07-2023"
"P&V","MYDDLETON HSE HERITAGE CENTRE","SUPPLIES AND SERVICES","UNRECONCILED PETTY CASH","4881","LIDL CATERING SERV",10/10/2022 00:00:00,"267575",0.49,"FI0001","DIRECTOR OF FINANCE - CASH",26/9/2022 00:00:00,30/10/2022 00:00:00,"P07-2023"
"P&V","MYDDLETON HSE HERITAGE CENTRE","SUPPLIES AND SERVICES","UNRECONCILED PETTY CASH","4881","TESCO-CATERING SERV",10/10/2022 00:00:00,"267575",4.25,"FI0001","DIRECTOR OF FINANCE - CASH",26/9/2022 00:00:00,30/10/2022 00:00:00,"P07-2023"
"P&V","MYDDLETON HSE HERITAGE CENTRE","SUPPLIES AND SERVICES","UNRECONCILED PETTY CASH","4881","TESCO-CATERING SERV",10/10/2022 00:00:00,"267575",0.96,"FI0001","DIRECTOR OF FINANCE - CASH",26/9/2022 00:00:00,30/10/2022 00:00:00,"P07-2023"
"P&V","MYDDLETON HSE HERITAGE CENTRE","SUPPLIES AND SERVICES","UNRECONCILED PETTY CASH","4881","SAINSBURYS",10/10/2022 00:00:00,"267575",17.34,"FI0001","DIRECTOR OF FINANCE - CASH",26/9/2022 00:00:00,30/10/2022 00:00:00,"P07-2023"
"P&V","MYDDLETON HSE HERITAGE CENTRE","SUPPLIES AND SERVICES","UNRECONCILED PETTY CASH","4881","LIDL-CATERING SERV",10/10/2022 00:00:00,"267575",0.17,"FI0001","DIRECTOR OF FINANCE - CASH",26/9/2022 00:00:00,30/10/2022 00:00:00,"P07-2023"
"P&V","MYDDLETON HSE HERITAGE CENTRE","SUPPLIES AND SERVICES","UNRECONCILED PETTY CASH","4881","LIDL-CATERING SERV",10/10/2022 00:00:00,"267575",4.95,"FI0001","DIRECTOR OF FINANCE - CASH",26/9/2022 00:00:00,30/10/2022 00:00:00,"P07-2023"
"P&V","MYDDLETON HSE HERITAGE CENTRE","SUPPLIES AND SERVICES","UNRECONCILED PETTY CASH","4881","LIDL-CATERING SERV",10/10/2022 00:00:00,"267575",0.95,"FI0001","DIRECTOR OF FINANCE - CASH",26/9/2022 00:00:00,30/10/2022 00:00:00,"P07-2023"
"P&V","MYDDLETON HSE HERITAGE CENTRE","SUPPLIES AND SERVICES","UNRECONCILED PETTY CASH","4881","LIDL-CATERING SERV",10/10/2022 00:00:00,"267575",4.4,"FI0001","DIRECTOR OF FINANCE - CASH",26/9/2022 00:00:00,30/10/2022 00:00:00,"P07-2023"
"P&V","MYDDLETON HSE HERITAGE CENTRE","SUPPLIES AND SERVICES","UNRECONCILED PETTY CASH","4881","LIDL-CATERING SERV",10/10/2022 00:00:00,"267575",4.05,"FI0001","DIRECTOR OF FINANCE - CASH",26/9/2022 00:00:00,30/10/2022 00:00:00,"P07-2023"
"P&V","MYDDLETON HSE HERITAGE CENTRE","SUPPLIES AND SERVICES","UNRECONCILED PETTY CASH","4881","LIDL-CATERING SERV",10/10/2022 00:00:00,"267575",0.55,"FI0001","DIRECTOR OF FINANCE - CASH",26/9/2022 00:00:00,30/10/2022 00:00:00,"P07-2023"
"P&V","MYDDLETON HSE HERITAGE CENTRE","SUPPLIES AND SERVICES","UNRECONCILED PETTY CASH","4881","TESCO-CATERING SERV",10/10/2022 00:00:00,"267575",3.5,"FI0001","DIRECTOR OF FINANCE - CASH",26/9/2022 00:00:00,30/10/2022 00:00:00,"P07-2023"
"P&V","MYDDLETON HSE HERITAGE CENTRE","SUPPLIES AND SERVICES","UNRECONCILED PETTY CASH","4881","TESCO-CATERING SERV",10/10/2022 00:00:00,"267575",2.6,"FI0001","DIRECTOR OF FINANCE - CASH",26/9/2022 00:00:00,30/10/2022 00:00:00,"P07-2023"
"P&V","MYDDLETON HSE HERITAGE CENTRE","SUPPLIES AND SERVICES","UNRECONCILED PETTY CASH","4881","TESCO-CATRING SERV",10/10/2022 00:00:00,"267575",0.25,"FI0001","DIRECTOR OF FINANCE - CASH",26/9/2022 00:00:00,30/10/2022 00:00:00,"P07-2023"
"P&V","MYDDLETON HSE HERITAGE CENTRE","SUPPLIES AND SERVICES","UNRECONCILED PETTY CASH","4881","TESCO-CATERING SERV",10/10/2022 00:00:00,"267575",4.86,"FI0001","DIRECTOR OF FINANCE - CASH",26/9/2022 00:00:00,30/10/2022 00:00:00,"P07-2023"
"P&V","MYDDLETON HSE HERITAGE CENTRE","SUPPLIES AND SERVICES","UNRECONCILED PETTY CASH","4881","TESCO-CATERING SERV",10/10/2022 00:00:00,"267575",1.5,"FI0001","DIRECTOR OF FINANCE - CASH",26/9/2022 00:00:00,30/10/2022 00:00:00,"P07-2023"
"P&V","MYDDLETON HSE HERITAGE CENTRE","SUPPLIES AND SERVICES","UNRECONCILED PETTY CASH","4881","TESCO-CATERING SERV",10/10/2022 00:00:00,"267575",1.2,"FI0001","DIRECTOR OF FINANCE - CASH",26/9/2022 00:00:00,30/10/2022 00:00:00,"P07-2023"
"P&V","MYDDLETON HSE HERITAGE CENTRE","SUPPLIES AND SERVICES","UNRECONCILED PETTY CASH","4881","LIDL-CATERING SERV",10/10/2022 00:00:00,"267575",6.42,"FI0001","DIRECTOR OF FINANCE - CASH",26/9/2022 00:00:00,30/10/2022 00:00:00,"P07-2023"
"CEO","COMMONWEALTH GAMES 2022","SUPPLIES AND SERVICES","OTHER EXPENSES","4899","P118528-SERVICE-To carry various fire break repairs as per do",3/10/2022 00:00:00,"267338",480,"RE0094","REACT 2 IT (BUILDING & REFURBISHMENT) LTD",26/9/2022 00:00:00,30/10/2022 00:00:00,"P07-2023"
"CEO","COMMONWEALTH GAMES 2022","SUPPLIES AND SERVICES","OTHER EXPENSES","4899","P119149-SERVICE-Overrun fees",3/10/2022 00:00:00,"267339",1790,"RE0094","REACT 2 IT (BUILDING & REFURBISHMENT) LTD",26/9/2022 00:00:00,30/10/2022 00:00:00,"P07-2023"
"CEO","COMMONWEALTH GAMES 2022","SUPPLIES AND SERVICES","OTHER EXPENSES","4899","P118527-SERVICE-Seating costs at VeloPark re CWG",3/10/2022 00:00:00,"267340",3950,"RE0094","REACT 2 IT (BUILDING & REFURBISHMENT) LTD",26/9/2022 00:00:00,30/10/2022 00:00:00,"P07-2023"
"CEO","COMMONWEALTH GAMES 2022","SUPPLIES AND SERVICES","OTHER EXPENSES","4899","P119519-SERVICE-CWG - Commission for public catering",3/10/2022 00:00:00,"267463",6513.69,"BI0649","BIRMINGHAM ORGANISING COMMITTEE",26/9/2022 00:00:00,30/10/2022 00:00:00,"P07-2023"
"CEO","COMMONWEALTH GAMES 2022","SUPPLIES AND SERVICES","OTHER EXPENSES","4899","P119788-SERVICE-Rental of cold storage for CWG",26/10/2022 00:00:00,"268104",2022.25,"FI0193","FIVE STAR CATERING LTD",26/9/2022 00:00:00,30/10/2022 00:00:00,"P07-2023"
"CEO","COMMONWEALTH GAMES 2022","SUPPLIES AND SERVICES","OTHER EXPENSES","4899","P119014-SERVICE-As per quotation reference 8011985",26/10/2022 00:00:00,"268146",826.64,"ELI0362","ELITE SUPPORT SERVICES (LONDON) LIMITED",26/9/2022 00:00:00,30/10/2022 00:00:00,"P07-2023"
"CEO","COMMONWEALTH GAMES 2022","SUPPLIES AND SERVICES","OTHER EXPENSES","4899","P119015-SERVICE-As per quoatation 8011986",26/10/2022 00:00:00,"268147",1405.32,"ELI0362","ELITE SUPPORT SERVICES (LONDON) LIMITED",26/9/2022 00:00:00,30/10/2022 00:00:00,"P07-2023"
"P&V","COMMUNITY ACCESS FUND","SUPPLIES AND SERVICES","OTHER EXPENSES","4899","P119520-SERVICE-For the provision of Education resources for",4/10/2022 00:00:00,"267353",5000,"OP0136","OPEN CITY",26/9/2022 00:00:00,30/10/2022 00:00:00,"P07-2023"
"P&V","COMMUNITY ACCESS FUND","SUPPLIES AND SERVICES","OTHER EXPENSES","4899","P118997-SERVICE-CAF coach hallsville Primary 2/11/22",18/10/2022 00:00:00,"267670",491,"LO0478","LONDON BOROUGH OF HAVERING",26/9/2022 00:00:00,30/10/2022 00:00:00,"P07-2023"
"P&V","COMMUNITY ACCESS FUND","SUPPLIES AND SERVICES","OTHER EXPENSES","4899","P119756-SERVICE-Epping Forest Inclusion Project",24/10/2022 00:00:00,"267973",1200,"BI0470","BIKE WORKS",26/9/2022 00:00:00,30/10/2022 00:00:00,"P07-2023"
"P&V","COMMUNITY ACCESS FUND","SUPPLIES AND SERVICES","OTHER EXPENSES","4899","P119353-SERVICE-Velo CAF Qrt 2",30/10/2022 00:00:00,"268159",1930,"GR0097","GREENWICH LEISURE LTD",26/9/2022 00:00:00,30/10/2022 00:00:00,"P07-2023"
"P&V","COMMUNITY ACCESS FUND","SUPPLIES AND SERVICES","OTHER EXPENSES","4899","P119523-SERVICE-CAF Activity at Riding centre qrt 2",30/10/2022 00:00:00,"268251",3129,"GR0097","GREENWICH LEISURE LTD",26/9/2022 00:00:00,30/10/2022 00:00:00,"P07-2023"
,"LV LEISURE CENTRE CAMPSITE","SUPPLIES AND SERVICES","OTHER EXPENSES","4899","P119622-SERVICE-Dimitry Campsite 61 hrs",10/10/2022 00:00:00,"267695",915,"NE0225","DIMITRI NEOPHYTOU",26/9/2022 00:00:00,30/10/2022 00:00:00,"P07-2023"
,"LV LEISURE CENTRE GOLF COURSE","SUPPLIES AND SERVICES","OTHER EXPENSES","4899","P119622-SERVICE-Dimitry Golf course 21 hrs",10/10/2022 00:00:00,"267695",315,"NE0225","DIMITRI NEOPHYTOU",26/9/2022 00:00:00,30/10/2022 00:00:00,"P07-2023"
"P&V","AWARDS AND ACCREDITATIONS","SUPPLIES AND SERVICES","OTHER EXPENSES","4899","P119753-SERVICE-WWC - Quest Directional review",18/10/2022 00:00:00,"266914",1150,"4G0455","4GLOBAL CONSULTING LIMITED",26/9/2022 00:00:00,30/10/2022 00:00:00,"P07-2023"
"P&V","AWARDS AND ACCREDITATIONS","SUPPLIES AND SERVICES","OTHER EXPENSES","4899","P119554-SERVICE-2022-23 Market Research",4/10/2022 00:00:00,"267510",7635,"FE0285","FEEDBACK MARKET RESEARCH LIMITED",26/9/2022 00:00:00,30/10/2022 00:00:00,"P07-2023"
"P&V","AWARDS AND ACCREDITATIONS","SUPPLIES AND SERVICES","OTHER EXPENSES","4899","P118414-SERVICE-Mystery Vists and Quality Audits",24/10/2022 00:00:00,"267785",295,"RI0053","RIGHT DIRECTIONS (MANAGEMENT) LTD",26/9/2022 00:00:00,30/10/2022 00:00:00,"P07-2023"
"P&V","ASSET PROTECTION, MAINT, DEVEL","CAPITAL EXPENDITURE","CAPITAL EXPENDITURE","4990","ALTRON COMMUNICATIONS EQUIPMEN",3/10/2022 00:00:00,"267261",0,"AL0491","ALTRON COMMUNICATIONS EQUIPMENT LTD",26/9/2022 00:00:00,30/10/2022 00:00:00,"P07-2023"
"P&V","ASSET PROTECTION, MAINT, DEVEL","CAPITAL EXPENDITURE","CAPITAL EXPENDITURE","4990","P118861-SERVICE-Additional cost agreed by RM",24/10/2022 00:00:00,"267295",1430.96,"HE0297","HENDERSON & TAYLOR (PUBLIC WORKS LIMITED)",26/9/2022 00:00:00,30/10/2022 00:00:00,"P07-2023"
"P&V","ASSET PROTECTION, MAINT, DEVEL","CAPITAL EXPENDITURE","CAPITAL EXPENDITURE","4990","P118861-SERVICE-Three Mills Green Surface Re-Profiling and Dr",24/10/2022 00:00:00,"267295",117670,"HE0297","HENDERSON & TAYLOR (PUBLIC WORKS LIMITED)",26/9/2022 00:00:00,30/10/2022 00:00:00,"P07-2023"
"P&V","ASSET PROTECTION, MAINT, DEVEL","CAPITAL EXPENDITURE","CAPITAL EXPENDITURE","4990","P117444-SERVICE-Repair Roof Cladding at White Water Centre",10/10/2022 00:00:00,"267573",625,"FI0249","FIELD & CO ROOFING LTD",26/9/2022 00:00:00,30/10/2022 00:00:00,"P07-2023"
"P&V","ASSET PROTECTION, MAINT, DEVEL","CAPITAL EXPENDITURE","CAPITAL EXPENDITURE","4990","P119430-SERVICE-Asbestos Survey at Dobbs Weir Bunglow",10/10/2022 00:00:00,"267574",465,"LI0432","LIFE ENVIRONMENTAL SERVICES LTD",26/9/2022 00:00:00,30/10/2022 00:00:00,"P07-2023"
"P&V","ASSET PROTECTION, MAINT, DEVEL","CAPITAL EXPENDITURE","CAPITAL EXPENDITURE","4990","CAPSER",24/10/2022 00:00:00,"267654",500,"MO0041","CAPSER",26/9/2022 00:00:00,30/10/2022 00:00:00,"P07-2023"
"P&V","ASSET PROTECTION, MAINT, DEVEL","CAPITAL EXPENDITURE","CAPITAL EXPENDITURE","4990","CAPSER",24/10/2022 00:00:00,"267654",-900,"MO0041","CAPSER",26/9/2022 00:00:00,30/10/2022 00:00:00,"P07-2023"
"P&V","ASSET PROTECTION, MAINT, DEVEL","CAPITAL EXPENDITURE","CAPITAL EXPENDITURE","4990","CAPSER",24/10/2022 00:00:00,"267654",400,"MO0041","CAPSER",26/9/2022 00:00:00,30/10/2022 00:00:00,"P07-2023"
"P&V","ASSET PROTECTION, MAINT, DEVEL","CAPITAL EXPENDITURE","CAPITAL EXPENDITURE","4990","P119454-SERVICE-WWC Erect a compound from re used fencing",24/10/2022 00:00:00,"267654",900,"MO0041","CAPSER",26/9/2022 00:00:00,30/10/2022 00:00:00,"P07-2023"
"P&V","ASSET PROTECTION, MAINT, DEVEL","CAPITAL EXPENDITURE","CAPITAL EXPENDITURE","4990","P119641-SERVICE-Portacabins Area 4 - White Water Centre",19/10/2022 00:00:00,"267939",750,"RE0094","REACT 2 IT (BUILDING & REFURBISHMENT) LTD",26/9/2022 00:00:00,30/10/2022 00:00:00,"P07-2023"
"P&V","ASSET PROTECTION, MAINT, DEVEL","CAPITAL EXPENDITURE","CAPITAL EXPENDITURE","4990","P119585-SERVICE-Water Meter- Abercrombie Lodge",24/10/2022 00:00:00,"267983",360.82,"GI0137","R & P GIBBS LIMITED",26/9/2022 00:00:00,30/10/2022 00:00:00,"P07-2023"
"P&V","ASSET PROTECTION, MAINT, DEVEL","CAPITAL EXPENDITURE","CAPITAL EXPENDITURE","4990","P119754-SERVICE-Box gutter repairs in various box gutters 2 m",26/10/2022 00:00:00,"268078",520,"FI0249","FIELD & CO ROOFING LTD",26/9/2022 00:00:00,30/10/2022 00:00:00,"P07-2023"
"P&V","ASSET PROTECTION, MAINT, DEVEL","CAPITAL EXPENDITURE","CAPITAL EXPENDITURE","4990","P119434-SERVICE-White water cabinet installation and patching",24/10/2022 00:00:00,"268082",560,"JP0183","JPH CABLING SERVICES",26/9/2022 00:00:00,30/10/2022 00:00:00,"P07-2023"
"P&V","ASSET PROTECTION, MAINT, DEVEL","CAPITAL EXPENDITURE","CAPITAL EXPENDITURE","4990","P119640-SERVICE-Call Outs at White Water Centre",26/10/2022 00:00:00,"268151",412.12,"GI0137","R & P GIBBS LIMITED",26/9/2022 00:00:00,30/10/2022 00:00:00,"P07-2023"
"P&V","ASSET PROTECTION, MAINT, DEVEL","CAPITAL EXPENDITURE","CAPITAL EXPENDITURE","4990","P118861-SERVICE-Release of retention",30/10/2022 00:00:00,"268154",9022.39,"HE0297","HENDERSON & TAYLOR (PUBLIC WORKS LIMITED)",26/9/2022 00:00:00,30/10/2022 00:00:00,"P07-2023"
"P&V","ASSET PROTECTION, MAINT, DEVEL","CAPITAL EXPENDITURE","CAPITAL EXPENDITURE","4990","P119059-SERVICE-White Water New Bridge",30/10/2022 00:00:00,"268286",8750,"CH0468","CUNDALL",26/9/2022 00:00:00,30/10/2022 00:00:00,"P07-2023"
"P&V","ASSET PROTECTION, MAINT, DEVEL","CAPITAL EXPENDITURE","CAPITAL EXPENDITURE","4990","P119709-SERVICE-Connection & Testing Gas Supply at Dobbs Weir",30/10/2022 00:00:00,"268327",1280,"SO0400","SOUTHERN GREEN SERVICES LIMITED",26/9/2022 00:00:00,30/10/2022 00:00:00,"P07-2023"
"R&B","INFORMATION TECHNOLOGY","CAPITAL EXPENDITURE","CAPITAL EXPENDITURE","4990","P118565-SERVICE-LADP2CK-36M 3 Years Accidental Damage Cover",24/10/2022 00:00:00,"267956",62.97,"CC0711","CCS MEDIA LIMITED",26/9/2022 00:00:00,30/10/2022 00:00:00,"P07-2023"
,"LEE VALLEY CAMPSITE","CAPITAL EXPENDITURE","CAPITAL EXPENDITURE","4990","P115805-SERVICE-Glamping Units",17/10/2022 00:00:00,"267910",-39690,"MO0482","MODULAR LEISURE BUILDINGS LTD",26/9/2022 00:00:00,30/10/2022 00:00:00,"P07-2023"
,"LEE VALLEY CAMPSITE","CAPITAL EXPENDITURE","CAPITAL EXPENDITURE","4990","P115805-SERVICE-Glamping Units",17/10/2022 00:00:00,"267911",42000,"MO0482","MODULAR LEISURE BUILDINGS LTD",26/9/2022 00:00:00,30/10/2022 00:00:00,"P07-2023"
,"LEE VALLEY CAMPSITE","CAPITAL EXPENDITURE","CAPITAL EXPENDITURE","4990","P119780-SERVICE-Site wi fi Upgrade Preparations",30/10/2022 00:00:00,"268250",3060,"MO0041","CAPSER",26/9/2022 00:00:00,30/10/2022 00:00:00,"P07-2023"
,"LEE VALLEY CAMPSITE","CAPITAL EXPENDITURE","CAPITAL EXPENDITURE","4990","CAPSER",30/10/2022 00:00:00,"268250",2200,"MO0041","CAPSER",26/9/2022 00:00:00,30/10/2022 00:00:00,"P07-2023"
,"LEE VALLEY CAMPSITE","CAPITAL EXPENDITURE","CAPITAL EXPENDITURE","4990","CAPSER",30/10/2022 00:00:00,"268250",860,"MO0041","CAPSER",26/9/2022 00:00:00,30/10/2022 00:00:00,"P07-2023"
,"LEE VALLEY CAMPSITE","CAPITAL EXPENDITURE","CAPITAL EXPENDITURE","4990","CAPSER",30/10/2022 00:00:00,"268250",-3060,"MO0041","CAPSER",26/9/2022 00:00:00,30/10/2022 00:00:00,"P07-2023"
,"LEE VALLEY CARAVAN PARK","CAPITAL EXPENDITURE","CAPITAL EXPENDITURE","4990","P115801-SERVICE-New glamping unit",17/10/2022 00:00:00,"267912",42000,"MO0482","MODULAR LEISURE BUILDINGS LTD",26/9/2022 00:00:00,30/10/2022 00:00:00,"P07-2023"
"P&V","EAST INDIA DOCK AND BOW CREEK","CAPITAL EXPENDITURE","CAPITAL EXPENDITURE","4990","P118828-SERVICE-East India Dock Basin Project - Pre Applicati",3/10/2022 00:00:00,"267448",549,"MA0488","MARINE MANAGEMENT ORGANISATION",26/9/2022 00:00:00,30/10/2022 00:00:00,"P07-2023"
"P&V","EAST INDIA DOCK AND BOW CREEK","CAPITAL EXPENDITURE","CAPITAL EXPENDITURE","4990","P118828-SERVICE-East India Dock Basin Project - Pre Applicati",30/10/2022 00:00:00,"268160",976,"MA0488","MARINE MANAGEMENT ORGANISATION",26/9/2022 00:00:00,30/10/2022 00:00:00,"P07-2023"
"P&V","BIODIVERSITY ACTION PLAN","CAPITAL EXPENDITURE","CAPITAL EXPENDITURE","4990","P117391-SERVICE-Surveys",24/10/2022 00:00:00,"267978",2785,"TE0626","TEMPLE GROUP LTD",26/9/2022 00:00:00,30/10/2022 00:00:00,"P07-2023"
"P&V","BIODIVERSITY ACTION PLAN","CAPITAL EXPENDITURE","CAPITAL EXPENDITURE","4990","P119496-SERVICE-2021-22 Service Leval Agreement Between Herts",24/10/2022 00:00:00,"268061",1455,"HE0275","HERTS & MIDDLESEX WILDLIFE TRUST",26/9/2022 00:00:00,30/10/2022 00:00:00,"P07-2023"
,"LEE VALLEY ICE CENTRE","CAPITAL EXPENDITURE","CAPITAL EXPENDITURE","4990","P119524-SERVICE-Project management September 2022",3/10/2022 00:00:00,"267462",66163,"WR0199","WRENBRIDGE LAND LTD",26/9/2022 00:00:00,30/10/2022 00:00:00,"P07-2023"
,"LEE VALLEY ICE CENTRE","CAPITAL EXPENDITURE","CAPITAL EXPENDITURE","4990","P119807-SERVICE-IC redevelopemnt as per interim cert 015",21/10/2022 00:00:00,"267478",1204890.87,"BU0634","BUCKINGHAM GROUP CONTRACTING LIMITED",26/9/2022 00:00:00,30/10/2022 00:00:00,"P07-2023"
,"LEE VALLEY ICE CENTRE","CAPITAL EXPENDITURE","CAPITAL EXPENDITURE","4990","P119895-SERVICE-Ice Centre project management October 22",30/10/2022 00:00:00,"268335",51374,"WR0199","WRENBRIDGE LAND LTD",26/9/2022 00:00:00,30/10/2022 00:00:00,"P07-2023"
